{"text_format":"1","workbook":"xlsx","n_sheets":9,"sheets":["Summary (2)","Samples","Argon","Rubidium","Rhenium","Citations","Summary","Searches","ALL"],"not_rendered":{"charts":6,"images":0,"macros":1,"external_links":0,"defined_names":21,"comments":0,"pivot_tables":0},"unopened":[],"bounds":{"document_bytes":16777216,"sheet_cells":100000,"rows_first":2000,"rows_last":500,"rows_between":2000,"halvings":0,"cell_chars":16384,"cell_head_chars":4096},"cells_cut":0,"cells_raw":0,"read":"whole","date_system":"1900"}

{"sheet":"Summary (2)","index":0,"n_rows":140,"n_cols":17,"rows_kept":140,"cut":false,"hidden":false,"merged":[]}
["Essay's Title","Magazine","Volume","Year","Pages","Folder","File Name","Pauls Computer","Sheet","Excel File","Citation","Dating",null,"Minimum","Maximum","Difference ","Age"]
[null,null,null,null,null,null,null,null,null,null,null,"Method","Citation","Million Years","Million Years","Million Years","Ratio"]
["Ar-39/Ar-40 Dating of Mesosiderites","Geochimica et Cosmochimica Acta",54,1990,"Pages 2549-2564",{"$f":" \"C:\\Essays\\Geo_Dating\\Neller\\\"","v":"C:\\Essays\\Geo_Dating\\Neller\\"},"BOGARD_A",{"$f":" \"C:\\Essays\\Geo_Dating\\Neller\\\" & G3 & \".pdf\"","v":"C:\\Essays\\Geo_Dating\\Neller\\BOGARD_A.pdf"},"A1","AA_Index.xlsm",{"$f":"B3 &  \", \" & D3 & \", \" & C3 & \", \" & E3","v":"Geochimica et Cosmochimica Acta, 1990, 54, Pages 2549-2564"},"Ar/Ar",1,1770,13960,{"$f":"O3-N3","v":12190},{"$f":"ABS(P3/N3)","v":6.8870056497175138}]
["39Ar-40Ar Ages of Eucrites","Meteoritics And Planetary Science",38,2003,"Pages 669–710","C:\\Essays\\Geo_Dating\\Neller\\","BOGARD_E","C:\\Essays\\Geo_Dating\\Neller\\BOGARD_E.pdf","A2","AA_Index.xlsm",{"$f":"B4 &  \", \" & D4 & \", \" & C4 & \", \" & E4","v":"Meteoritics And Planetary Science, 2003, 38, Pages 669–710"},"Ar/Ar",2,162,9669,9507,58.685185185185183]
["Ar diffusion properties, Meteorites","Geochimica et Cosmochimica Acta",44,1980,"Pages 1667-1682","C:\\Essays\\Geo_Dating\\Neller\\","BOGARD_B","C:\\Essays\\Geo_Dating\\Neller\\BOGARD_B.pdf","A3","AA_Index.xlsm",{"$f":"B5 &  \", \" & D5 & \", \" & C5 & \", \" & E5","v":"Geochimica et Cosmochimica Acta, 1980, 44, Pages 1667-1682"},"Ar/Ar",3,120,9710,9590,79.916666666666671]
["Argon-39/Argon-40 Ages","Meteoritics And Planetary Science",36,2001,"Pages 107-122","C:\\Essays\\Geo_Dating\\Neller\\","BOGARD_F","C:\\Essays\\Geo_Dating\\Neller\\BOGARD_F.pdf","A4","AA_Index.xlsm",{"$f":"B6 &  \", \" & D6 & \", \" & C6 & \", \" & E6","v":"Meteoritics And Planetary Science, 2001, 36, Pages 107-122"},"Ar/Ar",4,1102,8058,6956,6.3121597096188751]
["U-Th-Pb dating of Abee E4 Meteorite","Earth Planetary Science Letters",62,1983,"Pages 132-146","C:\\Essays\\Geo_Dating\\Neller\\","BOGARD_C","C:\\Essays\\Geo_Dating\\Neller\\BOGARD_C.pdf","A5","AA_Index.xlsm",{"$f":"B7 &  \", \" & D7 & \", \" & C7 & \", \" & E7","v":"Earth Planetary Science Letters, 1983, 62, Pages 132-146"},"Ar/Ar",5,3560,8900,5340,1.5]
["40Ar-39Ar Chronology","Meteoritics And Planetary Science",44,2009,"Pages 293-321","C:\\Essays\\Geo_Dating\\Neller\\","Meteorite_Korochantseva","C:\\Essays\\Geo_Dating\\Neller\\Meteorite_Korochantseva.pdf","B0","AA_Index.xlsm",{"$f":"B8 &  \", \" & D8 & \", \" & C8 & \", \" & E8","v":"Meteoritics And Planetary Science, 2009, 44, Pages 293-321"},"Ar/Ar",6,94,14917,14823,157.69148936170214]
["40-Ar / 39-Ar Ages of Allende","Icarus",42,1980,"Pages 380-405","C:\\Essays\\Geo_Dating\\Neller\\","Meteorite_Jessberger","C:\\Essays\\Geo_Dating\\Neller\\Meteorite_Jessberger.pdf","B1","AA_Index.xlsm",{"$f":"B9 &  \", \" & D9 & \", \" & C9 & \", \" & E9","v":"Icarus, 1980, 42, Pages 380-405"},"Ar/Ar",7,1871,7460,5589,2.9871726349545695]
["The Fossil LL6 Chondrite","Geochimica et Cosmochimica Acta",74,2010,"Pages 1734-1747","C:\\Essays\\Geo_Dating\\Neller\\","Older_Than_Earth_3","C:\\Essays\\Geo_Dating\\Neller\\Older_Than_Earth_3.pdf","B2","AA_Index.xlsm",{"$f":"B10 &  \", \" & D10 & \", \" & C10 & \", \" & E10","v":"Geochimica et Cosmochimica Acta, 2010, 74, Pages 1734-1747"},"Ar/Ar",8,164,11250,11086,67.597560975609753]
["40Ar-39Ar Dating of Pseudo Tachylytes","Earth Planetary Science Letters",223,2004,"Pages 349-364","C:\\Essays\\Geo_Dating\\Neller\\","Older_Than_Earth_1","C:\\Essays\\Geo_Dating\\Neller\\Older_Than_Earth_1.pdf","B6","AA_Index.xlsm",{"$f":"B11 &  \", \" & D11 & \", \" & C11 & \", \" & E11","v":"Earth Planetary Science Letters, 2004, 223, Pages 349-364"},"Ar/Ar",9,42,7347,7305,173.92857142857142]
["Location of extraneous argon","Chemical Geology",80,1990,"Pages 201-204","C:\\Essays\\Geo_Dating\\Neller\\","Maluski","C:\\Essays\\Geo_Dating\\Neller\\Maluski.pdf","B7","AA_Index.xlsm",{"$f":"B12 &  \", \" & D12 & \", \" & C12 & \", \" & E12","v":"Chemical Geology, 1990, 80, Pages 201-204"},"Ar/Ar",10,1700,22090,20390,11.994117647058824]
["Excess Argon In Ultramafic Rocks","Earth Planetary Science Letters",22,1974,"Pages 145-156","C:\\Essays\\Geo_Dating\\Neller\\","Ages_012","C:\\Essays\\Geo_Dating\\Neller\\Ages_012.pdf","B8","AA_Index.xlsm",{"$f":"B13 &  \", \" & D13 & \", \" & C13 & \", \" & E13","v":"Earth Planetary Science Letters, 1974, 22, Pages 145-156"},"Ar/Ar",11,580,9840,9260,15.96551724137931]
["Analyses of the chondritic meteorite Orvinio","Meteoritics And Planetary Science",39,2004,"Pages 1475-1493","C:\\Essays\\Geo_Dating\\Neller\\","Meteorite_Grier","C:\\Essays\\Geo_Dating\\Neller\\Meteorite_Grier.pdf","C1","AA_Index.xlsm",{"$f":"B14 &  \", \" & D14 & \", \" & C14 & \", \" & E14","v":"Meteoritics And Planetary Science, 2004, 39, Pages 1475-1493"},"Ar/Ar",12,324,17178,16854,52.018518518518519]
["Shocked meteorites: Argon-40-argon-39","Meteoritics And Planetary Science",32,1997,"Pages 647-670","C:\\Essays\\Geo_Dating\\Neller\\","Meteorite_Kunz","C:\\Essays\\Geo_Dating\\Neller\\Meteorite_Kunz.pdf","C2","AA_Index.xlsm",{"$f":"B15 &  \", \" & D15 & \", \" & C15 & \", \" & E15","v":"Meteoritics And Planetary Science, 1997, 32, Pages 647-670"},"Ar/Ar",13,506,13348,12842,25.379446640316207]
["The Strangways impact structure","Earth Planetary Science Letters",172,1999,"Pages 199–211","C:\\Essays\\Geo_Dating\\Neller\\","Older_Than_Earth_4","C:\\Essays\\Geo_Dating\\Neller\\Older_Than_Earth_4.pdf","C3","AA_Index.xlsm",{"$f":"B16 &  \", \" & D16 & \", \" & C16 & \", \" & E16","v":"Earth Planetary Science Letters, 1999, 172, Pages 199–211"},"Ar/Ar",14,633,8569,7936,12.537124802527646]
["40Ar-39Ar Quartz Ages","Geochimica et Cosmochimica Acta",70,2006,"Pages 2573-2575","C:\\Essays\\Geo_Dating\\Neller\\","Older_Than_Earth_9","C:\\Essays\\Geo_Dating\\Neller\\Older_Than_Earth_9.pdf","C7","AA_Index.xlsm",{"$f":"B17 &  \", \" & D17 & \", \" & C17 & \", \" & E17","v":"Geochimica et Cosmochimica Acta, 2006, 70, Pages 2573-2575"},"Ar/Ar",15,1115,9969,8854,7.9408071748878921]
["The Peace River shocked M chondrite","Geochimica et Cosmochimica Acta",52,1988,"Pages 2487-2499","C:\\Essays\\Geo_Dating\\Neller\\","Meteorite_MCCONVILL","C:\\Essays\\Geo_Dating\\Neller\\Meteorite_MCCONVILL.pdf","D0","AA_Index.xlsm",{"$f":"B18 &  \", \" & D18 & \", \" & C18 & \", \" & E18","v":"Geochimica et Cosmochimica Acta, 1988, 52, Pages 2487-2499"},"Ar/Ar",16,510,7100,6590,12.921568627450981]
["History Of The Acapulco Meteorite","Geochimica et Cosmochimica Acta",61,1997,"Pages 3477-3501","C:\\Essays\\Geo_Dating\\Neller\\","Meteorite_Pellas","C:\\Essays\\Geo_Dating\\Neller\\Meteorite_Pellas.pdf","D1","AA_Index.xlsm",{"$f":"B19 &  \", \" & D19 & \", \" & C19 & \", \" & E19","v":"Geochimica et Cosmochimica Acta, 1997, 61, Pages 3477-3501"},"Ar/Ar",17,3841,11421,7580,1.9734444155167925]
["Pressure Metamorphism in Northeast Japan","Gondwana Research",8,2005,"Pages 617-621","C:\\Essays\\Geo_Dating\\Neller\\","Itaya","C:\\Essays\\Geo_Dating\\Neller\\Itaya.pdf","D7","AA_Index.xlsm",{"$f":"B20 &  \", \" & D20 & \", \" & C20 & \", \" & E20","v":"Gondwana Research, 2005, 8, Pages 617-621"},"Ar/Ar",18,7700,16300,8600,1.1168831168831168]
["40 Ar/39ar Dating Of The Long Range Dikes","Earth Planetary Science Letters",22,1974,"Pages 256-266","C:\\Essays\\Geo_Dating\\Neller\\","Ages_002","C:\\Essays\\Geo_Dating\\Neller\\Ages_002.pdf","D8","AA_Index.xlsm",{"$f":"B21 &  \", \" & D21 & \", \" & C21 & \", \" & E21","v":"Earth Planetary Science Letters, 1974, 22, Pages 256-266"},"Ar/Ar",19,651,18620,17969,27.602150537634408]
[null,null,null,null,null,null,null,null,null,null,null,"Total",null,{"$f":"MIN(N3:N21)","v":42},{"$f":"MAX(O3:O21)","v":22090},22048,524.95238095238096]
[null,null,null,null,null,null,null,null,null,null,null,"Method","Citation","Minimum","Maximum","Difference ","Ratio"]
["Potassium: Argon Dating of Iron Meteorites","Science",155,1967,"Pages 999-1000","C:\\Essays\\Geo_Dating\\Neller\\","Meteor_Rancitelli","C:\\Essays\\Geo_Dating\\Neller\\Meteor_Rancitelli.pdf","C6","AA_Index.xlsm",{"$f":"B24 &  \", \" & D24 & \", \" & C24 & \", \" & E24","v":"Science, 1967, 155, Pages 999-1000"},"K/Ar",20,4700,10400,5700,1.2127659574468086]
["Potassium-argon age of iron meteorites","Geochimica et Cosmochimica Acta",15,1958,"Pages 40-50","C:\\Essays\\Geo_Dating\\Neller\\","Meteorite_Stoenner","C:\\Essays\\Geo_Dating\\Neller\\Meteorite_Stoenner.pdf","D4","AA_Index.xlsm",{"$f":"B25 &  \", \" & D25 & \", \" & C25 & \", \" & E25","v":"Geochimica et Cosmochimica Acta, 1958, 15, Pages 40-50"},"K/Ar",21,5300,13000,7700,1.4528301886792452]
["Ar/Ar dating of inclusions from IAB iron meteorites","Geochimica et Cosmochimica Acta",43,1979,"Pages 1829-1840","C:\\Essays\\Geo_Dating\\Neller\\","Meteorite_NIEMEYER","C:\\Essays\\Geo_Dating\\Neller\\Meteorite_NIEMEYER.pdf","D6","AA_Index.xlsm",{"$f":"B26 &  \", \" & D26 & \", \" & C26 & \", \" & E26","v":"Geochimica et Cosmochimica Acta, 1979, 43, Pages 1829-1840"},"K/Ar",22,4460,9500,5040,1.1300448430493273]
["K/Ar Age Determinations of Iron Meteorites","Earth Planetary Science Letters",4,1968,"Pages 84-88","C:\\Essays\\Geo_Dating\\Neller\\","Meteorite_Kaiser","C:\\Essays\\Geo_Dating\\Neller\\Meteorite_Kaiser.pdf","D9","AA_Index.xlsm",{"$f":"B27 &  \", \" & D27 & \", \" & C27 & \", \" & E27","v":"Earth Planetary Science Letters, 1968, 4, Pages 84-88"},"K/Ar",23,4200,7400,3200,0.76190476190476186]
[null,null,null,null,null,null,null,null,null,null,null,"Total",null,{"$f":"MIN(N24:N27)","v":4200},{"$f":"MAX(O24:O27)","v":13000},8800,2.0952380952380953]
[null,null,null,null,null,null,null,null,null,null,null,"Method","Citation","Minimum","Maximum","Difference ","Ratio"]
["Upper Crust in North-East Australia","International Journal Earth Science",101,2012,"Pages 1091-1109","C:\\Essays\\Geo_Dating\\Neller\\","Older_Than_Earth_11","C:\\Essays\\Geo_Dating\\Neller\\Older_Than_Earth_11.pdf","O_6","AB_Index.xlsm",{"$f":"B30 &  \", \" & D30 & \", \" & C30 & \", \" & E30","v":"International Journal Earth Science, 2012, 101, Pages 1091-1109"},"Lu/Hf",27,-3220,3870,7090,2.201863354037267]
["Barren Miocene granitoids","Andean Geology",37,2010,"Pages 1-31","C:\\Essays\\Geo_Dating\\Neller\\","R1","C:\\Essays\\Geo_Dating\\Neller\\R1.pdf","R1","AB_Index.xlsm",{"$f":"B31 &  \", \" & D31 & \", \" & C31 & \", \" & E31","v":"Andean Geology, 2010, 37, Pages 1-31"},"Lu/Hf",68,-8800,-630,8170,0.92840909090909096]
["Mantle xenoliths from North Korea","Geology",38,2010,"Pages 799-802","C:\\Essays\\Geo_Dating\\Neller\\","R4","C:\\Essays\\Geo_Dating\\Neller\\R4.pdf","R4","AB_Index.xlsm",{"$f":"B32 &  \", \" & D32 & \", \" & C32 & \", \" & E32","v":"Geology, 2010, 38, Pages 799-802"},"Lu/Hf",71,-1649,8590,10239,6.2092177077016375]
["The Kaapvaal Cratonic Lithospheric Mantle","Journal Of Petrology",48,2007,"Pages 589-625","C:\\Essays\\Geo_Dating\\Neller\\","To_Old_01","C:\\Essays\\Geo_Dating\\Neller\\To_Old_01.pdf","T_1","AB_Index.xlsm",{"$f":"B33 &  \", \" & D33 & \", \" & C33 & \", \" & E33","v":"Journal Of Petrology, 2007, 48, Pages 589-625"},"Lu/Hf",86,-320,1730,2050,6.40625]
["Multi-stage origin of Roberts Victor eclogites","Lithos","142-143",2012,"Pages 161-181","C:\\Essays\\Geo_Dating\\Neller\\","Future_Ages_02","C:\\Essays\\Geo_Dating\\Neller\\Future_Ages_02.pdf","F02","AC_Index.xlsm",{"$f":"B34 &  \", \" & D34 & \", \" & C34 & \", \" & E34","v":"Lithos, 2012, 142-143, Pages 161-181"},"Lu/Hf",92,-12340,19870,32210,2.6102106969205834]
["Re–Os Evidence","Chemical Geology",236,2007,"Pages 323-338","C:\\Essays\\Geo_Dating\\Neller\\","Future_Ages_12","C:\\Essays\\Geo_Dating\\Neller\\Future_Ages_12.pdf","F12","AC_Index.xlsm",{"$f":"B35 &  \", \" & D35 & \", \" & C35 & \", \" & E35","v":"Chemical Geology, 2007, 236, Pages 323-338"},"Lu/Hf",101,-30,14650,14680,489.33333333333331]
["Central Asian Orogenic Belt","Lithos",126,2011,"Pages 233-247","C:\\Essays\\Geo_Dating\\Neller\\","Future_Ages_13","C:\\Essays\\Geo_Dating\\Neller\\Future_Ages_13.pdf","F13","AC_Index.xlsm",{"$f":"B36 &  \", \" & D36 & \", \" & C36 & \", \" & E36","v":"Lithos, 2011, 126, Pages 233-247"},"Lu/Hf",104,-9270,14650,23920,2.580366774541532]
[null,null,null,null,null,null,null,null,null,null,null,"Total",null,{"$f":"MIN(N30:N36)","v":-12340},{"$f":"MAX(O30:O36)","v":19870},32210,2.6102106969205834]
[null,null,null,null,null,null,null,null,null,null,null,"Method","Citation","Minimum","Maximum","Difference ","Ratio"]
["The Siberian Craton","Geochimica et Cosmochimica Acta",59,1995,"Pages 959-977","C:\\Essays\\Geo_Dating\\Neller\\","Older_Than_Earth_6","C:\\Essays\\Geo_Dating\\Neller\\Older_Than_Earth_6.pdf","A8","AA_Index.xlsm",{"$f":"B39 &  \", \" & D39 & \", \" & C39 & \", \" & E39","v":"Geochimica et Cosmochimica Acta, 1995, 59, Pages 959-977"},"Nd/Sm",38,-1,3200,3201,3201]
["African Peridotite Xenoliths","Geochimica et Cosmochimica Acta",53,1989,"Pages 1583-1595","C:\\Essays\\Geo_Dating\\Neller\\","Older_Than_Earth_5","C:\\Essays\\Geo_Dating\\Neller\\Older_Than_Earth_5.pdf","D2","AA_Index.xlsm",{"$f":"B40 &  \", \" & D40 & \", \" & C40 & \", \" & E40","v":"Geochimica et Cosmochimica Acta, 1989, 53, Pages 1583-1595"},"Nd/Sm",26,1070,12600,11530,10.77570093457944]
["Upper Crust in North-East Australia","International Journal Earth Science",101,2012,"Pages 1091-1109","C:\\Essays\\Geo_Dating\\Neller\\","Older_Than_Earth_11","C:\\Essays\\Geo_Dating\\Neller\\Older_Than_Earth_11.pdf","O_6","AB_Index.xlsm",{"$f":"B41 &  \", \" & D41 & \", \" & C41 & \", \" & E41","v":"International Journal Earth Science, 2012, 101, Pages 1091-1109"},"Nd/Sm",27,-800,9730,10530,13.1625]
["The Kaapvaal Cratonic Lithospheric Mantle","Journal Of Petrology",48,2007,"Pages 589-625","C:\\Essays\\Geo_Dating\\Neller\\","To_Old_01","C:\\Essays\\Geo_Dating\\Neller\\To_Old_01.pdf","T_1","AB_Index.xlsm",{"$f":"B42 &  \", \" & D42 & \", \" & C42 & \", \" & E42","v":"Journal Of Petrology, 2007, 48, Pages 589-625"},"Nd/Sm",86,-2247,96661,98908,44.017801513128617]
["Multi-stage origin of Roberts Victor eclogites","Lithos","142-143",2012,"Pages 161-181","C:\\Essays\\Geo_Dating\\Neller\\","Future_Ages_02","C:\\Essays\\Geo_Dating\\Neller\\Future_Ages_02.pdf","F02","AC_Index.xlsm",{"$f":"B43 &  \", \" & D43 & \", \" & C43 & \", \" & E43","v":"Lithos, 2012, 142-143, Pages 161-181"},"Nd/Sm",92,-22420,8100,30520,1.3612845673505798]
["Lu-Hf Geochronology","Chemical Geology",142,1997,"Pages 63-78","C:\\Essays\\Geo_Dating\\Neller\\","Future_Ages_08","C:\\Essays\\Geo_Dating\\Neller\\Future_Ages_08.pdf","F08","AC_Index.xlsm",{"$f":"B44 &  \", \" & D44 & \", \" & C44 & \", \" & E44","v":"Chemical Geology, 1997, 142, Pages 63-78"},"Nd/Sm",96,-659,1137,1796,2.725341426403642]
["Multiple Metasomatic Events","Lithos","112-S",2009,"Pages 896-912","C:\\Essays\\Geo_Dating\\Neller\\","Future_Ages_11","C:\\Essays\\Geo_Dating\\Neller\\Future_Ages_11.pdf","F11","AC_Index.xlsm",{"$f":"B45 &  \", \" & D45 & \", \" & C45 & \", \" & E45","v":"Lithos, 2009, 112-S, Pages 896-912"},"Nd/Sm",98,-2192,2013,4205,1.9183394160583942]
["Re–Os Evidence","Chemical Geology",236,2007,"Pages 323-338","C:\\Essays\\Geo_Dating\\Neller\\","Future_Ages_12","C:\\Essays\\Geo_Dating\\Neller\\Future_Ages_12.pdf","F12","AC_Index.xlsm",{"$f":"B46 &  \", \" & D46 & \", \" & C46 & \", \" & E46","v":"Chemical Geology, 2007, 236, Pages 323-338"},"Nd/Sm",101,820,5910,5090,6.2073170731707314]
["Central Asian Orogenic Belt","Lithos",126,2011,"Pages 233-247","C:\\Essays\\Geo_Dating\\Neller\\","Future_Ages_13","C:\\Essays\\Geo_Dating\\Neller\\Future_Ages_13.pdf","F13","AC_Index.xlsm",{"$f":"B47 &  \", \" & D47 & \", \" & C47 & \", \" & E47","v":"Lithos, 2011, 126, Pages 233-247"},"Nd/Sm",104,490,5910,5420,11.061224489795919]
[null,null,null,null,null,null,null,null,null,null,null,"Total",null,{"$f":"MIN(N39:N47)","v":-22420},{"$f":"MAX(O39:O47)","v":96661},119081,5.3113737734165927]
[null,null,null,null,null,null,null,null,null,null,null,"Method","Citation","Minimum","Maximum","Difference ","Ratio"]
["The Allende and Orgueil Chondrites ","Geochimica et Cosmochimica Acta",40,1976,"Pages 617-634","C:\\Essays\\Geo_Dating\\Neller\\","Meteorite_Tatsumoto","C:\\Essays\\Geo_Dating\\Neller\\Meteorite_Tatsumoto.pdf","C8","AA_Index.xlsm",{"$f":"B50 &  \", \" & D50 & \", \" & C50 & \", \" & E50","v":"Geochimica et Cosmochimica Acta, 1976, 40, Pages 617-634"},"Pb/Pb",62,4467,4569,102,2.2834116856950974E-2]
["Silica Mineral Formation","Geochimica et Cosmochimica Acta",67,2003,"Pages 1145-1176","C:\\Essays\\Geo_Dating\\Neller\\","Amelin_G","C:\\Essays\\Geo_Dating\\Neller\\Amelin_G.pdf","E5","AA_Index.xlsm",{"$f":"B51 &  \", \" & D51 & \", \" & C51 & \", \" & E51","v":"Geochimica et Cosmochimica Acta, 2003, 67, Pages 1145-1176"},"Pb/Pb",29,-3879,11,3890,1.0028357824181491]
[null,null,null,null,null,null,null,null,null,null,null,"Total",null,{"$f":"MIN(N50:N51)","v":-3879},{"$f":"MAX(O50:O51)","v":4569},8448,2.1778808971384378]
[null,null,null,null,null,null,null,null,null,null,null,"Method","Citation","Minimum","Maximum","Difference ","Ratio"]
["The Siberian Craton","Geochimica et Cosmochimica Acta",59,1995,"Pages 959-977","C:\\Essays\\Geo_Dating\\Neller\\","Older_Than_Earth_6","C:\\Essays\\Geo_Dating\\Neller\\Older_Than_Earth_6.pdf","A8","AA_Index.xlsm",{"$f":"B54 &  \", \" & D54 & \", \" & C54 & \", \" & E54","v":"Geochimica et Cosmochimica Acta, 1995, 59, Pages 959-977"},"Rb/Sr",38,5445,12716,7271,1.3353535353535353]
["Rb-Sr Ages Of Iron Meteorites","Earth Planetary Science Letters",2,1967,"Pages 397-408","C:\\Essays\\Geo_Dating\\Neller\\","Meteorite_Burnett","C:\\Essays\\Geo_Dating\\Neller\\Meteorite_Burnett.pdf","A9","AA_Index.xlsm",{"$f":"B55 &  \", \" & D55 & \", \" & C55 & \", \" & E55","v":"Earth Planetary Science Letters, 1967, 2, Pages 397-408"},"Rb/Sr",31,3700,9300,5600,1.5135135135135136]
["Isotopic discrepancies in Black Hills, South Dakota","Geochimica et Cosmochimica Acta",34,1970,"Pages 713-725","C:\\Essays\\Geo_Dating\\Neller\\","Riley","C:\\Essays\\Geo_Dating\\Neller\\Riley.pdf","B3","AA_Index.xlsm",{"$f":"B56 &  \", \" & D56 & \", \" & C56 & \", \" & E56","v":"Geochimica et Cosmochimica Acta, 1970, 34, Pages 713-725"},"Rb/Sr",32,1400,900000,898600,641.85714285714289]
["Rhenium-187-Osmium-187 in iron meteorites","Meteoritics And Planetary Science",33,1998,"Pages 647-653","C:\\Essays\\Geo_Dating\\Neller\\","Meteorite_Birck","C:\\Essays\\Geo_Dating\\Neller\\Meteorite_Birck.pdf","B9","AA_Index.xlsm",{"$f":"B57 &  \", \" & D57 & \", \" & C57 & \", \" & E57","v":"Meteoritics And Planetary Science, 1998, 33, Pages 647-653"},"Rb/Sr",33,1180,13700,12520,10.610169491525424]
["Antarctic LL-chondrites","Geochimica et Cosmochimica Acta",54,1990,"Pages 3509-3523","C:\\Essays\\Geo_Dating\\Neller\\","Meteorite_Okano","C:\\Essays\\Geo_Dating\\Neller\\Meteorite_Okano.pdf","C9","AA_Index.xlsm",{"$f":"B58 &  \", \" & D58 & \", \" & C58 & \", \" & E58","v":"Geochimica et Cosmochimica Acta, 1990, 54, Pages 3509-3523"},"Rb/Sr",34,3110,7330,4220,1.3569131832797428]
["North Western Wyoming Craton","Earth Planetary Science Letters",126,1994,"Pages 457-472","C:\\Essays\\Geo_Dating\\Neller\\","Older_Than_Earth_2","C:\\Essays\\Geo_Dating\\Neller\\Older_Than_Earth_2.pdf","D3","AA_Index.xlsm",{"$f":"B59 &  \", \" & D59 & \", \" & C59 & \", \" & E59","v":"Earth Planetary Science Letters, 1994, 126, Pages 457-472"},"Rb/Sr",35,-3440,15500,18940,5.5058139534883717]
["Age and Origin of Base and Precious Metal","Economic Geology",97,2002,"Pages 35-37","C:\\Essays\\Geo_Dating\\Neller\\","Ages_001","C:\\Essays\\Geo_Dating\\Neller\\Ages_001.pdf","D5","AA_Index.xlsm",{"$f":"B60 &  \", \" & D60 & \", \" & C60 & \", \" & E60","v":"Economic Geology, 2002, 97, Pages 35-37"},"Rb/Sr",36,79,23312,23233,294.08860759493672]
["Rb-Sr And Sm-Nd Studies","Chemical Geology",52,1985,"Pages 249-271","C:\\Essays\\Geo_Dating\\Neller\\","To_Old_06","C:\\Essays\\Geo_Dating\\Neller\\To_Old_06.pdf","T_3","AB_Index.xlsm",{"$f":"B61 &  \", \" & D61 & \", \" & C61 & \", \" & E61","v":"Chemical Geology, 1985, 52, Pages 249-271"},"Rb/Sr",88,267,20000,19733,73.906367041198507]
["Norwegian Caledonides: An isotopic investigation","Lithos",117,2010,"Pages 1-19","C:\\Essays\\Geo_Dating\\Neller\\","Future_Ages_01","C:\\Essays\\Geo_Dating\\Neller\\Future_Ages_01.pdf","F01","AC_Index.xlsm",{"$f":"B62 &  \", \" & D62 & \", \" & C62 & \", \" & E62","v":"Lithos, 2010, 117, Pages 1-19"},"Rb/Sr",89,-31071,76523,107594,3.4628431656528598]
["Multi-stage origin of Roberts Victor eclogites","Lithos","142-143",2012,"Pages 161-181","C:\\Essays\\Geo_Dating\\Neller\\","Future_Ages_02","C:\\Essays\\Geo_Dating\\Neller\\Future_Ages_02.pdf","F02","AC_Index.xlsm",{"$f":"B63 &  \", \" & D63 & \", \" & C63 & \", \" & E63","v":"Lithos, 2012, 142-143, Pages 161-181"},"Rb/Sr",92,32,6874,6842,213.8125]
["Isotopic Disequilibrium","Chemical Geology",162,2000,"Pages 169-191","C:\\Essays\\Geo_Dating\\Neller\\","Future_Ages_09","C:\\Essays\\Geo_Dating\\Neller\\Future_Ages_09.pdf","F09","AC_Index.xlsm",{"$f":"B64 &  \", \" & D64 & \", \" & C64 & \", \" & E64","v":"Chemical Geology, 2000, 162, Pages 169-191"},"Rb/Sr",97,-15,201,216,14.4]
[null,null,null,null,null,null,null,null,null,null,null,"Total",null,{"$f":"MIN(N54:N64)","v":-31071},{"$f":"MAX(O54:O64)","v":900000},931071,29.96591677126581]
[null,null,null,null,null,null,null,null,null,null,null,"Method",null,"Minimum","Maximum","Difference ","Ratio"]
["Canadian Cordillera lithosphere","Chemical Geology",166,2000,"Pages 85-101",{"$f":" \"C:\\Essays\\Geo_Dating\\Neller\\\"","v":"C:\\Essays\\Geo_Dating\\Neller\\"},"Older_Than_Earth_09",{"$f":" \"C:\\Essays\\Geo_Dating\\Neller\\\" & G67 & \".pdf\"","v":"C:\\Essays\\Geo_Dating\\Neller\\Older_Than_Earth_09.pdf"},"O_5","AB_Index.xlsm",{"$f":"B67 &  \", \" & D67 & \", \" & C67 & \", \" & E67","v":"Chemical Geology, 2000, 166, Pages 85-101"},"Re/Os",55,-1,748,{"$f":"O67-N67","v":749},{"$f":"ABS(P67/N67)","v":749}]
["The Mamonia complex, Cyprus","Chemical Geology",248,2008,"Pages 195-212","C:\\Essays\\Geo_Dating\\Neller\\","Future_Ages_14","C:\\Essays\\Geo_Dating\\Neller\\Future_Ages_14.pdf","F14","AC_Index.xlsm",{"$f":"B68 &  \", \" & D68 & \", \" & C68 & \", \" & E68","v":"Chemical Geology, 2008, 248, Pages 195-212"},"Re/Os",105,-1,1550,1551,1551]
["The western North China Craton","Lithos",149,2012,"Pages 100-114","C:\\Essays\\Geo_Dating\\Neller\\","RF","C:\\Essays\\Geo_Dating\\Neller\\RF.pdf","RF","AB_Index.xlsm",{"$f":"B69 &  \", \" & D69 & \", \" & C69 & \", \" & E69","v":"Lithos, 2012, 149, Pages 100-114"},"Re/Os",82,-1,2240,2241,2241]
["The Study of Molybdenites","Earth Planetary Science Letters",61,1982,"Pages 291-296","C:\\Essays\\Geo_Dating\\Neller\\","Older_Than_Earth_7","C:\\Essays\\Geo_Dating\\Neller\\Older_Than_Earth_7.pdf","C0","AA_Index.xlsm",{"$f":"B70 &  \", \" & D70 & \", \" & C70 & \", \" & E70","v":"Earth Planetary Science Letters, 1982, 61, Pages 291-296"},"Re/Os",39,2700,5800,3100,1.1481481481481481]
["Reliable Re-Os Ages","Geochimica et Cosmochimica Acta",57,1993,"Pages 1625-1628","C:\\Essays\\Geo_Dating\\Neller\\","Older_Than_Earth_8","C:\\Essays\\Geo_Dating\\Neller\\Older_Than_Earth_8.pdf","C4","AA_Index.xlsm",{"$f":"B71 &  \", \" & D71 & \", \" & C71 & \", \" & E71","v":"Geochimica et Cosmochimica Acta, 1993, 57, Pages 1625-1628"},"Re/Os",40,2655,6300,3645,1.3728813559322033]
["Re-Os systematics of mantle xenoliths","Geochimica et Cosmochimica Acta",63,1999,"Pages 1203-1217","C:\\Essays\\Geo_Dating\\Neller\\","Future_Ages_03","C:\\Essays\\Geo_Dating\\Neller\\Future_Ages_03.pdf","F03","AC_Index.xlsm",{"$f":"B72 &  \", \" & D72 & \", \" & C72 & \", \" & E72","v":"Geochimica et Cosmochimica Acta, 1999, 63, Pages 1203-1217"},"Re/Os",93,-1,4000,4001,4001]
["Northern Canadian Cordillera Xenoliths","Geochimica et Cosmochimica Acta",64,2000,"Pages 3061-3071","C:\\Essays\\Geo_Dating\\Neller\\","Future_Ages_17","C:\\Essays\\Geo_Dating\\Neller\\Future_Ages_17.pdf","F17","AC_Index.xlsm",{"$f":"B73 &  \", \" & D73 & \", \" & C73 & \", \" & E73","v":"Geochimica et Cosmochimica Acta, 2000, 64, Pages 3061-3071"},"Re/Os",107,-1,4500,4501,4501]
["Single abyssal peridotite sulfides","Earth Planetary Science Letters",359,2012,"Pages 279-293","C:\\Essays\\Geo_Dating\\Neller\\","RG","C:\\Essays\\Geo_Dating\\Neller\\RG.pdf","RG","AB_Index.xlsm",{"$f":"B74 &  \", \" & D74 & \", \" & C74 & \", \" & E74","v":"Earth Planetary Science Letters, 2012, 359, Pages 279-293"},"Re/Os",83,-2500,2800,5300,2.12]
["The Age of Continental Roots","Lithos",48,1999,"Pages 171-194","C:\\Essays\\Geo_Dating\\Neller\\","Greater_Than_Earth_05","C:\\Essays\\Geo_Dating\\Neller\\Greater_Than_Earth_05.pdf","G5","AB_Index.xlsm",{"$f":"B75 &  \", \" & D75 & \", \" & C75 & \", \" & E75","v":"Lithos, 1999, 48, Pages 171-194"},"Re/Os",51,2780,8380,5600,2.014388489208633]
["Re-Os systematics of peridotites","Journal of the Geological Society",168,2011,"Pages 1201-1214","C:\\Essays\\Geo_Dating\\Neller\\","RA","C:\\Essays\\Geo_Dating\\Neller\\RA.pdf","RA","AB_Index.xlsm",{"$f":"B76 &  \", \" & D76 & \", \" & C76 & \", \" & E76","v":"Journal of the Geological Society, 2011, 168, Pages 1201-1214"},"Re/Os",77,-2860,2820,5680,1.986013986013986]
["Lithospheric Mantle and Diamonds ","Lithos","112-S",2009,"Pages 1120-1132","C:\\Essays\\Geo_Dating\\Neller\\","Older_Than_Earth_12","C:\\Essays\\Geo_Dating\\Neller\\Older_Than_Earth_12.pdf","O_7","AB_Index.xlsm",{"$f":"B77 &  \", \" & D77 & \", \" & C77 & \", \" & E77","v":"Lithos, 2009, 112-S, Pages 1120-1132"},"Re/Os",56,1980,7850,5870,2.9646464646464645]
["Osmium Isotopes ","Chemical Geology",130,1996,"Pages 55-64","C:\\Essays\\Geo_Dating\\Neller\\","Greater_Than_Earth_01","C:\\Essays\\Geo_Dating\\Neller\\Greater_Than_Earth_01.pdf","G1","AB_Index.xlsm",{"$f":"B78 &  \", \" & D78 & \", \" & C78 & \", \" & E78","v":"Chemical Geology, 1996, 130, Pages 55-64"},"Re/Os",49,90,6900,6810,75.666666666666671]
["Principles of Re-Os Isotopic System","Journal Petrology Society Korea",15,2006,"Pages 106-117","C:\\Essays\\Geo_Dating\\Neller\\","RE","C:\\Essays\\Geo_Dating\\Neller\\RE.pdf","RE","AB_Index.xlsm",{"$f":"B79 &  \", \" & D79 & \", \" & C79 & \", \" & E79","v":"Journal Petrology Society Korea, 2006, 15, Pages 106-117"},"Re/Os",81,-770,6790,7560,9.8181818181818183]
["Isotopic signatures in Zealandia ","Geology",null,2012,"Pages 1-19","C:\\Essays\\Geo_Dating\\Neller\\","R3","C:\\Essays\\Geo_Dating\\Neller\\R3.pdf","R3","AB_Index.xlsm",{"$f":"B80 &  \", \" & D80 & \", \" & C80 & \", \" & E80","v":"Geology, 2012, , Pages 1-19"},"Re/Os",70,-6240,3510,9750,1.5625]
["The Scottish margin of the North Atlantic Craton","Precambrian Research",250,2014,"Pages 97-126","C:\\Essays\\Geo_Dating\\Neller\\","R8","C:\\Essays\\Geo_Dating\\Neller\\R8.pdf","R8","AB_Index.xlsm",{"$f":"B81 &  \", \" & D81 & \", \" & C81 & \", \" & E81","v":"Precambrian Research, 2014, 250, Pages 97-126"},"Re/Os",75,-7307,3505,10812,1.4796770220336664]
["Constraints on mantle processes and late ","University Berlin, Thesis",null,2014,"Pages 1-168","C:\\Essays\\Geo_Dating\\Neller\\","RB","C:\\Essays\\Geo_Dating\\Neller\\RB.pdf","RB","AB_Index.xlsm",{"$f":"B82 &  \", \" & D82 & \", \" & C82 & \", \" & E82","v":"University Berlin, Thesis, 2014, , Pages 1-168"},"Re/Os",78,-9260,1620,10880,1.1749460043196545]
["The Siberian Craton","Geochimica et Cosmochimica Acta",59,1995,"Pages 959-977","C:\\Essays\\Geo_Dating\\Neller\\","Older_Than_Earth_6","C:\\Essays\\Geo_Dating\\Neller\\Older_Than_Earth_6.pdf","A8","AA_Index.xlsm",{"$f":"B83 &  \", \" & D83 & \", \" & C83 & \", \" & E83","v":"Geochimica et Cosmochimica Acta, 1995, 59, Pages 959-977"},"Re/Os",38,-1,11000,11001,11001]
["Re–Os Isotopic Results","Chemical Geology",291,2012,"Pages 186–198","C:\\Essays\\Geo_Dating\\Neller\\","Future_Ages_006","C:\\Essays\\Geo_Dating\\Neller\\Future_Ages_006.pdf","F3","AA_Index.xlsm",{"$f":"B84 &  \", \" & D84 & \", \" & C84 & \", \" & E84","v":"Chemical Geology, 2012, 291, Pages 186–198"},"Re/Os",46,-675,10430,11105,16.451851851851853]
["Hebi, North China Craton","Chemical Geology",328,2012,"Pages 123–136","C:\\Essays\\Geo_Dating\\Neller\\","Future_Ages_005","C:\\Essays\\Geo_Dating\\Neller\\Future_Ages_005.pdf","F2","AA_Index.xlsm",{"$f":"B85 &  \", \" & D85 & \", \" & C85 & \", \" & E85","v":"Chemical Geology, 2012, 328, Pages 123–136"},"Re/Os",45,-3100,8400,11500,3.7096774193548385]
["Early Archean partial melting events","University Bonn, Thesis",null,2004,"Pages 1-132","C:\\Essays\\Geo_Dating\\Neller\\","R2","C:\\Essays\\Geo_Dating\\Neller\\R2.pdf","R2","AB_Index.xlsm",{"$f":"B86 &  \", \" & D86 & \", \" & C86 & \", \" & E86","v":"University Bonn, Thesis, 2004, , Pages 1-132"},"Re/Os",69,-8620,3220,11840,1.3735498839907192]
["Rocks From the Earth’s Mantle","University Berlin, Thesis",null,2013,"Pages 1-186","C:\\Essays\\Geo_Dating\\Neller\\","TRD_06","C:\\Essays\\Geo_Dating\\Neller\\TRD_06.pdf","E9","AA_Index.xlsm",{"$f":"B87 &  \", \" & D87 & \", \" & C87 & \", \" & E87","v":"University Berlin, Thesis, 2013, , Pages 1-186"},"Re/Os",44,-9260,3200,12460,1.3455723542116631]
["North Patagonian Mantle Xenoliths","Journal of Petrology",57,2016,"Pages 685-715","C:\\Essays\\Geo_Dating\\Neller\\","R6","C:\\Essays\\Geo_Dating\\Neller\\R6.pdf","R6","AB_Index.xlsm",{"$f":"B88 &  \", \" & D88 & \", \" & C88 & \", \" & E88","v":"Journal of Petrology, 2016, 57, Pages 685-715"},"Re/Os",73,-2400,10700,13100,5.458333333333333]
["A Paleozoic Convergent Plate","Chemical Geology",208,2004,"Pages 141-156","C:\\Essays\\Geo_Dating\\Neller\\","Future_Ages_16","C:\\Essays\\Geo_Dating\\Neller\\Future_Ages_16.pdf","F16","AC_Index.xlsm",{"$f":"B89 &  \", \" & D89 & \", \" & C89 & \", \" & E89","v":"Chemical Geology, 2004, 208, Pages 141-156"},"Re/Os",106,-4300,9100,13400,3.1162790697674421]
["Re–Os Evidence","Chemical Geology",236,2007,"Pages 323-338","C:\\Essays\\Geo_Dating\\Neller\\","Future_Ages_12","C:\\Essays\\Geo_Dating\\Neller\\Future_Ages_12.pdf","F12","AC_Index.xlsm",{"$f":"B90 &  \", \" & D90 & \", \" & C90 & \", \" & E90","v":"Chemical Geology, 2007, 236, Pages 323-338"},"Re/Os",101,-3830,10620,14450,3.7728459530026108]
["Central Asian Orogenic Belt","Lithos",126,2011,"Pages 233-247","C:\\Essays\\Geo_Dating\\Neller\\","Future_Ages_13","C:\\Essays\\Geo_Dating\\Neller\\Future_Ages_13.pdf","F13","AC_Index.xlsm",{"$f":"B91 &  \", \" & D91 & \", \" & C91 & \", \" & E91","v":"Lithos, 2011, 126, Pages 233-247"},"Re/Os",104,-3830,10620,14450,3.7728459530026108]
["In situ Measurement of Re-Os Isotopes","Geochimica et Cosmochimica Acta",66,2002,"Pages 1037-1050","C:\\Essays\\Geo_Dating\\Neller\\","Future_Ages_26","C:\\Essays\\Geo_Dating\\Neller\\Future_Ages_26.pdf","F26","AC_Index.xlsm",{"$f":"B92 &  \", \" & D92 & \", \" & C92 & \", \" & E92","v":"Geochimica et Cosmochimica Acta, 2002, 66, Pages 1037-1050"},"Re/Os",110,-7120,7690,14810,2.0800561797752808]
["The age of Lithospheric Mantle","Chemical Geology",196,2003,"Pages 107–129","C:\\Essays\\Geo_Dating\\Neller\\","Future_Ages_008","C:\\Essays\\Geo_Dating\\Neller\\Future_Ages_008.pdf","F5","AA_Index.xlsm",{"$f":"B93 &  \", \" & D93 & \", \" & C93 & \", \" & E93","v":"Chemical Geology, 2003, 196, Pages 107–129"},"Re/Os",48,150,15410,15260,101.73333333333333]
["Stabilisation of Archaean lithosphere","Earth Planetary Science Letters",134,1995,"Pages 341-357","C:\\Essays\\Geo_Dating\\Neller\\","Pearson","C:\\Essays\\Geo_Dating\\Neller\\Pearson.pdf","A7","AA_Index.xlsm",{"$f":"B94 &  \", \" & D94 & \", \" & C94 & \", \" & E94","v":"Earth Planetary Science Letters, 1995, 134, Pages 341-357"},"Re/Os",37,100,15600,15500,155]
["Xenoliths from Yangyuan and Fansi","Lithos",102,2008,"Pages 25-42","C:\\Essays\\Geo_Dating\\Neller\\","Future_Ages_19","C:\\Essays\\Geo_Dating\\Neller\\Future_Ages_19.pdf","F19","AC_Index.xlsm",{"$f":"B95 &  \", \" & D95 & \", \" & C95 & \", \" & E95","v":"Lithos, 2008, 102, Pages 25-42"},"Re/Os",108,-10800,9700,20500,1.8981481481481481]
["Formation of the North Atlantic Craton","Chemical Geology",276,2010,"Pages 166-187","C:\\Essays\\Geo_Dating\\Neller\\","Future_Ages_21","C:\\Essays\\Geo_Dating\\Neller\\Future_Ages_21.pdf","F21","AC_Index.xlsm",{"$f":"B96 &  \", \" & D96 & \", \" & C96 & \", \" & E96","v":"Chemical Geology, 2010, 276, Pages 166-187"},"Re/Os",109,-14258,6994,21252,1.4905316313648478]
["Age and geochemistry of lithospheric mantle","University Maryland, Thesis",null,2015,"Pages 1-17","C:\\Essays\\Geo_Dating\\Neller\\","R7","C:\\Essays\\Geo_Dating\\Neller\\R7.pdf","R7","AB_Index.xlsm",{"$f":"B97 &  \", \" & D97 & \", \" & C97 & \", \" & E97","v":"University Maryland, Thesis, 2015, , Pages 1-17"},"Re/Os",74,-2080,21500,23580,11.336538461538462]
["The Raobazhai peridotite massifs","Chemical Geology",268,2009,"Pages 1-14","C:\\Essays\\Geo_Dating\\Neller\\","Future_Ages_04","C:\\Essays\\Geo_Dating\\Neller\\Future_Ages_04.pdf","F04","AC_Index.xlsm",{"$f":"B98 &  \", \" & D98 & \", \" & C98 & \", \" & E98","v":"Chemical Geology, 2009, 268, Pages 1-14"},"Re/Os",94,-27744,3094,30838,1.1115196078431373]
["Lithospheric Mantle Evolution ","Lithos",125,2011,"Pages 405–422",{"$f":" \"C:\\Essays\\Geo_Dating\\Neller\\\"","v":"C:\\Essays\\Geo_Dating\\Neller\\"},"Older_Than_Earth_07","C:\\Essays\\Geo_Dating\\Neller\\Older_Than_Earth_07.pdf","F4","AA_Index.xlsm",{"$f":"B99 &  \", \" & D99 & \", \" & C99 & \", \" & E99","v":"Lithos, 2011, 125, Pages 405–422"},"Re/Os",47,-24710,8620,33330,1.348846620801295]
["The Kaapvaal Cratonic Lithospheric Mantle","Journal Of Petrology",48,2007,"Pages 589-625","C:\\Essays\\Geo_Dating\\Neller\\","To_Old_01","C:\\Essays\\Geo_Dating\\Neller\\To_Old_01.pdf","T_1","AB_Index.xlsm",{"$f":"B100 &  \", \" & D100 & \", \" & C100 & \", \" & E100","v":"Journal Of Petrology, 2007, 48, Pages 589-625"},"Re/Os",86,600,34600,34000,56.666666666666664]
["Rhenium/Osmium Geochronology of Oxide Minerals","University Alberta, Thesis",null,2010,"Pages 1-152","C:\\Essays\\Geo_Dating\\Neller\\","TRD_05","C:\\Essays\\Geo_Dating\\Neller\\TRD_05.pdf","E8","AA_Index.xlsm",{"$f":"B101 &  \", \" & D101 & \", \" & C101 & \", \" & E101","v":"University Alberta, Thesis, 2010, , Pages 1-152"},"Re/Os",43,-3700,38190,41890,11.321621621621622]
["Diamond Formation Episodes ","Contributions Mineral Petrology",157,2009,"Pages 525–540","C:\\Essays\\Geo_Dating\\Neller\\","Older_Than_Earth_03","C:\\Essays\\Geo_Dating\\Neller\\Older_Than_Earth_03.pdf","O_3","AB_Index.xlsm",{"$f":"B102 &  \", \" & D102 & \", \" & C102 & \", \" & E102","v":"Contributions Mineral Petrology, 2009, 157, Pages 525–540"},"Re/Os",53,-51000,10300,61300,1.2019607843137254]
["In Situ Analysis of Sulphides","Earth Planetary Science Letters",203,2002,"Pages 651-663","C:\\Essays\\Geo_Dating\\Neller\\","To_Old_03","C:\\Essays\\Geo_Dating\\Neller\\To_Old_03.pdf","T_2","AB_Index.xlsm",{"$f":"B103 &  \", \" & D103 & \", \" & C103 & \", \" & E103","v":"Earth Planetary Science Letters, 2002, 203, Pages 651-663"},"Re/Os",87,-32000,34000,66000,2.0625]
["Xenoliths from the Bohemian Massif","Chemical Geology",430,2016,"Pages 90-107","C:\\Essays\\Geo_Dating\\Neller\\","R9","C:\\Essays\\Geo_Dating\\Neller\\R9.pdf","R9","AB_Index.xlsm",{"$f":"B104 &  \", \" & D104 & \", \" & C104 & \", \" & E104","v":"Chemical Geology, 2016, 430, Pages 90-107"},"Re/Os",76,-1,68000,68001,68001]
["The North China Craton","University Maryland, Thesis",null,2011,"Pages 1-238","C:\\Essays\\Geo_Dating\\Neller\\","TRD_04","C:\\Essays\\Geo_Dating\\Neller\\TRD_04.pdf","E7","AA_Index.xlsm",{"$f":"B105 &  \", \" & D105 & \", \" & C105 & \", \" & E105","v":"University Maryland, Thesis, 2011, , Pages 1-238"},"Re/Os",42,-30000,40000,70000,2.3333333333333335]
["Archean Man Shield, West Africa","Precambrian Research",118,2002,"Pages 267-283","C:\\Essays\\Geo_Dating\\Neller\\","Older_Than_Earth_05","C:\\Essays\\Geo_Dating\\Neller\\Older_Than_Earth_05.pdf","O_2","AB_Index.xlsm",{"$f":"B106 &  \", \" & D106 & \", \" & C106 & \", \" & E106","v":"Precambrian Research, 2002, 118, Pages 267-283"},"Re/Os",52,1390,77160,75770,54.510791366906474]
["Evolution of the South China Block","Geochimica et Cosmochimica Acta",73,2009,"Pages 4531–4557","C:\\Essays\\Geo_Dating\\Neller\\","TRD_03","C:\\Essays\\Geo_Dating\\Neller\\TRD_03.pdf","E6","AA_Index.xlsm",{"$f":"B107 &  \", \" & D107 & \", \" & C107 & \", \" & E107","v":"Geochimica et Cosmochimica Acta, 2009, 73, Pages 4531–4557"},"Re/Os",41,-59500,25900,85400,1.4352941176470588]
["Re–Os isotope constraints","Earth and Planetary Science Letters",268,2008,"Pages 89-101","C:\\Essays\\Geo_Dating\\Neller\\","EPSL_268.89","C:\\Essays\\Geo_Dating\\Neller\\EPSL_268.89.pdf","F01","AD_Index.xlsm",{"$f":"B108 &  \", \" & D108 & \", \" & C108 & \", \" & E108","v":"Earth and Planetary Science Letters, 2008, 268, Pages 89-101"},"Re/Os",111,30,52250,52220,1740.6666666666667]
["Highly siderophile element fractionations","Earth and Planetary Science Letters",297,2010,"Pages 287–297","C:\\Essays\\Geo_Dating\\Neller\\","EPSL_297.287","C:\\Essays\\Geo_Dating\\Neller\\EPSL_297.287.pdf","F02","AD_Index.xlsm",{"$f":"B109 &  \", \" & D109 & \", \" & C109 & \", \" & E109","v":"Earth and Planetary Science Letters, 2010, 297, Pages 287–297"},"Re/Os",112,-8600,40000,48600,5.6511627906976747]
["Archean mantle residues","Earth and Planetary Science Letters",424,2015,"Pages 109-118","C:\\Essays\\Geo_Dating\\Neller\\","EPSL_424.109","C:\\Essays\\Geo_Dating\\Neller\\EPSL_424.109.pdf","F03","AD_Index.xlsm",{"$f":"B110 &  \", \" & D110 & \", \" & C110 & \", \" & E110","v":"Earth and Planetary Science Letters, 2015, 424, Pages 109-118"},"Re/Os",113,-11800,27500,39300,3.3305084745762712]
["Xenoliths from the Obnazhennaya kimberlite","Earth and Planetary Science Letters",428,2015,"Pages 108-119","C:\\Essays\\Geo_Dating\\Neller\\","EPSL_428.108","C:\\Essays\\Geo_Dating\\Neller\\EPSL_428.108.pdf","F04","AD_Index.xlsm",{"$f":"B111 &  \", \" & D111 & \", \" & C111 & \", \" & E111","v":"Earth and Planetary Science Letters, 2015, 428, Pages 108-119"},"Re/Os",114,-4040,8520,12560,3.108910891089109]
["Osmium mass balance in peridotite","Geochimica et Cosmochimica Acta",75,2011,"Pages 5574-5596","C:\\Essays\\Geo_Dating\\Neller\\","GCA_075.5574","C:\\Essays\\Geo_Dating\\Neller\\GCA_075.5574.pdf","F05","AD_Index.xlsm",{"$f":"B112 &  \", \" & D112 & \", \" & C112 & \", \" & E112","v":"Geochimica et Cosmochimica Acta, 2011, 75, Pages 5574-5596"},"Re/Os",115,-1,1640,1641,1641]
["Mantle keel beneath West Greenland","Geochimica et Cosmochimica Acta",203,2017,"Pages 37-53","C:\\Essays\\Geo_Dating\\Neller\\","GCA_203.37","C:\\Essays\\Geo_Dating\\Neller\\GCA_203.37.pdf","F06","AD_Index.xlsm",{"$f":"B113 &  \", \" & D113 & \", \" & C113 & \", \" & E113","v":"Geochimica et Cosmochimica Acta, 2017, 203, Pages 37-53"},"Re/Os",116,-11275,3426,14701,1.3038580931263859]
["Re/Os Isotopes of Sulfides ","Lithos",102,2008,"Pages 43-64","C:\\Essays\\Geo_Dating\\Neller\\","Older_Than_Earth_04","C:\\Essays\\Geo_Dating\\Neller\\Older_Than_Earth_04.pdf","O_4","AB_Index.xlsm",{"$f":"B114 &  \", \" & D114 & \", \" & C114 & \", \" & E114","v":"Lithos, 2008, 102, Pages 43-64"},"Re/Os",54,-47693,39229,86922,1.8225316084121359]
["Re-Os Geochronology of Oxide Minerals","University Alberta, Thesis",null,2010,"Pages 1-153","C:\\Essays\\Geo_Dating\\Neller\\","R5","C:\\Essays\\Geo_Dating\\Neller\\R5.pdf","R5","AB_Index.xlsm",{"$f":"B115 &  \", \" & D115 & \", \" & C115 & \", \" & E115","v":"University Alberta, Thesis, 2010, , Pages 1-153"},"Re/Os",72,{"$f":"MIN(N96:N114)","v":-59500},38190,97690,1.6418487394957983]
["The Taitao Ophiolite, Southern Chile","University Maryland, Thesis",null,2007,"Pages 1-117","C:\\Essays\\Geo_Dating\\Neller\\","RC","C:\\Essays\\Geo_Dating\\Neller\\RC.pdf","RC","AB_Index.xlsm",{"$f":"B116 &  \", \" & D116 & \", \" & C116 & \", \" & E116","v":"University Maryland, Thesis, 2007, , Pages 1-117"},"Re/Os",79,-111000,1500,112500,1.0135135135135136]
["In situ Re–Os evidence","Journal of Asian Earth Sciences",62,2013,"Pages 37-50","C:\\Essays\\Geo_Dating\\Neller\\","Future_Ages_07","C:\\Essays\\Geo_Dating\\Neller\\Future_Ages_07.pdf","F07","AC_Index.xlsm",{"$f":"B117 &  \", \" & D117 & \", \" & C117 & \", \" & E117","v":"Journal of Asian Earth Sciences, 2013, 62, Pages 37-50"},"Re/Os",95,-79140,144550,223690,2.8265099823098305]
["Evolution Beneath the Kaapvaal Craton","Chemical Geology",208,2004,"Pages 89-118",{"$f":" \"C:\\Essays\\Geo_Dating\\Neller\\\"","v":"C:\\Essays\\Geo_Dating\\Neller\\"},"Greater_Than_Earth_02","C:\\Essays\\Geo_Dating\\Neller\\Greater_Than_Earth_02.pdf","G2","AB_Index.xlsm",{"$f":"B118 &  \", \" & D118 & \", \" & C118 & \", \" & E118","v":"Chemical Geology, 2004, 208, Pages 89-118"},"Re/Os",50,-279000,79000,358000,1.2831541218637992]
["Samarium/Neodymium geochronology","University Boston, Thesis",null,2014,"Pages 1-207",{"$f":" \"C:\\Essays\\Geo_Dating\\Neller\\\"","v":"C:\\Essays\\Geo_Dating\\Neller\\"},"RD","C:\\Essays\\Geo_Dating\\Neller\\RD.pdf","RD","AB_Index.xlsm",{"$f":"B119 &  \", \" & D119 & \", \" & C119 & \", \" & E119","v":"University Boston, Thesis, 2014, , Pages 1-207"},"Re/Os",80,-15000001,14999999,30000000,1.9999998666666756]
[null,null,null,null,null,null,null,null,null,null,null,"Total",null,{"$f":"MIN(N67:N119)","v":-15000001},{"$f":"MAX(O67:O119)","v":14999999},30000000,1.9999998666666756]
[null,null,null,null,null,null,null,null,null,null,null,"Method",null,"Minimum","Maximum","Difference ","Ratio"]
["Three Apollo 14 Basalts","Earth Planetary Science Letters",14,1972,"Pages 281-304.",{"$f":" \"C:\\Essays\\Geo_Dating\\Neller\\\"","v":"C:\\Essays\\Geo_Dating\\Neller\\"},"Wasserburg",{"$f":" \"C:\\Essays\\Geo_Dating\\Neller\\\" & G122 & \".pdf\"","v":"C:\\Essays\\Geo_Dating\\Neller\\Wasserburg.pdf"},"B4","AA_Index.xlsm",{"$f":"B122 &  \", \" & D122 & \", \" & C122 & \", \" & E122","v":"Earth Planetary Science Letters, 1972, 14, Pages 281-304."},"Th/Pb",57,4010,28140,{"$f":"O122-N122","v":24130},{"$f":"ABS(P122/N122)","v":6.0174563591022441}]
["The Allende and Orgueil Chondrites ","Geochimica et Cosmochimica Acta",40,1976,"Pages 617-634","C:\\Essays\\Geo_Dating\\Neller\\","Meteorite_Tatsumoto","C:\\Essays\\Geo_Dating\\Neller\\Meteorite_Tatsumoto.pdf","C8","AA_Index.xlsm",{"$f":"B123 &  \", \" & D123 & \", \" & C123 & \", \" & E123","v":"Geochimica et Cosmochimica Acta, 1976, 40, Pages 617-634"},"Th/Pb",62,4810,16490,11680,2.4282744282744284]
["Natural Radionuclide Mobility","Geochimica et Cosmochimica Acta",72,2008,"Pages 2067-2089","C:\\Essays\\Geo_Dating\\Neller\\","Amelin_F","C:\\Essays\\Geo_Dating\\Neller\\Amelin_F.pdf","E2","AA_Index.xlsm",{"$f":"B124 &  \", \" & D124 & \", \" & C124 & \", \" & E124","v":"Geochimica et Cosmochimica Acta, 2008, 72, Pages 2067-2089"},"Th/Pb",59,4,82030,82026,20506.5]
["Natural Radionuclide Mobility","Geochimica et Cosmochimica Acta",72,2008,"Pages 2067-2089","C:\\Essays\\Geo_Dating\\Neller\\","Amelin_F","C:\\Essays\\Geo_Dating\\Neller\\Amelin_F.pdf","E2","AA_Index.xlsm",{"$f":"B125 &  \", \" & D125 & \", \" & C125 & \", \" & E125","v":"Geochimica et Cosmochimica Acta, 2008, 72, Pages 2067-2089"},"Th/Pb",59,-98470,262350,360820,3.6642632273788971]
[null,null,null,null,null,null,null,null,null,null,null,"Total",null,{"$f":"MIN(N122:N125)","v":-98470},{"$f":"MAX(O122:O125)","v":262350},360820,3.6642632273788971]
[null,null,null,null,null,null,null,null,null,null,null,"Method",null,"Minimum","Maximum","Difference ","Ratio"]
["Isotopic Lead Ages Of Meteorites","Earth Planetary Science Letters",19,1973,"Pages 321-329","C:\\Essays\\Geo_Dating\\Neller\\","Pb-206_14","C:\\Essays\\Geo_Dating\\Neller\\Pb-206_14.pdf","B5","AA_Index.xlsm",{"$f":"B128 &  \", \" & D128 & \", \" & C128 & \", \" & E128","v":"Earth Planetary Science Letters, 1973, 19, Pages 321-329"},"U/Pb",60,4126,8615,4489,1.0879786718371305]
["The Allende and Orgueil Chondrites ","Geochimica et Cosmochimica Acta",40,1976,"Pages 617-634","C:\\Essays\\Geo_Dating\\Neller\\","Meteorite_Tatsumoto","C:\\Essays\\Geo_Dating\\Neller\\Meteorite_Tatsumoto.pdf","C8","AA_Index.xlsm",{"$f":"B129 &  \", \" & D129 & \", \" & C129 & \", \" & E129","v":"Geochimica et Cosmochimica Acta, 1976, 40, Pages 617-634"},"U/Pb",62,4920,9860,4940,1.0040650406504066]
["The Allende and Orgueil Chondrites ","Geochimica et Cosmochimica Acta",40,1976,"Pages 617-634","C:\\Essays\\Geo_Dating\\Neller\\","Meteorite_Tatsumoto","C:\\Essays\\Geo_Dating\\Neller\\Meteorite_Tatsumoto.pdf","C8","AA_Index.xlsm",{"$f":"B130 &  \", \" & D130 & \", \" & C130 & \", \" & E130","v":"Geochimica et Cosmochimica Acta, 1976, 40, Pages 617-634"},"U/Pb",62,4700,5780,1080,0.22978723404255319]
["U-Pb ages of angrites","Geochimica et Cosmochimica Acta",72,2008,"Pages 221-232","C:\\Essays\\Geo_Dating\\Neller\\","Amelin_D","C:\\Essays\\Geo_Dating\\Neller\\Amelin_D.pdf","E0","AA_Index.xlsm",{"$f":"B131 &  \", \" & D131 & \", \" & C131 & \", \" & E131","v":"Geochimica et Cosmochimica Acta, 2008, 72, Pages 221-232"},"U/Pb",63,3727.8,6625,2897.2,0.77718761736144637]
["Pb isotopic age of the Allende chondrules","Meteoritics And Planetary Science",42,2007,"Pages 1321-1335","C:\\Essays\\Geo_Dating\\Neller\\","Amelin_C","C:\\Essays\\Geo_Dating\\Neller\\Amelin_C.pdf","E3","AA_Index.xlsm",{"$f":"B132 &  \", \" & D132 & \", \" & C132 & \", \" & E132","v":"Meteoritics And Planetary Science, 2007, 42, Pages 1321-1335"},"U/Pb",64,1799,10066,8267,4.5953307392996106]
["Precise U-Pb dating","Geochimica et Cosmochimica Acta",69,2005,"Pages 505-518","C:\\Essays\\Geo_Dating\\Neller\\","Amelin_A","C:\\Essays\\Geo_Dating\\Neller\\Amelin_A.pdf","E4","AA_Index.xlsm",{"$f":"B133 &  \", \" & D133 & \", \" & C133 & \", \" & E133","v":"Geochimica et Cosmochimica Acta, 2005, 69, Pages 505-518"},"U/Pb",65,4249,6473,2224,0.52341727465285948]
[null,null,null,null,null,null,null,null,null,null,null,"Total",null,{"$f":"MIN(N128:N133)","v":1799},{"$f":"MAX(O128:O133)","v":10066},8267,4.5953307392996106]
[null,null,null,null,null,null,null,null,null,null,null,"Method",null,"Minimum","Maximum","Difference ","Ratio"]
["Single grain (U-Th)/He ages, Acapulco meteorite","Earth Planetary Science Letters",209,2003,"Pages 323-336","C:\\Essays\\Geo_Dating\\Neller\\","Meteorite_Kyoungwon","C:\\Essays\\Geo_Dating\\Neller\\Meteorite_Kyoungwon.pdf","C5","AA_Index.xlsm",{"$f":"B136 &  \", \" & D136 & \", \" & C136 & \", \" & E136","v":"Earth Planetary Science Letters, 2003, 209, Pages 323-336"},"U/Th",66,1452,4909,3457,2.3808539944903582]
["Totals","Totals",null,null,null,"C:\\Essays\\Geo_Dating\\Neller\\","Origin","C:\\Essays\\Geo_Dating\\Neller\\Origin.pdf"]
[null,null,null,null,null,null,null,null,null,null,null,"Method","Citation","Minimum","Maximum","Difference ","Ratio"]
[null,null,null,null,null,null,null,null,null,null,null,"Pb/Pb",62,4467,4569,{"$f":"O139-N139","v":102},{"$f":"ABS(P139/N139)","v":2.2834116856950974E-2}]
[null,null,null,null,null,null,null,null,null,null,null,"Pb/Pb",29,-3879,11,3890,1.0028357824181491]

{"sheet":"Samples","index":1,"n_rows":53,"n_cols":17,"rows_kept":53,"cut":false,"hidden":false,"merged":[]}
["Essay's Title","Magazine","Volume","Year","Pages","Folder","File Name","Pauls Computer","Sheet","Excel File","Citation","Method","Citation","Minimum","Maximum","Difference ","Ratio"]
[]
["Upper Crust in North-East Australia","International Journal Earth Science",101,2012,"Pages 1091-1109",{"$f":" \"C:\\Essays\\Geo_Dating\\Neller\\\"","v":"C:\\Essays\\Geo_Dating\\Neller\\"},"Older_Than_Earth_11",{"$f":" \"C:\\Essays\\Geo_Dating\\Neller\\\" & G3 & \".pdf\"","v":"C:\\Essays\\Geo_Dating\\Neller\\Older_Than_Earth_11.pdf"},"O_6","AB_Index.xlsm",{"$f":"B3 &  \", \" & D3 & \", \" & C3 & \", \" & E3","v":"International Journal Earth Science, 2012, 101, Pages 1091-1109"},"Lu/Hf",27,-3220,3870,{"$f":"O3-N3","v":7090},{"$f":"ABS(P3/N3)","v":2.201863354037267}]
["Upper Crust in North-East Australia","International Journal Earth Science",101,2012,"Pages 1091-1109","C:\\Essays\\Geo_Dating\\Neller\\","Older_Than_Earth_11","C:\\Essays\\Geo_Dating\\Neller\\Older_Than_Earth_11.pdf","O_6","AB_Index.xlsm","International Journal Earth Science, 2012, 101, Pages 1091-1109","Nd/Sm",27,-800,9730,10530,13.1625]
["The Siberian Craton","Geochimica et Cosmochimica Acta",59,1995,"Pages 959-977","C:\\Essays\\Geo_Dating\\Neller\\","Older_Than_Earth_6","C:\\Essays\\Geo_Dating\\Neller\\Older_Than_Earth_6.pdf","A8","AA_Index.xlsm","Geochimica et Cosmochimica Acta, 1995, 59, Pages 959-977","Nd/Sm",38,-1,3200,3201,3201]
["The Siberian Craton","Geochimica et Cosmochimica Acta",59,1995,"Pages 959-977","C:\\Essays\\Geo_Dating\\Neller\\","Older_Than_Earth_6","C:\\Essays\\Geo_Dating\\Neller\\Older_Than_Earth_6.pdf","A8","AA_Index.xlsm","Geochimica et Cosmochimica Acta, 1995, 59, Pages 959-977","Rb/Sr",38,5445,12716,7271,1.3353535353535353]
["The Siberian Craton","Geochimica et Cosmochimica Acta",59,1995,"Pages 959-977","C:\\Essays\\Geo_Dating\\Neller\\","Older_Than_Earth_6","C:\\Essays\\Geo_Dating\\Neller\\Older_Than_Earth_6.pdf","A8","AA_Index.xlsm","Geochimica et Cosmochimica Acta, 1995, 59, Pages 959-977","Re/Os",38,-1,11000,11001,11001]
["The Allende and Orgueil Chondrites ","Geochimica et Cosmochimica Acta",40,1976,"Pages 617-634","C:\\Essays\\Geo_Dating\\Neller\\","Meteorite_Tatsumoto","C:\\Essays\\Geo_Dating\\Neller\\Meteorite_Tatsumoto.pdf","C8","AA_Index.xlsm","Geochimica et Cosmochimica Acta, 1976, 40, Pages 617-634","Pb/Pb",62,4467,4569,102,2.2834116856950974E-2]
["The Allende and Orgueil Chondrites ","Geochimica et Cosmochimica Acta",40,1976,"Pages 617-634","C:\\Essays\\Geo_Dating\\Neller\\","Meteorite_Tatsumoto","C:\\Essays\\Geo_Dating\\Neller\\Meteorite_Tatsumoto.pdf","C8","AA_Index.xlsm","Geochimica et Cosmochimica Acta, 1976, 40, Pages 617-634","Th/Pb",62,4810,16490,11680,2.4282744282744284]
["The Allende and Orgueil Chondrites ","Geochimica et Cosmochimica Acta",40,1976,"Pages 617-634","C:\\Essays\\Geo_Dating\\Neller\\","Meteorite_Tatsumoto","C:\\Essays\\Geo_Dating\\Neller\\Meteorite_Tatsumoto.pdf","C8","AA_Index.xlsm","Geochimica et Cosmochimica Acta, 1976, 40, Pages 617-634","U/Pb",62,4920,9860,4940,1.0040650406504066]
["The Allende and Orgueil Chondrites ","Geochimica et Cosmochimica Acta",40,1976,"Pages 617-634","C:\\Essays\\Geo_Dating\\Neller\\","Meteorite_Tatsumoto","C:\\Essays\\Geo_Dating\\Neller\\Meteorite_Tatsumoto.pdf","C8","AA_Index.xlsm","Geochimica et Cosmochimica Acta, 1976, 40, Pages 617-634","U/Pb",62,4700,5780,1080,0.22978723404255319]
["The Kaapvaal Cratonic Lithospheric Mantle","Journal Of Petrology",48,2007,"Pages 589-625","C:\\Essays\\Geo_Dating\\Neller\\","To_Old_01","C:\\Essays\\Geo_Dating\\Neller\\To_Old_01.pdf","T_1","AB_Index.xlsm","Journal Of Petrology, 2007, 48, Pages 589-625","Lu/Hf",86,-320,1730,2050,6.40625]
["The Kaapvaal Cratonic Lithospheric Mantle","Journal Of Petrology",48,2007,"Pages 589-625","C:\\Essays\\Geo_Dating\\Neller\\","To_Old_01","C:\\Essays\\Geo_Dating\\Neller\\To_Old_01.pdf","T_1","AB_Index.xlsm","Journal Of Petrology, 2007, 48, Pages 589-625","Nd/Sm",86,-2247,96661,98908,44.017801513128617]
["The Kaapvaal Cratonic Lithospheric Mantle","Journal Of Petrology",48,2007,"Pages 589-625","C:\\Essays\\Geo_Dating\\Neller\\","To_Old_01","C:\\Essays\\Geo_Dating\\Neller\\To_Old_01.pdf","T_1","AB_Index.xlsm","Journal Of Petrology, 2007, 48, Pages 589-625","Re/Os",86,600,34600,34000,56.666666666666664]
["Multi-stage origin of Roberts Victor eclogites","Lithos","142-143",2012,"Pages 161-181","C:\\Essays\\Geo_Dating\\Neller\\","Future_Ages_02","C:\\Essays\\Geo_Dating\\Neller\\Future_Ages_02.pdf","F02","AC_Index.xlsm","Lithos, 2012, 142-143, Pages 161-181","Lu/Hf",92,-12340,19870,32210,2.6102106969205834]
["Multi-stage origin of Roberts Victor eclogites","Lithos","142-143",2012,"Pages 161-181","C:\\Essays\\Geo_Dating\\Neller\\","Future_Ages_02","C:\\Essays\\Geo_Dating\\Neller\\Future_Ages_02.pdf","F02","AC_Index.xlsm","Lithos, 2012, 142-143, Pages 161-181","Nd/Sm",92,-22420,8100,30520,1.3612845673505798]
["Multi-stage origin of Roberts Victor eclogites","Lithos","142-143",2012,"Pages 161-181","C:\\Essays\\Geo_Dating\\Neller\\","Future_Ages_02","C:\\Essays\\Geo_Dating\\Neller\\Future_Ages_02.pdf","F02","AC_Index.xlsm","Lithos, 2012, 142-143, Pages 161-181","Rb/Sr",92,32,6874,6842,213.8125]
["Re–Os Evidence","Chemical Geology",236,2007,"Pages 323-338","C:\\Essays\\Geo_Dating\\Neller\\","Future_Ages_12","C:\\Essays\\Geo_Dating\\Neller\\Future_Ages_12.pdf","F12","AC_Index.xlsm","Chemical Geology, 2007, 236, Pages 323-338","Lu/Hf",101,-30,14650,14680,489.33333333333331]
["Re–Os Evidence","Chemical Geology",236,2007,"Pages 323-338","C:\\Essays\\Geo_Dating\\Neller\\","Future_Ages_12","C:\\Essays\\Geo_Dating\\Neller\\Future_Ages_12.pdf","F12","AC_Index.xlsm","Chemical Geology, 2007, 236, Pages 323-338","Nd/Sm",101,820,5910,5090,6.2073170731707314]
["Re–Os Evidence","Chemical Geology",236,2007,"Pages 323-338","C:\\Essays\\Geo_Dating\\Neller\\","Future_Ages_12","C:\\Essays\\Geo_Dating\\Neller\\Future_Ages_12.pdf","F12","AC_Index.xlsm","Chemical Geology, 2007, 236, Pages 323-338","Re/Os",101,-3830,10620,14450,3.7728459530026108]
["Central Asian Orogenic Belt","Lithos",126,2011,"Pages 233-247","C:\\Essays\\Geo_Dating\\Neller\\","Future_Ages_13","C:\\Essays\\Geo_Dating\\Neller\\Future_Ages_13.pdf","F13","AC_Index.xlsm","Lithos, 2011, 126, Pages 233-247","Lu/Hf",104,-9270,14650,23920,2.580366774541532]
["Central Asian Orogenic Belt","Lithos",126,2011,"Pages 233-247","C:\\Essays\\Geo_Dating\\Neller\\","Future_Ages_13","C:\\Essays\\Geo_Dating\\Neller\\Future_Ages_13.pdf","F13","AC_Index.xlsm","Lithos, 2011, 126, Pages 233-247","Nd/Sm",104,490,5910,5420,11.061224489795919]
["Central Asian Orogenic Belt","Lithos",126,2011,"Pages 233-247","C:\\Essays\\Geo_Dating\\Neller\\","Future_Ages_13","C:\\Essays\\Geo_Dating\\Neller\\Future_Ages_13.pdf","F13","AC_Index.xlsm","Lithos, 2011, 126, Pages 233-247","Re/Os",104,-3830,10620,14450,3.7728459530026108]
[]
[null,null,null,null,null,null,null,null,null,null,null,"Method","Citation","Minimum","Maximum","Difference ","Ratio"]
[null,null,null,null,null,null,null,null,null,null,null,"Lu/Hf",27,-3220,3870,{"$f":"O26-N26","v":7090},{"$f":"ABS(P26/N26)","v":2.201863354037267}]
[null,null,null,null,null,null,null,null,null,null,null,"Nd/Sm",27,-800,9730,{"$f":"O27-N27","v":10530},{"$f":"ABS(P27/N27)","v":13.1625}]
[null,null,null,null,null,null,null,null,null,null,null,"Age Range",null,-3220,9730,12950,4.0217391304347823]
[null,null,null,null,null,null,null,null,null,null,null,"Nd/Sm",38,-1,3200,3201,3201]
[null,null,null,null,null,null,null,null,null,null,null,"Rb/Sr",38,5445,12716,7271,1.3353535353535353]
[null,null,null,null,null,null,null,null,null,null,null,"Re/Os",38,-1,11000,11001,11001]
[null,null,null,null,null,null,null,null,null,null,null,"Age Range",null,-1,12716,12717,12717]
[null,null,null,null,null,null,null,null,null,null,null,"Pb/Pb",62,4467,4569,102,2.2834116856950974E-2]
[null,null,null,null,null,null,null,null,null,null,null,"Th/Pb",62,4810,16490,11680,2.4282744282744284]
[null,null,null,null,null,null,null,null,null,null,null,"U/Pb",62,4920,9860,4940,1.0040650406504066]
[null,null,null,null,null,null,null,null,null,null,null,"U/Pb",62,4700,5780,1080,0.22978723404255319]
[null,null,null,null,null,null,null,null,null,null,null,"Age Range",null,4467,16490,{"$f":"O37-N37","v":12023},{"$f":"ABS(P37/N37)","v":2.6915155585404076}]
[null,null,null,null,null,null,null,null,null,null,null,"Lu/Hf",86,-320,1730,2050,6.40625]
[null,null,null,null,null,null,null,null,null,null,null,"Nd/Sm",86,-2247,96661,98908,44.017801513128617]
[null,null,null,null,null,null,null,null,null,null,null,"Re/Os",86,600,34600,34000,56.666666666666664]
[null,null,null,null,null,null,null,null,null,null,null,"Age Range",null,-2247,96661,98908,44.017801513128617]
[null,null,null,null,null,null,null,null,null,null,null,"Lu/Hf",92,-12340,19870,32210,2.6102106969205834]
[null,null,null,null,null,null,null,null,null,null,null,"Nd/Sm",92,-22420,8100,30520,1.3612845673505798]
[null,null,null,null,null,null,null,null,null,null,null,"Rb/Sr",92,32,6874,6842,213.8125]
[null,null,null,null,null,null,null,null,null,null,null,"Age Range",null,32,19870,19838,619.9375]
[null,null,null,null,null,null,null,null,null,null,null,"Lu/Hf",101,-30,14650,14680,489.33333333333331]
[null,null,null,null,null,null,null,null,null,null,null,"Nd/Sm",101,820,5910,5090,6.2073170731707314]
[null,null,null,null,null,null,null,null,null,null,null,"Re/Os",101,-3830,10620,14450,3.7728459530026108]
[null,null,null,null,null,null,null,null,null,null,null,"Age Range",null,-3830,14650,18480,4.8250652741514362]
[null,null,null,null,null,null,null,null,null,null,null,"Lu/Hf",104,-9270,14650,23920,2.580366774541532]
[null,null,null,null,null,null,null,null,null,null,null,"Nd/Sm",104,490,5910,5420,11.061224489795919]
[null,null,null,null,null,null,null,null,null,null,null,"Re/Os",104,-3830,10620,14450,3.7728459530026108]
[null,null,null,null,null,null,null,null,null,null,null,"Age Range",null,-9270,14650,{"$f":"O53-N53","v":23920},{"$f":"ABS(P53/N53)","v":2.580366774541532}]

{"sheet":"Argon","index":2,"n_rows":21,"n_cols":5,"rows_kept":21,"cut":false,"hidden":false,"merged":[]}
["Reference","Minimum","Maximum","Difference ","Age"]
["Number","Million Years","Million Years","Million Years","Ratio"]
[1,1770,13960,{"$f":"C3-B3","v":12190},{"$f":"ABS(D3/B3)","v":6.8870056497175138}]
[2,162,9669,9507,58.685185185185183]
[3,120,9710,9590,79.916666666666671]
[4,1102,8058,6956,6.3121597096188751]
[5,3560,8900,5340,1.5]
[6,94,14917,14823,157.69148936170214]
[7,1871,7460,5589,2.9871726349545695]
[8,164,11250,11086,67.597560975609753]
[9,42,7347,7305,173.92857142857142]
[10,1700,22090,20390,11.994117647058824]
[11,580,9840,9260,15.96551724137931]
[12,324,17178,16854,52.018518518518519]
[13,506,13348,12842,25.379446640316207]
[14,633,8569,7936,12.537124802527646]
[15,1115,9969,8854,7.9408071748878921]
[16,510,7100,6590,12.921568627450981]
[17,3841,11421,7580,1.9734444155167925]
[18,7700,16300,8600,1.1168831168831168]
[19,651,18620,17969,27.602150537634408]

{"sheet":"Rubidium","index":3,"n_rows":13,"n_cols":6,"rows_kept":13,"cut":false,"hidden":false,"merged":[]}
["Method","Reference","Minimum","Maximum","Difference ","Age"]
[null,"Number","Million Years","Million Years","Million Years","Ratio"]
["Rb/Sr",31,3700,9300,{"$f":"D3-C3","v":5600},{"$f":"ABS(E3/C3)","v":1.5135135135135136}]
["Rb/Sr",32,1400,900000,898600,641.85714285714289]
["Rb/Sr",33,1180,13700,12520,10.610169491525424]
["Rb/Sr",34,3110,7330,4220,1.3569131832797428]
["Rb/Sr",35,-3440,15500,18940,5.5058139534883717]
["Rb/Sr",36,79,23312,23233,294.08860759493672]
["Rb/Sr",38,5445,12716,7271,1.3353535353535353]
["Rb/Sr",88,267,20000,19733,73.906367041198507]
["Rb/Sr",89,-31071,76523,107594,3.4628431656528598]
["Rb/Sr",92,32,6874,6842,213.8125]
["Rb/Sr",97,-15,201,216,14.4]

{"sheet":"Rhenium","index":4,"n_rows":55,"n_cols":25,"rows_kept":55,"cut":false,"hidden":false,"merged":[]}
["Method","Citation","Minimum","Maximum","Difference ","Ratio",null,null,null,null,null,null,null,null,null,null,null,"Reference","Minimum","Maximum","Difference ","Reference","Minimum","Maximum","Difference "]
[null,null,null,null,null,null,null,null,null,null,null,null,null,null,null,null,null,"Number","106 Years","106 Years","106 Years","Number","106 Years","106 Years","106 Years"]
["Re/Os",37,100,15600,{"$f":"D3-C3","v":15500},{"$f":"ABS(E3/C3)","v":155},null,null,null,null,null,null,null,null,null,null,null,37,100,15600,{"$f":"T3-S3","v":15500},77,-2860,2820,{"$f":"X3-W3","v":5680}]
["Re/Os",38,-1,11000,11001,11001,null,null,null,null,null,null,null,null,null,null,null,38,-1,11000,11001,78,-9260,1620,10880]
["Re/Os",39,2700,5800,3100,1.1481481481481481,null,null,null,null,null,null,null,null,null,null,null,39,2700,5800,3100,79,-111000,1500,112500]
["Re/Os",40,2655,6300,3645,1.3728813559322033,null,null,null,null,null,null,null,null,null,null,null,40,2655,6300,3645,80,-15000001,14999999,30000000]
["Re/Os",41,-59500,25900,85400,1.4352941176470588,null,null,null,null,null,null,null,null,null,null,null,41,-59500,25900,85400,81,-770,6790,7560]
["Re/Os",42,-30000,40000,70000,2.3333333333333335,null,null,null,null,null,null,null,null,null,null,null,42,-30000,40000,70000,82,-1,2240,2241]
["Re/Os",43,-3700,38190,41890,11.321621621621622,null,null,null,null,null,null,null,null,null,null,null,43,-3700,38190,41890,83,-2500,2800,5300]
["Re/Os",44,-9260,3200,12460,1.3455723542116631,null,null,null,null,null,null,null,null,null,null,null,44,-9260,3200,12460,86,600,34600,34000]
["Re/Os",45,-3100,8400,11500,3.7096774193548385,null,null,null,null,null,null,null,null,null,null,null,45,-3100,8400,11500,87,-32000,34000,66000]
["Re/Os",46,-675,10430,11105,16.451851851851853,null,null,null,null,null,null,null,null,null,null,null,46,-675,10430,11105,93,-1,4000,4001]
["Re/Os",47,-24710,8620,33330,1.348846620801295,null,null,null,null,null,null,null,null,null,null,null,47,-24710,8620,33330,94,-27744,3094,30838]
["Re/Os",48,150,15410,15260,101.73333333333333,null,null,null,null,null,null,null,null,null,null,null,48,150,15410,15260,95,-79140,144550,223690]
["Re/Os",49,90,6900,6810,75.666666666666671,null,null,null,null,null,null,null,null,null,null,null,49,90,6900,6810,101,-3830,10620,14450]
["Re/Os",50,-279000,79000,358000,1.2831541218637992,null,null,null,null,null,null,null,null,null,null,null,50,-279000,79000,358000,104,-3830,10620,14450]
["Re/Os",51,2780,8380,5600,2.014388489208633,null,null,null,null,null,null,null,null,null,null,null,51,2780,8380,5600,105,-1,1550,1551]
["Re/Os",52,1390,77160,75770,54.510791366906474,null,null,null,null,null,null,null,null,null,null,null,52,1390,77160,75770,106,-4300,9100,13400]
["Re/Os",53,-51000,10300,61300,1.2019607843137254,null,null,null,null,null,null,null,null,null,null,null,53,-51000,10300,61300,107,-1,4500,4501]
["Re/Os",54,-47693,39229,86922,1.8225316084121359,null,null,null,null,null,null,null,null,null,null,null,54,-47693,39229,86922,108,-10800,9700,20500]
["Re/Os",55,-1,748,749,749,null,null,null,null,null,null,null,null,null,null,null,55,-1,748,749,109,-14258,6994,21252]
["Re/Os",56,1980,7850,5870,2.9646464646464645,null,null,null,null,null,null,null,null,null,null,null,56,1980,7850,5870,110,-7120,7690,14810]
["Re/Os",69,-8620,3220,11840,1.3735498839907192,null,null,null,null,null,null,null,null,null,null,null,69,-8620,3220,11840,111,30,52250,52220]
["Re/Os",70,-6240,3510,9750,1.5625,null,null,null,null,null,null,null,null,null,null,null,70,-6240,3510,9750,112,-8600,40000,48600]
["Re/Os",72,{"$f":"MIN(C6:C24)","v":-279000},38190,317190,1.1368817204301076,null,null,null,null,null,null,null,null,null,null,null,72,{"$f":"MIN(S6:S24)","v":-279000},38190,317190,113,-11800,27500,39300]
["Re/Os",73,-2400,10700,13100,5.458333333333333,null,null,null,null,null,null,null,null,null,null,null,73,-2400,10700,13100,114,-4040,8520,12560]
["Re/Os",74,-2080,21500,23580,11.336538461538462,null,null,null,null,null,null,null,null,null,null,null,74,-2080,21500,23580,115,-1,1640,1641]
["Re/Os",75,-7307,3505,10812,1.4796770220336664,null,null,null,null,null,null,null,null,null,null,null,75,-7307,3505,10812,116,-11275,3426,14701]
["Re/Os",76,-1,68000,68001,68001,null,null,null,null,null,null,null,null,null,null,null,76,-1,68000,68001,{"$f":"ABS(U29/S29)","v":68001}]
["Re/Os",77,-2860,2820,5680,1.986013986013986,null,null,null,null,null,null,null,null,null,null,null,77,-2860,2820,5680,1.986013986013986]
["Re/Os",78,-9260,1620,10880,1.1749460043196545,null,null,null,null,null,null,null,null,null,null,null,78,-9260,1620,10880,1.1749460043196545]
["Re/Os",79,-111000,1500,112500,1.0135135135135136,null,null,null,null,null,null,null,null,null,null,null,79,-111000,1500,112500,1.0135135135135136]
["Re/Os",80,-15000001,14999999,30000000,1.9999998666666756,null,null,null,null,null,null,null,null,null,null,null,80,-15000001,14999999,30000000,1.9999998666666756]
["Re/Os",81,-770,6790,7560,9.8181818181818183,null,null,null,null,null,null,null,null,null,null,null,81,-770,6790,7560,9.8181818181818183]
["Re/Os",82,-1,2240,{"$f":"D35-C35","v":2241},{"$f":"ABS(E35/C35)","v":2241},null,null,null,null,null,null,null,null,null,null,null,82,-1,2240,2241,2241]
["Re/Os",83,-2500,2800,5300,2.12,null,null,null,null,null,null,null,null,null,null,null,83,-2500,2800,5300,2.12]
["Re/Os",86,600,34600,34000,56.666666666666664,null,null,null,null,null,null,null,null,null,null,null,86,600,34600,34000,56.666666666666664]
["Re/Os",87,-32000,34000,66000,2.0625,null,null,null,null,null,null,null,null,null,null,null,87,-32000,34000,66000,2.0625]
["Re/Os",93,-1,4000,4001,4001,null,null,null,null,null,null,null,null,null,null,null,93,-1,4000,4001,4001]
["Re/Os",94,-27744,3094,30838,1.1115196078431373,null,null,null,null,null,null,null,null,null,null,null,94,-27744,3094,30838,1.1115196078431373]
["Re/Os",95,-79140,144550,223690,2.8265099823098305,null,null,null,null,null,null,null,null,null,null,null,95,-79140,144550,223690,2.8265099823098305]
["Re/Os",101,-3830,10620,14450,3.7728459530026108,null,null,null,null,null,null,null,null,null,null,null,101,-3830,10620,14450,3.7728459530026108]
["Re/Os",104,-3830,10620,14450,3.7728459530026108,null,null,null,null,null,null,null,null,null,null,null,104,-3830,10620,14450,3.7728459530026108]
["Re/Os",105,-1,1550,1551,1551,null,null,null,null,null,null,null,null,null,null,null,105,-1,1550,1551,1551]
["Re/Os",106,-4300,9100,13400,3.1162790697674421,null,null,null,null,null,null,null,null,null,null,null,106,-4300,9100,13400,3.1162790697674421]
["Re/Os",107,-1,4500,4501,4501,null,null,null,null,null,null,null,null,null,null,null,107,-1,4500,4501,4501]
["Re/Os",108,-10800,9700,20500,1.8981481481481481,null,null,null,null,null,null,null,null,null,null,null,108,-10800,9700,20500,1.8981481481481481]
["Re/Os",109,-14258,6994,21252,1.4905316313648478,null,null,null,null,null,null,null,null,null,null,null,109,-14258,6994,21252,1.4905316313648478]
["Re/Os",110,-7120,7690,14810,2.0800561797752808,null,null,null,null,null,null,null,null,null,null,null,110,-7120,7690,14810,2.0800561797752808]
["Re/Os",111,30,52250,52220,1740.6666666666667,null,null,null,null,null,null,null,null,null,null,null,111,30,52250,52220,1740.6666666666667]
["Re/Os",112,-8600,40000,48600,5.6511627906976747,null,null,null,null,null,null,null,null,null,null,null,112,-8600,40000,48600,5.6511627906976747]
["Re/Os",113,-11800,27500,39300,3.3305084745762712,null,null,null,null,null,null,null,null,null,null,null,113,-11800,27500,39300,3.3305084745762712]
["Re/Os",114,-4040,8520,12560,3.108910891089109,null,null,null,null,null,null,null,null,null,null,null,114,-4040,8520,12560,3.108910891089109]
["Re/Os",115,-1,1640,1641,1641,null,null,null,null,null,null,null,null,null,null,null,115,-1,1640,1641,1641]
["Re/Os",116,-11275,3426,14701,1.3038580931263859,null,null,null,null,null,null,null,null,null,null,null,116,-11275,3426,14701,1.3038580931263859]

{"sheet":"Citations","index":5,"n_rows":231,"n_cols":17,"rows_kept":231,"cut":false,"hidden":false,"merged":[]}
["Citation","Essay's Title","Magazine","Volume","Year","Pages","Folder","File Name","Pauls Computer","Sheet","Excel File","Citation","Dating","Minimum","Maximum","Difference ","Age"]
[null,null,null,null,null,null,null,null,null,null,null,null,"Method","Million Years","Million Years","Million Years","Ratio"]
[1,"Ar-39/Ar-40 Dating of Mesosiderites","Geochimica et Cosmochimica Acta",54,1990,"Pages 2549-2564",{"$f":" \"C:\\Essays\\Geo_Dating\\Neller\\\"","v":"C:\\Essays\\Geo_Dating\\Neller\\"},"BOGARD_A",{"$f":" \"C:\\Essays\\Geo_Dating\\Neller\\\" & H3 & \".pdf\"","v":"C:\\Essays\\Geo_Dating\\Neller\\BOGARD_A.pdf"},"A1","AA_Index.xlsm",{"$f":"B3 & \", \" & C3 &  \", \" & E3 & \", \" & D3 & \", \" & F3","v":"Ar-39/Ar-40 Dating of Mesosiderites, Geochimica et Cosmochimica Acta, 1990, 54, Pages 2549-2564"},"Ar/Ar",1770,13960,{"$f":"O3-N3","v":12190},{"$f":"ABS(P3/N3)","v":6.8870056497175138}]
[2,"39Ar-40Ar Ages of Eucrites","Meteoritics And Planetary Science",38,2003,"Pages 669–710","C:\\Essays\\Geo_Dating\\Neller\\","BOGARD_E","C:\\Essays\\Geo_Dating\\Neller\\BOGARD_E.pdf","A2","AA_Index.xlsm",{"$f":"B4 & \", \" & C4 &  \", \" & E4 & \", \" & D4 & \", \" & F4","v":"39Ar-40Ar Ages of Eucrites, Meteoritics And Planetary Science, 2003, 38, Pages 669–710"},"Ar/Ar",162,9669,9507,58.685185185185183]
[3,"Ar diffusion properties, Meteorites","Geochimica et Cosmochimica Acta",44,1980,"Pages 1667-1682","C:\\Essays\\Geo_Dating\\Neller\\","BOGARD_B","C:\\Essays\\Geo_Dating\\Neller\\BOGARD_B.pdf","A3","AA_Index.xlsm","Ar diffusion properties, Meteorites, Geochimica et Cosmochimica Acta, 1980, 44, Pages 1667-1682","Ar/Ar",120,9710,9590,79.916666666666671]
[4,"Argon-39/Argon-40 Ages","Meteoritics And Planetary Science",36,2001,"Pages 107-122","C:\\Essays\\Geo_Dating\\Neller\\","BOGARD_F","C:\\Essays\\Geo_Dating\\Neller\\BOGARD_F.pdf","A4","AA_Index.xlsm","Argon-39/Argon-40 Ages, Meteoritics And Planetary Science, 2001, 36, Pages 107-122","Ar/Ar",1102,8058,6956,6.3121597096188751]
[5,"U-Th-Pb dating of Abee E4 Meteorite","Earth Planetary Science Letters",62,1983,"Pages 132-146","C:\\Essays\\Geo_Dating\\Neller\\","BOGARD_C","C:\\Essays\\Geo_Dating\\Neller\\BOGARD_C.pdf","A5","AA_Index.xlsm","U-Th-Pb dating of Abee E4 Meteorite, Earth Planetary Science Letters, 1983, 62, Pages 132-146","Ar/Ar",3560,8900,5340,1.5]
[6,"40Ar-39Ar Chronology","Meteoritics And Planetary Science",44,2009,"Pages 293-321","C:\\Essays\\Geo_Dating\\Neller\\","Meteorite_Korochantseva","C:\\Essays\\Geo_Dating\\Neller\\Meteorite_Korochantseva.pdf","B0","AA_Index.xlsm","40Ar-39Ar Chronology, Meteoritics And Planetary Science, 2009, 44, Pages 293-321","Ar/Ar",94,14917,14823,157.69148936170214]
[7,"40-Ar / 39-Ar Ages of Allende","Icarus",42,1980,"Pages 380-405","C:\\Essays\\Geo_Dating\\Neller\\","Meteorite_Jessberger","C:\\Essays\\Geo_Dating\\Neller\\Meteorite_Jessberger.pdf","B1","AA_Index.xlsm","40-Ar / 39-Ar Ages of Allende, Icarus, 1980, 42, Pages 380-405","Ar/Ar",1871,7460,5589,2.9871726349545695]
[8,"The Fossil LL6 Chondrite","Geochimica et Cosmochimica Acta",74,2010,"Pages 1734-1747","C:\\Essays\\Geo_Dating\\Neller\\","Older_Than_Earth_3","C:\\Essays\\Geo_Dating\\Neller\\Older_Than_Earth_3.pdf","B2","AA_Index.xlsm","The Fossil LL6 Chondrite, Geochimica et Cosmochimica Acta, 2010, 74, Pages 1734-1747","Ar/Ar",164,11250,11086,67.597560975609753]
[9,"40Ar-39Ar Dating of Pseudo Tachylytes","Earth Planetary Science Letters",223,2004,"Pages 349-364","C:\\Essays\\Geo_Dating\\Neller\\","Older_Than_Earth_1","C:\\Essays\\Geo_Dating\\Neller\\Older_Than_Earth_1.pdf","B6","AA_Index.xlsm","40Ar-39Ar Dating of Pseudo Tachylytes, Earth Planetary Science Letters, 2004, 223, Pages 349-364","Ar/Ar",42,7347,7305,173.92857142857142]
[10,"Location of extraneous argon","Chemical Geology",80,1990,"Pages 201-204","C:\\Essays\\Geo_Dating\\Neller\\","Maluski","C:\\Essays\\Geo_Dating\\Neller\\Maluski.pdf","B7","AA_Index.xlsm","Location of extraneous argon, Chemical Geology, 1990, 80, Pages 201-204","Ar/Ar",1700,22090,20390,11.994117647058824]
[11,"Excess Argon In Ultramafic Rocks","Earth Planetary Science Letters",22,1974,"Pages 145-156","C:\\Essays\\Geo_Dating\\Neller\\","Ages_012","C:\\Essays\\Geo_Dating\\Neller\\Ages_012.pdf","B8","AA_Index.xlsm","Excess Argon In Ultramafic Rocks, Earth Planetary Science Letters, 1974, 22, Pages 145-156","Ar/Ar",580,9840,9260,15.96551724137931]
[12,"Analyses of the chondritic meteorite Orvinio","Meteoritics And Planetary Science",39,2004,"Pages 1475-1493","C:\\Essays\\Geo_Dating\\Neller\\","Meteorite_Grier","C:\\Essays\\Geo_Dating\\Neller\\Meteorite_Grier.pdf","C1","AA_Index.xlsm","Analyses of the chondritic meteorite Orvinio, Meteoritics And Planetary Science, 2004, 39, Pages 1475-1493","Ar/Ar",324,17178,16854,52.018518518518519]
[13,"Shocked meteorites: Argon-40-argon-39","Meteoritics And Planetary Science",32,1997,"Pages 647-670","C:\\Essays\\Geo_Dating\\Neller\\","Meteorite_Kunz","C:\\Essays\\Geo_Dating\\Neller\\Meteorite_Kunz.pdf","C2","AA_Index.xlsm","Shocked meteorites: Argon-40-argon-39, Meteoritics And Planetary Science, 1997, 32, Pages 647-670","Ar/Ar",506,13348,12842,25.379446640316207]
[14,"The Strangways impact structure","Earth Planetary Science Letters",172,1999,"Pages 199–211","C:\\Essays\\Geo_Dating\\Neller\\","Older_Than_Earth_4","C:\\Essays\\Geo_Dating\\Neller\\Older_Than_Earth_4.pdf","C3","AA_Index.xlsm","The Strangways impact structure, Earth Planetary Science Letters, 1999, 172, Pages 199–211","Ar/Ar",633,8569,7936,12.537124802527646]
[15,"40Ar-39Ar Quartz Ages","Geochimica et Cosmochimica Acta",70,2006,"Pages 2573-2575","C:\\Essays\\Geo_Dating\\Neller\\","Older_Than_Earth_9","C:\\Essays\\Geo_Dating\\Neller\\Older_Than_Earth_9.pdf","C7","AA_Index.xlsm","40Ar-39Ar Quartz Ages, Geochimica et Cosmochimica Acta, 2006, 70, Pages 2573-2575","Ar/Ar",1115,9969,8854,7.9408071748878921]
[16,"The Peace River shocked M chondrite","Geochimica et Cosmochimica Acta",52,1988,"Pages 2487-2499","C:\\Essays\\Geo_Dating\\Neller\\","Meteorite_MCCONVILL","C:\\Essays\\Geo_Dating\\Neller\\Meteorite_MCCONVILL.pdf","D0","AA_Index.xlsm","The Peace River shocked M chondrite, Geochimica et Cosmochimica Acta, 1988, 52, Pages 2487-2499","Ar/Ar",510,7100,6590,12.921568627450981]
[17,"History Of The Acapulco Meteorite","Geochimica et Cosmochimica Acta",61,1997,"Pages 3477-3501","C:\\Essays\\Geo_Dating\\Neller\\","Meteorite_Pellas","C:\\Essays\\Geo_Dating\\Neller\\Meteorite_Pellas.pdf","D1","AA_Index.xlsm","History Of The Acapulco Meteorite, Geochimica et Cosmochimica Acta, 1997, 61, Pages 3477-3501","Ar/Ar",3841,11421,7580,1.9734444155167925]
[18,"Pressure Metamorphism in Northeast Japan","Gondwana Research",8,2005,"Pages 617-621","C:\\Essays\\Geo_Dating\\Neller\\","Itaya","C:\\Essays\\Geo_Dating\\Neller\\Itaya.pdf","D7","AA_Index.xlsm","Pressure Metamorphism in Northeast Japan, Gondwana Research, 2005, 8, Pages 617-621","Ar/Ar",7700,16300,8600,1.1168831168831168]
[19,"40 Ar/39ar Dating Of The Long Range Dikes","Earth Planetary Science Letters",22,1974,"Pages 256-266","C:\\Essays\\Geo_Dating\\Neller\\","Ages_002","C:\\Essays\\Geo_Dating\\Neller\\Ages_002.pdf","D8","AA_Index.xlsm","40 Ar/39ar Dating Of The Long Range Dikes, Earth Planetary Science Letters, 1974, 22, Pages 256-266","Ar/Ar",651,18620,17969,27.602150537634408]
[null,null,null,null,null,null,null,null,null,null,null,null,"Total",{"$f":"MIN(N3:N21)","v":42},{"$f":"MAX(O3:O21)","v":22090},22048,524.95238095238096]
[null,null,null,null,null,null,null,null,null,null,null,null,"Method","Minimum","Maximum","Difference ","Ratio"]
[20,"Potassium: Argon Dating of Iron Meteorites","Science",155,1967,"Pages 999-1000","C:\\Essays\\Geo_Dating\\Neller\\","Meteor_Rancitelli","C:\\Essays\\Geo_Dating\\Neller\\Meteor_Rancitelli.pdf","C6","AA_Index.xlsm","Potassium: Argon Dating of Iron Meteorites, Science, 1967, 155, Pages 999-1000","K/Ar",4700,10400,5700,1.2127659574468086]
[21,"Potassium-argon age of iron meteorites","Geochimica et Cosmochimica Acta",15,1958,"Pages 40-50","C:\\Essays\\Geo_Dating\\Neller\\","Meteorite_Stoenner","C:\\Essays\\Geo_Dating\\Neller\\Meteorite_Stoenner.pdf","D4","AA_Index.xlsm","Potassium-argon age of iron meteorites, Geochimica et Cosmochimica Acta, 1958, 15, Pages 40-50","K/Ar",5300,13000,7700,1.4528301886792452]
[22,"Ar/Ar dating of inclusions from IAB iron meteorites","Geochimica et Cosmochimica Acta",43,1979,"Pages 1829-1840","C:\\Essays\\Geo_Dating\\Neller\\","Meteorite_NIEMEYER","C:\\Essays\\Geo_Dating\\Neller\\Meteorite_NIEMEYER.pdf","D6","AA_Index.xlsm","Ar/Ar dating of inclusions from IAB iron meteorites, Geochimica et Cosmochimica Acta, 1979, 43, Pages 1829-1840","K/Ar",4460,9500,5040,1.1300448430493273]
[23,"K/Ar Age Determinations of Iron Meteorites","Earth Planetary Science Letters",4,1968,"Pages 84-88","C:\\Essays\\Geo_Dating\\Neller\\","Meteorite_Kaiser","C:\\Essays\\Geo_Dating\\Neller\\Meteorite_Kaiser.pdf","D9","AA_Index.xlsm","K/Ar Age Determinations of Iron Meteorites, Earth Planetary Science Letters, 1968, 4, Pages 84-88","K/Ar",4200,7400,3200,0.76190476190476186]
[null,null,null,null,null,null,null,null,null,null,null,null,"Total",{"$f":"MIN(N24:N27)","v":4200},{"$f":"MAX(O24:O27)","v":13000},8800,2.0952380952380953]
[null,null,null,null,null,null,null,null,null,null,null,null,"Method","Minimum","Maximum","Difference ","Ratio"]
[27,"Upper Crust in North-East Australia","International Journal Earth Science",101,2012,"Pages 1091-1109","C:\\Essays\\Geo_Dating\\Neller\\","Older_Than_Earth_11","C:\\Essays\\Geo_Dating\\Neller\\Older_Than_Earth_11.pdf","O_6","AB_Index.xlsm","Upper Crust in North-East Australia, International Journal Earth Science, 2012, 101, Pages 1091-1109","Lu/Hf",-3220,3870,7090,2.201863354037267]
[68,"Barren Miocene granitoids","Andean Geology",37,2010,"Pages 1-31","C:\\Essays\\Geo_Dating\\Neller\\","R1","C:\\Essays\\Geo_Dating\\Neller\\R1.pdf","R1","AB_Index.xlsm","Barren Miocene granitoids, Andean Geology, 2010, 37, Pages 1-31","Lu/Hf",-8800,-630,8170,0.92840909090909096]
[71,"Mantle xenoliths from North Korea","Geology",38,2010,"Pages 799-802","C:\\Essays\\Geo_Dating\\Neller\\","R4","C:\\Essays\\Geo_Dating\\Neller\\R4.pdf","R4","AB_Index.xlsm","Mantle xenoliths from North Korea, Geology, 2010, 38, Pages 799-802","Lu/Hf",-1649,8590,10239,6.2092177077016375]
[86,"The Kaapvaal Cratonic Lithospheric Mantle","Journal Of Petrology",48,2007,"Pages 589-625","C:\\Essays\\Geo_Dating\\Neller\\","To_Old_01","C:\\Essays\\Geo_Dating\\Neller\\To_Old_01.pdf","T_1","AB_Index.xlsm","The Kaapvaal Cratonic Lithospheric Mantle, Journal Of Petrology, 2007, 48, Pages 589-625","Lu/Hf",-320,1730,2050,6.40625]
[92,"Multi-stage origin of Roberts Victor eclogites","Lithos","142-143",2012,"Pages 161-181","C:\\Essays\\Geo_Dating\\Neller\\","Future_Ages_02","C:\\Essays\\Geo_Dating\\Neller\\Future_Ages_02.pdf","F02","AC_Index.xlsm","Multi-stage origin of Roberts Victor eclogites, Lithos, 2012, 142-143, Pages 161-181","Lu/Hf",-12340,19870,32210,2.6102106969205834]
[101,"Re–Os Evidence","Chemical Geology",236,2007,"Pages 323-338","C:\\Essays\\Geo_Dating\\Neller\\","Future_Ages_12","C:\\Essays\\Geo_Dating\\Neller\\Future_Ages_12.pdf","F12","AC_Index.xlsm","Re–Os Evidence, Chemical Geology, 2007, 236, Pages 323-338","Lu/Hf",-30,14650,14680,489.33333333333331]
[104,"Central Asian Orogenic Belt","Lithos",126,2011,"Pages 233-247","C:\\Essays\\Geo_Dating\\Neller\\","Future_Ages_13","C:\\Essays\\Geo_Dating\\Neller\\Future_Ages_13.pdf","F13","AC_Index.xlsm","Central Asian Orogenic Belt, Lithos, 2011, 126, Pages 233-247","Lu/Hf",-9270,14650,23920,2.580366774541532]
[null,null,null,null,null,null,null,null,null,null,null,null,"Total",{"$f":"MIN(N30:N36)","v":-12340},{"$f":"MAX(O30:O36)","v":19870},32210,2.6102106969205834]
[null,null,null,null,null,null,null,null,null,null,null,null,"Method","Minimum","Maximum","Difference ","Ratio"]
[38,"The Siberian Craton","Geochimica et Cosmochimica Acta",59,1995,"Pages 959-977","C:\\Essays\\Geo_Dating\\Neller\\","Older_Than_Earth_6","C:\\Essays\\Geo_Dating\\Neller\\Older_Than_Earth_6.pdf","A8","AA_Index.xlsm","The Siberian Craton, Geochimica et Cosmochimica Acta, 1995, 59, Pages 959-977","Nd/Sm",-1,3200,3201,3201]
[26,"African Peridotite Xenoliths","Geochimica et Cosmochimica Acta",53,1989,"Pages 1583-1595","C:\\Essays\\Geo_Dating\\Neller\\","Older_Than_Earth_5","C:\\Essays\\Geo_Dating\\Neller\\Older_Than_Earth_5.pdf","D2","AA_Index.xlsm","African Peridotite Xenoliths, Geochimica et Cosmochimica Acta, 1989, 53, Pages 1583-1595","Nd/Sm",1070,12600,11530,10.77570093457944]
[27,"Upper Crust in North-East Australia","International Journal Earth Science",101,2012,"Pages 1091-1109","C:\\Essays\\Geo_Dating\\Neller\\","Older_Than_Earth_11","C:\\Essays\\Geo_Dating\\Neller\\Older_Than_Earth_11.pdf","O_6","AB_Index.xlsm","Upper Crust in North-East Australia, International Journal Earth Science, 2012, 101, Pages 1091-1109","Nd/Sm",-800,9730,10530,13.1625]
[86,"The Kaapvaal Cratonic Lithospheric Mantle","Journal Of Petrology",48,2007,"Pages 589-625","C:\\Essays\\Geo_Dating\\Neller\\","To_Old_01","C:\\Essays\\Geo_Dating\\Neller\\To_Old_01.pdf","T_1","AB_Index.xlsm","The Kaapvaal Cratonic Lithospheric Mantle, Journal Of Petrology, 2007, 48, Pages 589-625","Nd/Sm",-2247,96661,98908,44.017801513128617]
[92,"Multi-stage origin of Roberts Victor eclogites","Lithos","142-143",2012,"Pages 161-181","C:\\Essays\\Geo_Dating\\Neller\\","Future_Ages_02","C:\\Essays\\Geo_Dating\\Neller\\Future_Ages_02.pdf","F02","AC_Index.xlsm","Multi-stage origin of Roberts Victor eclogites, Lithos, 2012, 142-143, Pages 161-181","Nd/Sm",-22420,8100,30520,1.3612845673505798]
[96,"Lu-Hf Geochronology","Chemical Geology",142,1997,"Pages 63-78","C:\\Essays\\Geo_Dating\\Neller\\","Future_Ages_08","C:\\Essays\\Geo_Dating\\Neller\\Future_Ages_08.pdf","F08","AC_Index.xlsm","Lu-Hf Geochronology, Chemical Geology, 1997, 142, Pages 63-78","Nd/Sm",-659,1137,1796,2.725341426403642]
[98,"Multiple Metasomatic Events","Lithos","112-S",2009,"Pages 896-912","C:\\Essays\\Geo_Dating\\Neller\\","Future_Ages_11","C:\\Essays\\Geo_Dating\\Neller\\Future_Ages_11.pdf","F11","AC_Index.xlsm","Multiple Metasomatic Events, Lithos, 2009, 112-S, Pages 896-912","Nd/Sm",-2192,2013,4205,1.9183394160583942]
[101,"Re–Os Evidence","Chemical Geology",236,2007,"Pages 323-338","C:\\Essays\\Geo_Dating\\Neller\\","Future_Ages_12","C:\\Essays\\Geo_Dating\\Neller\\Future_Ages_12.pdf","F12","AC_Index.xlsm","Re–Os Evidence, Chemical Geology, 2007, 236, Pages 323-338","Nd/Sm",820,5910,5090,6.2073170731707314]
[104,"Central Asian Orogenic Belt","Lithos",126,2011,"Pages 233-247","C:\\Essays\\Geo_Dating\\Neller\\","Future_Ages_13","C:\\Essays\\Geo_Dating\\Neller\\Future_Ages_13.pdf","F13","AC_Index.xlsm","Central Asian Orogenic Belt, Lithos, 2011, 126, Pages 233-247","Nd/Sm",490,5910,5420,11.061224489795919]
[null,null,null,null,null,null,null,null,null,null,null,null,"Total",{"$f":"MIN(N39:N47)","v":-22420},{"$f":"MAX(O39:O47)","v":96661},119081,5.3113737734165927]
[null,null,null,null,null,null,null,null,null,null,null,null,"Method","Minimum","Maximum","Difference ","Ratio"]
[62,"The Allende and Orgueil Chondrites ","Geochimica et Cosmochimica Acta",40,1976,"Pages 617-634","C:\\Essays\\Geo_Dating\\Neller\\","Meteorite_Tatsumoto","C:\\Essays\\Geo_Dating\\Neller\\Meteorite_Tatsumoto.pdf","C8","AA_Index.xlsm","The Allende and Orgueil Chondrites , Geochimica et Cosmochimica Acta, 1976, 40, Pages 617-634","Pb/Pb",4467,4569,102,2.2834116856950974E-2]
[29,"Silica Mineral Formation","Geochimica et Cosmochimica Acta",67,2003,"Pages 1145-1176","C:\\Essays\\Geo_Dating\\Neller\\","Amelin_G","C:\\Essays\\Geo_Dating\\Neller\\Amelin_G.pdf","E5","AA_Index.xlsm","Silica Mineral Formation, Geochimica et Cosmochimica Acta, 2003, 67, Pages 1145-1176","Pb/Pb",-3879,11,3890,1.0028357824181491]
[null,null,null,null,null,null,null,null,null,null,null,null,"Total",{"$f":"MIN(N50:N51)","v":-3879},{"$f":"MAX(O50:O51)","v":4569},8448,2.1778808971384378]
[null,null,null,null,null,null,null,null,null,null,null,null,"Method","Minimum","Maximum","Difference ","Ratio"]
[38,"The Siberian Craton","Geochimica et Cosmochimica Acta",59,1995,"Pages 959-977","C:\\Essays\\Geo_Dating\\Neller\\","Older_Than_Earth_6","C:\\Essays\\Geo_Dating\\Neller\\Older_Than_Earth_6.pdf","A8","AA_Index.xlsm","The Siberian Craton, Geochimica et Cosmochimica Acta, 1995, 59, Pages 959-977","Rb/Sr",5445,12716,7271,1.3353535353535353]
[31,"Rb-Sr Ages Of Iron Meteorites","Earth Planetary Science Letters",2,1967,"Pages 397-408","C:\\Essays\\Geo_Dating\\Neller\\","Meteorite_Burnett","C:\\Essays\\Geo_Dating\\Neller\\Meteorite_Burnett.pdf","A9","AA_Index.xlsm","Rb-Sr Ages Of Iron Meteorites, Earth Planetary Science Letters, 1967, 2, Pages 397-408","Rb/Sr",3700,9300,5600,1.5135135135135136]
[32,"Isotopic discrepancies in Black Hills, South Dakota","Geochimica et Cosmochimica Acta",34,1970,"Pages 713-725","C:\\Essays\\Geo_Dating\\Neller\\","Riley","C:\\Essays\\Geo_Dating\\Neller\\Riley.pdf","B3","AA_Index.xlsm","Isotopic discrepancies in Black Hills, South Dakota, Geochimica et Cosmochimica Acta, 1970, 34, Pages 713-725","Rb/Sr",1400,900000,898600,641.85714285714289]
[33,"Rhenium-187-Osmium-187 in iron meteorites","Meteoritics And Planetary Science",33,1998,"Pages 647-653","C:\\Essays\\Geo_Dating\\Neller\\","Meteorite_Birck","C:\\Essays\\Geo_Dating\\Neller\\Meteorite_Birck.pdf","B9","AA_Index.xlsm","Rhenium-187-Osmium-187 in iron meteorites, Meteoritics And Planetary Science, 1998, 33, Pages 647-653","Rb/Sr",1180,13700,12520,10.610169491525424]
[34,"Antarctic LL-chondrites","Geochimica et Cosmochimica Acta",54,1990,"Pages 3509-3523","C:\\Essays\\Geo_Dating\\Neller\\","Meteorite_Okano","C:\\Essays\\Geo_Dating\\Neller\\Meteorite_Okano.pdf","C9","AA_Index.xlsm","Antarctic LL-chondrites, Geochimica et Cosmochimica Acta, 1990, 54, Pages 3509-3523","Rb/Sr",3110,7330,4220,1.3569131832797428]
[35,"North Western Wyoming Craton","Earth Planetary Science Letters",126,1994,"Pages 457-472","C:\\Essays\\Geo_Dating\\Neller\\","Older_Than_Earth_2","C:\\Essays\\Geo_Dating\\Neller\\Older_Than_Earth_2.pdf","D3","AA_Index.xlsm","North Western Wyoming Craton, Earth Planetary Science Letters, 1994, 126, Pages 457-472","Rb/Sr",-3440,15500,18940,5.5058139534883717]
[36,"Age and Origin of Base and Precious Metal","Economic Geology",97,2002,"Pages 35-37","C:\\Essays\\Geo_Dating\\Neller\\","Ages_001","C:\\Essays\\Geo_Dating\\Neller\\Ages_001.pdf","D5","AA_Index.xlsm","Age and Origin of Base and Precious Metal, Economic Geology, 2002, 97, Pages 35-37","Rb/Sr",79,23312,23233,294.08860759493672]
[88,"Rb-Sr And Sm-Nd Studies","Chemical Geology",52,1985,"Pages 249-271","C:\\Essays\\Geo_Dating\\Neller\\","To_Old_06","C:\\Essays\\Geo_Dating\\Neller\\To_Old_06.pdf","T_3","AB_Index.xlsm","Rb-Sr And Sm-Nd Studies, Chemical Geology, 1985, 52, Pages 249-271","Rb/Sr",267,20000,19733,73.906367041198507]
[89,"Norwegian Caledonides: An isotopic investigation","Lithos",117,2010,"Pages 1-19","C:\\Essays\\Geo_Dating\\Neller\\","Future_Ages_01","C:\\Essays\\Geo_Dating\\Neller\\Future_Ages_01.pdf","F01","AC_Index.xlsm","Norwegian Caledonides: An isotopic investigation, Lithos, 2010, 117, Pages 1-19","Rb/Sr",-31071,76523,107594,3.4628431656528598]
[92,"Multi-stage origin of Roberts Victor eclogites","Lithos","142-143",2012,"Pages 161-181","C:\\Essays\\Geo_Dating\\Neller\\","Future_Ages_02","C:\\Essays\\Geo_Dating\\Neller\\Future_Ages_02.pdf","F02","AC_Index.xlsm","Multi-stage origin of Roberts Victor eclogites, Lithos, 2012, 142-143, Pages 161-181","Rb/Sr",32,6874,6842,213.8125]
[97,"Isotopic Disequilibrium","Chemical Geology",162,2000,"Pages 169-191","C:\\Essays\\Geo_Dating\\Neller\\","Future_Ages_09","C:\\Essays\\Geo_Dating\\Neller\\Future_Ages_09.pdf","F09","AC_Index.xlsm","Isotopic Disequilibrium, Chemical Geology, 2000, 162, Pages 169-191","Rb/Sr",-15,201,216,14.4]
[null,null,null,null,null,null,null,null,null,null,null,null,"Total",{"$f":"MIN(N54:N64)","v":-31071},{"$f":"MAX(O54:O64)","v":900000},931071,29.96591677126581]
[null,null,null,null,null,null,null,null,null,null,null,null,"Method","Minimum","Maximum","Difference ","Ratio"]
[55,"Canadian Cordillera lithosphere","Chemical Geology",166,2000,"Pages 85-101",{"$f":" \"C:\\Essays\\Geo_Dating\\Neller\\\"","v":"C:\\Essays\\Geo_Dating\\Neller\\"},"Older_Than_Earth_09",{"$f":" \"C:\\Essays\\Geo_Dating\\Neller\\\" & H67 & \".pdf\"","v":"C:\\Essays\\Geo_Dating\\Neller\\Older_Than_Earth_09.pdf"},"O_5","AB_Index.xlsm","Canadian Cordillera lithosphere, Chemical Geology, 2000, 166, Pages 85-101","Re/Os",-1,748,{"$f":"O67-N67","v":749},{"$f":"ABS(P67/N67)","v":749}]
[105,"The Mamonia complex, Cyprus","Chemical Geology",248,2008,"Pages 195-212","C:\\Essays\\Geo_Dating\\Neller\\","Future_Ages_14","C:\\Essays\\Geo_Dating\\Neller\\Future_Ages_14.pdf","F14","AC_Index.xlsm",{"$f":"B68 & \", \" & C68 &  \", \" & E68 & \", \" & D68 & \", \" & F68","v":"The Mamonia complex, Cyprus, Chemical Geology, 2008, 248, Pages 195-212"},"Re/Os",-1,1550,1551,1551]
[82,"The western North China Craton","Lithos",149,2012,"Pages 100-114","C:\\Essays\\Geo_Dating\\Neller\\","RF","C:\\Essays\\Geo_Dating\\Neller\\RF.pdf","RF","AB_Index.xlsm","The western North China Craton, Lithos, 2012, 149, Pages 100-114","Re/Os",-1,2240,2241,2241]
[39,"The Study of Molybdenites","Earth Planetary Science Letters",61,1982,"Pages 291-296","C:\\Essays\\Geo_Dating\\Neller\\","Older_Than_Earth_7","C:\\Essays\\Geo_Dating\\Neller\\Older_Than_Earth_7.pdf","C0","AA_Index.xlsm","The Study of Molybdenites, Earth Planetary Science Letters, 1982, 61, Pages 291-296","Re/Os",2700,5800,3100,1.1481481481481481]
[40,"Reliable Re-Os Ages","Geochimica et Cosmochimica Acta",57,1993,"Pages 1625-1628","C:\\Essays\\Geo_Dating\\Neller\\","Older_Than_Earth_8","C:\\Essays\\Geo_Dating\\Neller\\Older_Than_Earth_8.pdf","C4","AA_Index.xlsm","Reliable Re-Os Ages, Geochimica et Cosmochimica Acta, 1993, 57, Pages 1625-1628","Re/Os",2655,6300,3645,1.3728813559322033]
[93,"Re-Os systematics of mantle xenoliths","Geochimica et Cosmochimica Acta",63,1999,"Pages 1203-1217","C:\\Essays\\Geo_Dating\\Neller\\","Future_Ages_03","C:\\Essays\\Geo_Dating\\Neller\\Future_Ages_03.pdf","F03","AC_Index.xlsm","Re-Os systematics of mantle xenoliths, Geochimica et Cosmochimica Acta, 1999, 63, Pages 1203-1217","Re/Os",-1,4000,4001,4001]
[107,"Northern Canadian Cordillera Xenoliths","Geochimica et Cosmochimica Acta",64,2000,"Pages 3061-3071","C:\\Essays\\Geo_Dating\\Neller\\","Future_Ages_17","C:\\Essays\\Geo_Dating\\Neller\\Future_Ages_17.pdf","F17","AC_Index.xlsm","Northern Canadian Cordillera Xenoliths, Geochimica et Cosmochimica Acta, 2000, 64, Pages 3061-3071","Re/Os",-1,4500,4501,4501]
[83,"Single abyssal peridotite sulfides","Earth Planetary Science Letters",359,2012,"Pages 279-293","C:\\Essays\\Geo_Dating\\Neller\\","RG","C:\\Essays\\Geo_Dating\\Neller\\RG.pdf","RG","AB_Index.xlsm","Single abyssal peridotite sulfides, Earth Planetary Science Letters, 2012, 359, Pages 279-293","Re/Os",-2500,2800,5300,2.12]
[51,"The Age of Continental Roots","Lithos",48,1999,"Pages 171-194","C:\\Essays\\Geo_Dating\\Neller\\","Greater_Than_Earth_05","C:\\Essays\\Geo_Dating\\Neller\\Greater_Than_Earth_05.pdf","G5","AB_Index.xlsm","The Age of Continental Roots, Lithos, 1999, 48, Pages 171-194","Re/Os",2780,8380,5600,2.014388489208633]
[77,"Re-Os systematics of peridotites","Journal of the Geological Society",168,2011,"Pages 1201-1214","C:\\Essays\\Geo_Dating\\Neller\\","RA","C:\\Essays\\Geo_Dating\\Neller\\RA.pdf","RA","AB_Index.xlsm","Re-Os systematics of peridotites, Journal of the Geological Society, 2011, 168, Pages 1201-1214","Re/Os",-2860,2820,5680,1.986013986013986]
[56,"Lithospheric Mantle and Diamonds ","Lithos","112-S",2009,"Pages 1120-1132","C:\\Essays\\Geo_Dating\\Neller\\","Older_Than_Earth_12","C:\\Essays\\Geo_Dating\\Neller\\Older_Than_Earth_12.pdf","O_7","AB_Index.xlsm","Lithospheric Mantle and Diamonds , Lithos, 2009, 112-S, Pages 1120-1132","Re/Os",1980,7850,5870,2.9646464646464645]
[49,"Osmium Isotopes ","Chemical Geology",130,1996,"Pages 55-64","C:\\Essays\\Geo_Dating\\Neller\\","Greater_Than_Earth_01","C:\\Essays\\Geo_Dating\\Neller\\Greater_Than_Earth_01.pdf","G1","AB_Index.xlsm","Osmium Isotopes , Chemical Geology, 1996, 130, Pages 55-64","Re/Os",90,6900,6810,75.666666666666671]
[81,"Principles of Re-Os Isotopic System","Journal Petrology Society Korea",15,2006,"Pages 106-117","C:\\Essays\\Geo_Dating\\Neller\\","RE","C:\\Essays\\Geo_Dating\\Neller\\RE.pdf","RE","AB_Index.xlsm","Principles of Re-Os Isotopic System, Journal Petrology Society Korea, 2006, 15, Pages 106-117","Re/Os",-770,6790,7560,9.8181818181818183]
[70,"Isotopic signatures in Zealandia ","Geology",null,2012,"Pages 1-19","C:\\Essays\\Geo_Dating\\Neller\\","R3","C:\\Essays\\Geo_Dating\\Neller\\R3.pdf","R3","AB_Index.xlsm","Isotopic signatures in Zealandia , Geology, 2012, , Pages 1-19","Re/Os",-6240,3510,9750,1.5625]
[75,"The Scottish margin of the North Atlantic Craton","Precambrian Research",250,2014,"Pages 97-126","C:\\Essays\\Geo_Dating\\Neller\\","R8","C:\\Essays\\Geo_Dating\\Neller\\R8.pdf","R8","AB_Index.xlsm","The Scottish margin of the North Atlantic Craton, Precambrian Research, 2014, 250, Pages 97-126","Re/Os",-7307,3505,10812,1.4796770220336664]
[78,"Constraints on mantle processes and late ","University Berlin, Thesis",null,2014,"Pages 1-168","C:\\Essays\\Geo_Dating\\Neller\\","RB","C:\\Essays\\Geo_Dating\\Neller\\RB.pdf","RB","AB_Index.xlsm","Constraints on mantle processes and late , University Berlin, Thesis, 2014, , Pages 1-168","Re/Os",-9260,1620,10880,1.1749460043196545]
[38,"The Siberian Craton","Geochimica et Cosmochimica Acta",59,1995,"Pages 959-977","C:\\Essays\\Geo_Dating\\Neller\\","Older_Than_Earth_6","C:\\Essays\\Geo_Dating\\Neller\\Older_Than_Earth_6.pdf","A8","AA_Index.xlsm","The Siberian Craton, Geochimica et Cosmochimica Acta, 1995, 59, Pages 959-977","Re/Os",-1,11000,11001,11001]
[46,"Re–Os Isotopic Results","Chemical Geology",291,2012,"Pages 186–198","C:\\Essays\\Geo_Dating\\Neller\\","Future_Ages_006","C:\\Essays\\Geo_Dating\\Neller\\Future_Ages_006.pdf","F3","AA_Index.xlsm","Re–Os Isotopic Results, Chemical Geology, 2012, 291, Pages 186–198","Re/Os",-675,10430,11105,16.451851851851853]
[45,"Hebi, North China Craton","Chemical Geology",328,2012,"Pages 123–136","C:\\Essays\\Geo_Dating\\Neller\\","Future_Ages_005","C:\\Essays\\Geo_Dating\\Neller\\Future_Ages_005.pdf","F2","AA_Index.xlsm","Hebi, North China Craton, Chemical Geology, 2012, 328, Pages 123–136","Re/Os",-3100,8400,11500,3.7096774193548385]
[69,"Early Archean partial melting events","University Bonn, Thesis",null,2004,"Pages 1-132","C:\\Essays\\Geo_Dating\\Neller\\","R2","C:\\Essays\\Geo_Dating\\Neller\\R2.pdf","R2","AB_Index.xlsm","Early Archean partial melting events, University Bonn, Thesis, 2004, , Pages 1-132","Re/Os",-8620,3220,11840,1.3735498839907192]
[44,"Rocks From the Earth’s Mantle","University Berlin, Thesis",null,2013,"Pages 1-186","C:\\Essays\\Geo_Dating\\Neller\\","TRD_06","C:\\Essays\\Geo_Dating\\Neller\\TRD_06.pdf","E9","AA_Index.xlsm","Rocks From the Earth’s Mantle, University Berlin, Thesis, 2013, , Pages 1-186","Re/Os",-9260,3200,12460,1.3455723542116631]
[73,"North Patagonian Mantle Xenoliths","Journal of Petrology",57,2016,"Pages 685-715","C:\\Essays\\Geo_Dating\\Neller\\","R6","C:\\Essays\\Geo_Dating\\Neller\\R6.pdf","R6","AB_Index.xlsm","North Patagonian Mantle Xenoliths, Journal of Petrology, 2016, 57, Pages 685-715","Re/Os",-2400,10700,13100,5.458333333333333]
[106,"A Paleozoic Convergent Plate","Chemical Geology",208,2004,"Pages 141-156","C:\\Essays\\Geo_Dating\\Neller\\","Future_Ages_16","C:\\Essays\\Geo_Dating\\Neller\\Future_Ages_16.pdf","F16","AC_Index.xlsm","A Paleozoic Convergent Plate, Chemical Geology, 2004, 208, Pages 141-156","Re/Os",-4300,9100,13400,3.1162790697674421]
[101,"Re–Os Evidence","Chemical Geology",236,2007,"Pages 323-338","C:\\Essays\\Geo_Dating\\Neller\\","Future_Ages_12","C:\\Essays\\Geo_Dating\\Neller\\Future_Ages_12.pdf","F12","AC_Index.xlsm","Re–Os Evidence, Chemical Geology, 2007, 236, Pages 323-338","Re/Os",-3830,10620,14450,3.7728459530026108]
[104,"Central Asian Orogenic Belt","Lithos",126,2011,"Pages 233-247","C:\\Essays\\Geo_Dating\\Neller\\","Future_Ages_13","C:\\Essays\\Geo_Dating\\Neller\\Future_Ages_13.pdf","F13","AC_Index.xlsm","Central Asian Orogenic Belt, Lithos, 2011, 126, Pages 233-247","Re/Os",-3830,10620,14450,3.7728459530026108]
[110,"In situ Measurement of Re-Os Isotopes","Geochimica et Cosmochimica Acta",66,2002,"Pages 1037-1050","C:\\Essays\\Geo_Dating\\Neller\\","Future_Ages_26","C:\\Essays\\Geo_Dating\\Neller\\Future_Ages_26.pdf","F26","AC_Index.xlsm","In situ Measurement of Re-Os Isotopes, Geochimica et Cosmochimica Acta, 2002, 66, Pages 1037-1050","Re/Os",-7120,7690,14810,2.0800561797752808]
[48,"The age of Lithospheric Mantle","Chemical Geology",196,2003,"Pages 107–129","C:\\Essays\\Geo_Dating\\Neller\\","Future_Ages_008","C:\\Essays\\Geo_Dating\\Neller\\Future_Ages_008.pdf","F5","AA_Index.xlsm","The age of Lithospheric Mantle, Chemical Geology, 2003, 196, Pages 107–129","Re/Os",150,15410,15260,101.73333333333333]
[37,"Stabilisation of Archaean lithosphere","Earth Planetary Science Letters",134,1995,"Pages 341-357","C:\\Essays\\Geo_Dating\\Neller\\","Pearson","C:\\Essays\\Geo_Dating\\Neller\\Pearson.pdf","A7","AA_Index.xlsm","Stabilisation of Archaean lithosphere, Earth Planetary Science Letters, 1995, 134, Pages 341-357","Re/Os",100,15600,15500,155]
[108,"Xenoliths from Yangyuan and Fansi","Lithos",102,2008,"Pages 25-42","C:\\Essays\\Geo_Dating\\Neller\\","Future_Ages_19","C:\\Essays\\Geo_Dating\\Neller\\Future_Ages_19.pdf","F19","AC_Index.xlsm","Xenoliths from Yangyuan and Fansi, Lithos, 2008, 102, Pages 25-42","Re/Os",-10800,9700,20500,1.8981481481481481]
[109,"Formation of the North Atlantic Craton","Chemical Geology",276,2010,"Pages 166-187","C:\\Essays\\Geo_Dating\\Neller\\","Future_Ages_21","C:\\Essays\\Geo_Dating\\Neller\\Future_Ages_21.pdf","F21","AC_Index.xlsm","Formation of the North Atlantic Craton, Chemical Geology, 2010, 276, Pages 166-187","Re/Os",-14258,6994,21252,1.4905316313648478]
[74,"Age and geochemistry of lithospheric mantle","University Maryland, Thesis",null,2015,"Pages 1-17","C:\\Essays\\Geo_Dating\\Neller\\","R7","C:\\Essays\\Geo_Dating\\Neller\\R7.pdf","R7","AB_Index.xlsm","Age and geochemistry of lithospheric mantle, University Maryland, Thesis, 2015, , Pages 1-17","Re/Os",-2080,21500,23580,11.336538461538462]
[94,"The Raobazhai peridotite massifs","Chemical Geology",268,2009,"Pages 1-14","C:\\Essays\\Geo_Dating\\Neller\\","Future_Ages_04","C:\\Essays\\Geo_Dating\\Neller\\Future_Ages_04.pdf","F04","AC_Index.xlsm","The Raobazhai peridotite massifs, Chemical Geology, 2009, 268, Pages 1-14","Re/Os",-27744,3094,30838,1.1115196078431373]
[47,"Lithospheric Mantle Evolution ","Lithos",125,2011,"Pages 405–422",{"$f":" \"C:\\Essays\\Geo_Dating\\Neller\\\"","v":"C:\\Essays\\Geo_Dating\\Neller\\"},"Older_Than_Earth_07","C:\\Essays\\Geo_Dating\\Neller\\Older_Than_Earth_07.pdf","F4","AA_Index.xlsm","Lithospheric Mantle Evolution , Lithos, 2011, 125, Pages 405–422","Re/Os",-24710,8620,33330,1.348846620801295]
[86,"The Kaapvaal Cratonic Lithospheric Mantle","Journal Of Petrology",48,2007,"Pages 589-625","C:\\Essays\\Geo_Dating\\Neller\\","To_Old_01","C:\\Essays\\Geo_Dating\\Neller\\To_Old_01.pdf","T_1","AB_Index.xlsm","The Kaapvaal Cratonic Lithospheric Mantle, Journal Of Petrology, 2007, 48, Pages 589-625","Re/Os",600,34600,34000,56.666666666666664]
[43,"Rhenium/Osmium Geochronology of Oxide Minerals","University Alberta, Thesis",null,2010,"Pages 1-152","C:\\Essays\\Geo_Dating\\Neller\\","TRD_05","C:\\Essays\\Geo_Dating\\Neller\\TRD_05.pdf","E8","AA_Index.xlsm","Rhenium/Osmium Geochronology of Oxide Minerals, University Alberta, Thesis, 2010, , Pages 1-152","Re/Os",-3700,38190,41890,11.321621621621622]
[53,"Diamond Formation Episodes ","Contributions Mineral Petrology",157,2009,"Pages 525–540","C:\\Essays\\Geo_Dating\\Neller\\","Older_Than_Earth_03","C:\\Essays\\Geo_Dating\\Neller\\Older_Than_Earth_03.pdf","O_3","AB_Index.xlsm","Diamond Formation Episodes , Contributions Mineral Petrology, 2009, 157, Pages 525–540","Re/Os",-51000,10300,61300,1.2019607843137254]
[87,"In Situ Analysis of Sulphides","Earth Planetary Science Letters",203,2002,"Pages 651-663","C:\\Essays\\Geo_Dating\\Neller\\","To_Old_03","C:\\Essays\\Geo_Dating\\Neller\\To_Old_03.pdf","T_2","AB_Index.xlsm","In Situ Analysis of Sulphides, Earth Planetary Science Letters, 2002, 203, Pages 651-663","Re/Os",-32000,34000,66000,2.0625]
[76,"Xenoliths from the Bohemian Massif","Chemical Geology",430,2016,"Pages 90-107","C:\\Essays\\Geo_Dating\\Neller\\","R9","C:\\Essays\\Geo_Dating\\Neller\\R9.pdf","R9","AB_Index.xlsm","Xenoliths from the Bohemian Massif, Chemical Geology, 2016, 430, Pages 90-107","Re/Os",-1,68000,68001,68001]
[42,"The North China Craton","University Maryland, Thesis",null,2011,"Pages 1-238","C:\\Essays\\Geo_Dating\\Neller\\","TRD_04","C:\\Essays\\Geo_Dating\\Neller\\TRD_04.pdf","E7","AA_Index.xlsm","The North China Craton, University Maryland, Thesis, 2011, , Pages 1-238","Re/Os",-30000,40000,70000,2.3333333333333335]
[52,"Archean Man Shield, West Africa","Precambrian Research",118,2002,"Pages 267-283","C:\\Essays\\Geo_Dating\\Neller\\","Older_Than_Earth_05","C:\\Essays\\Geo_Dating\\Neller\\Older_Than_Earth_05.pdf","O_2","AB_Index.xlsm","Archean Man Shield, West Africa, Precambrian Research, 2002, 118, Pages 267-283","Re/Os",1390,77160,75770,54.510791366906474]
[41,"Evolution of the South China Block","Geochimica et Cosmochimica Acta",73,2009,"Pages 4531–4557","C:\\Essays\\Geo_Dating\\Neller\\","TRD_03","C:\\Essays\\Geo_Dating\\Neller\\TRD_03.pdf","E6","AA_Index.xlsm","Evolution of the South China Block, Geochimica et Cosmochimica Acta, 2009, 73, Pages 4531–4557","Re/Os",-59500,25900,85400,1.4352941176470588]
[54,"Re/Os Isotopes of Sulfides ","Lithos",102,2008,"Pages 43-64","C:\\Essays\\Geo_Dating\\Neller\\","Older_Than_Earth_04","C:\\Essays\\Geo_Dating\\Neller\\Older_Than_Earth_04.pdf","O_4","AB_Index.xlsm","Re/Os Isotopes of Sulfides , Lithos, 2008, 102, Pages 43-64","Re/Os",-47693,39229,86922,1.8225316084121359]
[72,"Re-Os Geochronology of Oxide Minerals","University Alberta, Thesis",null,2010,"Pages 1-153","C:\\Essays\\Geo_Dating\\Neller\\","R5","C:\\Essays\\Geo_Dating\\Neller\\R5.pdf","R5","AB_Index.xlsm","Re-Os Geochronology of Oxide Minerals, University Alberta, Thesis, 2010, , Pages 1-153","Re/Os",{"$f":"MIN(N96:N108)","v":-59500},38190,97690,1.6418487394957983]
[79,"The Taitao Ophiolite, Southern Chile","University Maryland, Thesis",null,2007,"Pages 1-117","C:\\Essays\\Geo_Dating\\Neller\\","RC","C:\\Essays\\Geo_Dating\\Neller\\RC.pdf","RC","AB_Index.xlsm","The Taitao Ophiolite, Southern Chile, University Maryland, Thesis, 2007, , Pages 1-117","Re/Os",-111000,1500,112500,1.0135135135135136]
[95,"In situ Re–Os evidence","Journal of Asian Earth Sciences",62,2013,"Pages 37-50","C:\\Essays\\Geo_Dating\\Neller\\","Future_Ages_07","C:\\Essays\\Geo_Dating\\Neller\\Future_Ages_07.pdf","F07","AC_Index.xlsm","In situ Re–Os evidence, Journal of Asian Earth Sciences, 2013, 62, Pages 37-50","Re/Os",-79140,144550,223690,2.8265099823098305]
[50,"Evolution Beneath the Kaapvaal Craton","Chemical Geology",208,2004,"Pages 89-118",{"$f":" \"C:\\Essays\\Geo_Dating\\Neller\\\"","v":"C:\\Essays\\Geo_Dating\\Neller\\"},"Greater_Than_Earth_02","C:\\Essays\\Geo_Dating\\Neller\\Greater_Than_Earth_02.pdf","G2","AB_Index.xlsm","Evolution Beneath the Kaapvaal Craton, Chemical Geology, 2004, 208, Pages 89-118","Re/Os",-279000,79000,358000,1.2831541218637992]
[80,"Samarium/Neodymium geochronology","University Boston, Thesis",null,2014,"Pages 1-207",{"$f":" \"C:\\Essays\\Geo_Dating\\Neller\\\"","v":"C:\\Essays\\Geo_Dating\\Neller\\"},"RD","C:\\Essays\\Geo_Dating\\Neller\\RD.pdf","RD","AB_Index.xlsm","Samarium/Neodymium geochronology, University Boston, Thesis, 2014, , Pages 1-207","Re/Os",-15000001,14999999,30000000,1.9999998666666756]
[null,null,null,null,null,null,null,null,null,null,null,null,"Total",{"$f":"MIN(N67:N113)","v":-15000001},{"$f":"MAX(O67:O113)","v":14999999},30000000,1.9999998666666756]
[null,null,null,null,null,null,null,null,null,null,null,null,"Method","Minimum","Maximum","Difference ","Ratio"]
[57,"Three Apollo 14 Basalts","Earth Planetary Science Letters",14,1972,"Pages 281-304.",{"$f":" \"C:\\Essays\\Geo_Dating\\Neller\\\"","v":"C:\\Essays\\Geo_Dating\\Neller\\"},"Wasserburg",{"$f":" \"C:\\Essays\\Geo_Dating\\Neller\\\" & H116 & \".pdf\"","v":"C:\\Essays\\Geo_Dating\\Neller\\Wasserburg.pdf"},"B4","AA_Index.xlsm","Three Apollo 14 Basalts, Earth Planetary Science Letters, 1972, 14, Pages 281-304.","Th/Pb",4010,28140,{"$f":"O116-N116","v":24130},{"$f":"ABS(P116/N116)","v":6.0174563591022441}]
[62,"The Allende and Orgueil Chondrites ","Geochimica et Cosmochimica Acta",40,1976,"Pages 617-634","C:\\Essays\\Geo_Dating\\Neller\\","Meteorite_Tatsumoto","C:\\Essays\\Geo_Dating\\Neller\\Meteorite_Tatsumoto.pdf","C8","AA_Index.xlsm","The Allende and Orgueil Chondrites , Geochimica et Cosmochimica Acta, 1976, 40, Pages 617-634","Th/Pb",4810,16490,11680,2.4282744282744284]
[59,"Natural Radionuclide Mobility","Geochimica et Cosmochimica Acta",72,2008,"Pages 2067-2089","C:\\Essays\\Geo_Dating\\Neller\\","Amelin_F","C:\\Essays\\Geo_Dating\\Neller\\Amelin_F.pdf","E2","AA_Index.xlsm","Natural Radionuclide Mobility, Geochimica et Cosmochimica Acta, 2008, 72, Pages 2067-2089","Th/Pb",4,82030,82026,20506.5]
[59,"Natural Radionuclide Mobility","Geochimica et Cosmochimica Acta",72,2008,"Pages 2067-2089","C:\\Essays\\Geo_Dating\\Neller\\","Amelin_F","C:\\Essays\\Geo_Dating\\Neller\\Amelin_F.pdf","E2","AA_Index.xlsm","Natural Radionuclide Mobility, Geochimica et Cosmochimica Acta, 2008, 72, Pages 2067-2089","Th/Pb",-98470,262350,360820,3.6642632273788971]
[null,null,null,null,null,null,null,null,null,null,null,null,"Total",{"$f":"MIN(N116:N119)","v":-98470},{"$f":"MAX(O116:O119)","v":262350},360820,3.6642632273788971]
[null,null,null,null,null,null,null,null,null,null,null,null,"Method","Minimum","Maximum","Difference ","Ratio"]
[60,"Isotopic Lead Ages Of Meteorites","Earth Planetary Science Letters",19,1973,"Pages 321-329","C:\\Essays\\Geo_Dating\\Neller\\","Pb-206_14","C:\\Essays\\Geo_Dating\\Neller\\Pb-206_14.pdf","B5","AA_Index.xlsm","Isotopic Lead Ages Of Meteorites, Earth Planetary Science Letters, 1973, 19, Pages 321-329","U/Pb",4126,8615,4489,1.0879786718371305]
[62,"The Allende and Orgueil Chondrites ","Geochimica et Cosmochimica Acta",40,1976,"Pages 617-634","C:\\Essays\\Geo_Dating\\Neller\\","Meteorite_Tatsumoto","C:\\Essays\\Geo_Dating\\Neller\\Meteorite_Tatsumoto.pdf","C8","AA_Index.xlsm","The Allende and Orgueil Chondrites , Geochimica et Cosmochimica Acta, 1976, 40, Pages 617-634","U/Pb",4920,9860,4940,1.0040650406504066]
[62,"The Allende and Orgueil Chondrites ","Geochimica et Cosmochimica Acta",40,1976,"Pages 617-634","C:\\Essays\\Geo_Dating\\Neller\\","Meteorite_Tatsumoto","C:\\Essays\\Geo_Dating\\Neller\\Meteorite_Tatsumoto.pdf","C8","AA_Index.xlsm","The Allende and Orgueil Chondrites , Geochimica et Cosmochimica Acta, 1976, 40, Pages 617-634","U/Pb",4700,5780,1080,0.22978723404255319]
[63,"U-Pb ages of angrites","Geochimica et Cosmochimica Acta",72,2008,"Pages 221-232","C:\\Essays\\Geo_Dating\\Neller\\","Amelin_D","C:\\Essays\\Geo_Dating\\Neller\\Amelin_D.pdf","E0","AA_Index.xlsm","U-Pb ages of angrites, Geochimica et Cosmochimica Acta, 2008, 72, Pages 221-232","U/Pb",3727.8,6625,2897.2,0.77718761736144637]
[64,"Pb isotopic age of the Allende chondrules","Meteoritics And Planetary Science",42,2007,"Pages 1321-1335","C:\\Essays\\Geo_Dating\\Neller\\","Amelin_C","C:\\Essays\\Geo_Dating\\Neller\\Amelin_C.pdf","E3","AA_Index.xlsm","Pb isotopic age of the Allende chondrules, Meteoritics And Planetary Science, 2007, 42, Pages 1321-1335","U/Pb",1799,10066,8267,4.5953307392996106]
[65,"Precise U-Pb dating","Geochimica et Cosmochimica Acta",69,2005,"Pages 505-518","C:\\Essays\\Geo_Dating\\Neller\\","Amelin_A","C:\\Essays\\Geo_Dating\\Neller\\Amelin_A.pdf","E4","AA_Index.xlsm","Precise U-Pb dating, Geochimica et Cosmochimica Acta, 2005, 69, Pages 505-518","U/Pb",4249,6473,2224,0.52341727465285948]
[null,null,null,null,null,null,null,null,null,null,null,null,"Total",{"$f":"MIN(N122:N127)","v":1799},{"$f":"MAX(O122:O127)","v":10066},8267,4.5953307392996106]
[null,null,null,null,null,null,null,null,null,null,null,null,"Method","Minimum","Maximum","Difference ","Ratio"]
[66,"Single grain (U-Th)/He ages, Acapulco meteorite","Earth Planetary Science Letters",209,2003,"Pages 323-336","C:\\Essays\\Geo_Dating\\Neller\\","Meteorite_Kyoungwon","C:\\Essays\\Geo_Dating\\Neller\\Meteorite_Kyoungwon.pdf","C5","AA_Index.xlsm","Single grain (U-Th)/He ages, Acapulco meteorite, Earth Planetary Science Letters, 2003, 209, Pages 323-336","U/Th",1452,4909,3457,2.3808539944903582]
[]
[]
[]
[]
[]
[]
[1,"Ar-39/Ar-40 Dating of Mesosiderites, Geochimica et Cosmochimica Acta, 1990, 54, Pages 2549-2564"]
[2,"39Ar-40Ar Ages of Eucrites, Meteoritics And Planetary Science, 2003, 38, Pages 669–710"]
[3,"Ar diffusion properties, Meteorites, Geochimica et Cosmochimica Acta, 1980, 44, Pages 1667-1682"]
[4,"Argon-39/Argon-40 Ages, Meteoritics And Planetary Science, 2001, 36, Pages 107-122"]
[5,"U-Th-Pb dating of Abee E4 Meteorite, Earth Planetary Science Letters, 1983, 62, Pages 132-146"]
[6,"40Ar-39Ar Chronology, Meteoritics And Planetary Science, 2009, 44, Pages 293-321"]
[7,"40-Ar / 39-Ar Ages of Allende, Icarus, 1980, 42, Pages 380-405"]
[8,"The Fossil LL6 Chondrite, Geochimica et Cosmochimica Acta, 2010, 74, Pages 1734-1747"]
[9,"40Ar-39Ar Dating of Pseudo Tachylytes, Earth Planetary Science Letters, 2004, 223, Pages 349-364"]
[10,"Location of extraneous argon, Chemical Geology, 1990, 80, Pages 201-204"]
[11,"Excess Argon In Ultramafic Rocks, Earth Planetary Science Letters, 1974, 22, Pages 145-156"]
[12,"Analyses of the chondritic meteorite Orvinio, Meteoritics And Planetary Science, 2004, 39, Pages 1475-1493"]
[13,"Shocked meteorites: Argon-40-argon-39, Meteoritics And Planetary Science, 1997, 32, Pages 647-670"]
[14,"The Strangways impact structure, Earth Planetary Science Letters, 1999, 172, Pages 199–211"]
[15,"40Ar-39Ar Quartz Ages, Geochimica et Cosmochimica Acta, 2006, 70, Pages 2573-2575"]
[16,"The Peace River shocked M chondrite, Geochimica et Cosmochimica Acta, 1988, 52, Pages 2487-2499"]
[17,"History Of The Acapulco Meteorite, Geochimica et Cosmochimica Acta, 1997, 61, Pages 3477-3501"]
[18,"Pressure Metamorphism in Northeast Japan, Gondwana Research, 2005, 8, Pages 617-621"]
[19,"40 Ar/39ar Dating Of The Long Range Dikes, Earth Planetary Science Letters, 1974, 22, Pages 256-266"]
[20,"Potassium: Argon Dating of Iron Meteorites, Science, 1967, 155, Pages 999-1000"]
[21,"Potassium-argon age of iron meteorites, Geochimica et Cosmochimica Acta, 1958, 15, Pages 40-50"]
[22,"Ar/Ar dating of inclusions from IAB iron meteorites, Geochimica et Cosmochimica Acta, 1979, 43, Pages 1829-1840"]
[23,"K/Ar Age Determinations of Iron Meteorites, Earth Planetary Science Letters, 1968, 4, Pages 84-88"]
[26,"African Peridotite Xenoliths, Geochimica et Cosmochimica Acta, 1989, 53, Pages 1583-1595"]
[27,"Upper Crust in North-East Australia, International Journal Earth Science, 2012, 101, Pages 1091-1109"]
[29,"Silica Mineral Formation, Geochimica et Cosmochimica Acta, 2003, 67, Pages 1145-1176"]
[31,"Rb-Sr Ages Of Iron Meteorites, Earth Planetary Science Letters, 1967, 2, Pages 397-408"]
[32,"Isotopic discrepancies in Black Hills, South Dakota, Geochimica et Cosmochimica Acta, 1970, 34, Pages 713-725"]
[33,"Rhenium-187-Osmium-187 in iron meteorites, Meteoritics And Planetary Science, 1998, 33, Pages 647-653"]
[34,"Antarctic LL-chondrites, Geochimica et Cosmochimica Acta, 1990, 54, Pages 3509-3523"]
[35,"North Western Wyoming Craton, Earth Planetary Science Letters, 1994, 126, Pages 457-472"]
[36,"Age and Origin of Base and Precious Metal, Economic Geology, 2002, 97, Pages 35-37"]
[37,"Stabilisation of Archaean lithosphere, Earth Planetary Science Letters, 1995, 134, Pages 341-357"]
[38,"The Siberian Craton, Geochimica et Cosmochimica Acta, 1995, 59, Pages 959-977"]
[39,"The Study of Molybdenites, Earth Planetary Science Letters, 1982, 61, Pages 291-296"]
[40,"Reliable Re-Os Ages, Geochimica et Cosmochimica Acta, 1993, 57, Pages 1625-1628"]
[41,"Evolution of the South China Block, Geochimica et Cosmochimica Acta, 2009, 73, Pages 4531–4557"]
[42,"The North China Craton, University Maryland, Thesis, 2011, , Pages 1-238"]
[43,"Rhenium/Osmium Geochronology of Oxide Minerals, University Alberta, Thesis, 2010, , Pages 1-152"]
[44,"Rocks From the Earth’s Mantle, University Berlin, Thesis, 2013, , Pages 1-186"]
[45,"Hebi, North China Craton, Chemical Geology, 2012, 328, Pages 123–136"]
[46,"Re–Os Isotopic Results, Chemical Geology, 2012, 291, Pages 186–198"]
[47,"Lithospheric Mantle Evolution , Lithos, 2011, 125, Pages 405–422"]
[48,"The age of Lithospheric Mantle, Chemical Geology, 2003, 196, Pages 107–129"]
[49,"Osmium Isotopes , Chemical Geology, 1996, 130, Pages 55-64"]
[50,"Evolution Beneath the Kaapvaal Craton, Chemical Geology, 2004, 208, Pages 89-118"]
[51,"The Age of Continental Roots, Lithos, 1999, 48, Pages 171-194"]
[52,"Archean Man Shield, West Africa, Precambrian Research, 2002, 118, Pages 267-283"]
[53,"Diamond Formation Episodes , Contributions Mineral Petrology, 2009, 157, Pages 525–540"]
[54,"Re/Os Isotopes of Sulfides , Lithos, 2008, 102, Pages 43-64"]
[55,"Canadian Cordillera lithosphere, Chemical Geology, 2000, 166, Pages 85-101"]
[56,"Lithospheric Mantle and Diamonds , Lithos, 2009, 112-S, Pages 1120-1132"]
[57,"Three Apollo 14 Basalts, Earth Planetary Science Letters, 1972, 14, Pages 281-304."]
[59,"Natural Radionuclide Mobility, Geochimica et Cosmochimica Acta, 2008, 72, Pages 2067-2089"]
[60,"Isotopic Lead Ages Of Meteorites, Earth Planetary Science Letters, 1973, 19, Pages 321-329"]
[62,"The Allende and Orgueil Chondrites , Geochimica et Cosmochimica Acta, 1976, 40, Pages 617-634"]
[63,"U-Pb ages of angrites, Geochimica et Cosmochimica Acta, 2008, 72, Pages 221-232"]
[64,"Pb isotopic age of the Allende chondrules, Meteoritics And Planetary Science, 2007, 42, Pages 1321-1335"]
[65,"Precise U-Pb dating, Geochimica et Cosmochimica Acta, 2005, 69, Pages 505-518"]
[66,"Single grain (U-Th)/He ages, Acapulco meteorite, Earth Planetary Science Letters, 2003, 209, Pages 323-336"]
[68,"Barren Miocene granitoids, Andean Geology, 2010, 37, Pages 1-31"]
[69,"Early Archean partial melting events, University Bonn, Thesis, 2004, , Pages 1-132"]
[70,"Isotopic signatures in Zealandia , Geology, 2012, , Pages 1-19"]
[71,"Mantle xenoliths from North Korea, Geology, 2010, 38, Pages 799-802"]
[72,"Re-Os Geochronology of Oxide Minerals, University Alberta, Thesis, 2010, , Pages 1-153"]
[73,"North Patagonian Mantle Xenoliths, Journal of Petrology, 2016, 57, Pages 685-715"]
[74,"Age and geochemistry of lithospheric mantle, University Maryland, Thesis, 2015, , Pages 1-17"]
[75,"The Scottish margin of the North Atlantic Craton, Precambrian Research, 2014, 250, Pages 97-126"]
[76,"Xenoliths from the Bohemian Massif, Chemical Geology, 2016, 430, Pages 90-107"]
[77,"Re-Os systematics of peridotites, Journal of the Geological Society, 2011, 168, Pages 1201-1214"]
[78,"Constraints on mantle processes and late , University Berlin, Thesis, 2014, , Pages 1-168"]
[79,"The Taitao Ophiolite, Southern Chile, University Maryland, Thesis, 2007, , Pages 1-117"]
[80,"Samarium/Neodymium geochronology, University Boston, Thesis, 2014, , Pages 1-207"]
[81,"Principles of Re-Os Isotopic System, Journal Petrology Society Korea, 2006, 15, Pages 106-117"]
[82,"The western North China Craton, Lithos, 2012, 149, Pages 100-114"]
[83,"Single abyssal peridotite sulfides, Earth Planetary Science Letters, 2012, 359, Pages 279-293"]
[86,"The Kaapvaal Cratonic Lithospheric Mantle, Journal Of Petrology, 2007, 48, Pages 589-625"]
[87,"In Situ Analysis of Sulphides, Earth Planetary Science Letters, 2002, 203, Pages 651-663"]
[88,"Rb-Sr And Sm-Nd Studies, Chemical Geology, 1985, 52, Pages 249-271"]
[89,"Norwegian Caledonides: An isotopic investigation, Lithos, 2010, 117, Pages 1-19"]
[92,"Multi-stage origin of Roberts Victor eclogites, Lithos, 2012, 142-143, Pages 161-181"]
[93,"Re-Os systematics of mantle xenoliths, Geochimica et Cosmochimica Acta, 1999, 63, Pages 1203-1217"]
[94,"The Raobazhai peridotite massifs, Chemical Geology, 2009, 268, Pages 1-14"]
[95,"In situ Re–Os evidence, Journal of Asian Earth Sciences, 2013, 62, Pages 37-50"]
[96,"Lu-Hf Geochronology, Chemical Geology, 1997, 142, Pages 63-78"]
[97,"Isotopic Disequilibrium, Chemical Geology, 2000, 162, Pages 169-191"]
[98,"Multiple Metasomatic Events, Lithos, 2009, 112-S, Pages 896-912"]
[101,"Re–Os Evidence, Chemical Geology, 2007, 236, Pages 323-338"]
[104,"Central Asian Orogenic Belt, Lithos, 2011, 126, Pages 233-247"]
[105,"The Mamonia complex, Cyprus, Chemical Geology, 2008, 248, Pages 195-212"]
[106,"A Paleozoic Convergent Plate, Chemical Geology, 2004, 208, Pages 141-156"]
[107,"Northern Canadian Cordillera Xenoliths, Geochimica et Cosmochimica Acta, 2000, 64, Pages 3061-3071"]
[108,"Xenoliths from Yangyuan and Fansi, Lithos, 2008, 102, Pages 25-42"]
[109,"Formation of the North Atlantic Craton, Chemical Geology, 2010, 276, Pages 166-187"]
[110,"In situ Measurement of Re-Os Isotopes, Geochimica et Cosmochimica Acta, 2002, 66, Pages 1037-1050"]

{"sheet":"Summary","index":6,"n_rows":140,"n_cols":17,"rows_kept":140,"cut":false,"hidden":false,"merged":[]}
["Essay's Title","Magazine","Volume","Year","Pages","Folder","File Name","Pauls Computer","Sheet","Excel File","Citation","Dating",null,"Minimum","Maximum","Difference ","Age"]
[null,null,null,null,null,null,null,null,null,null,null,"Method","Citation","Million Years","Million Years","Million Years","Ratio"]
["Ar-39/Ar-40 Dating of Mesosiderites","Geochimica et Cosmochimica Acta",54,1990,"Pages 2549-2564",{"$f":" \"C:\\Essays\\Geo_Dating\\Neller\\\"","v":"C:\\Essays\\Geo_Dating\\Neller\\"},"BOGARD_A",{"$f":" \"C:\\Essays\\Geo_Dating\\Neller\\\" & G3 & \".pdf\"","v":"C:\\Essays\\Geo_Dating\\Neller\\BOGARD_A.pdf"},"A1","AA_Index.xlsm",{"$f":"B3 &  \", \" & D3 & \", \" & C3 & \", \" & E3","v":"Geochimica et Cosmochimica Acta, 1990, 54, Pages 2549-2564"},"Ar/Ar",1,1770,13960,{"$f":"O3-N3","v":12190},{"$f":"ABS(P3/N3)","v":6.8870056497175138}]
["39Ar-40Ar Ages of Eucrites","Meteoritics And Planetary Science",38,2003,"Pages 669–710","C:\\Essays\\Geo_Dating\\Neller\\","BOGARD_E","C:\\Essays\\Geo_Dating\\Neller\\BOGARD_E.pdf","A2","AA_Index.xlsm","Meteoritics And Planetary Science, 2003, 38, Pages 669–710","Ar/Ar",2,162,9669,9507,58.685185185185183]
["Ar diffusion properties, Meteorites","Geochimica et Cosmochimica Acta",44,1980,"Pages 1667-1682","C:\\Essays\\Geo_Dating\\Neller\\","BOGARD_B","C:\\Essays\\Geo_Dating\\Neller\\BOGARD_B.pdf","A3","AA_Index.xlsm","Geochimica et Cosmochimica Acta, 1980, 44, Pages 1667-1682","Ar/Ar",3,120,9710,9590,79.916666666666671]
["Argon-39/Argon-40 Ages","Meteoritics And Planetary Science",36,2001,"Pages 107-122","C:\\Essays\\Geo_Dating\\Neller\\","BOGARD_F","C:\\Essays\\Geo_Dating\\Neller\\BOGARD_F.pdf","A4","AA_Index.xlsm","Meteoritics And Planetary Science, 2001, 36, Pages 107-122","Ar/Ar",4,1102,8058,6956,6.3121597096188751]
["U-Th-Pb dating of Abee E4 Meteorite","Earth Planetary Science Letters",62,1983,"Pages 132-146","C:\\Essays\\Geo_Dating\\Neller\\","BOGARD_C","C:\\Essays\\Geo_Dating\\Neller\\BOGARD_C.pdf","A5","AA_Index.xlsm","Earth Planetary Science Letters, 1983, 62, Pages 132-146","Ar/Ar",5,3560,8900,5340,1.5]
["40Ar-39Ar Chronology","Meteoritics And Planetary Science",44,2009,"Pages 293-321","C:\\Essays\\Geo_Dating\\Neller\\","Meteorite_Korochantseva","C:\\Essays\\Geo_Dating\\Neller\\Meteorite_Korochantseva.pdf","B0","AA_Index.xlsm","Meteoritics And Planetary Science, 2009, 44, Pages 293-321","Ar/Ar",6,94,14917,14823,157.69148936170214]
["40-Ar / 39-Ar Ages of Allende","Icarus",42,1980,"Pages 380-405","C:\\Essays\\Geo_Dating\\Neller\\","Meteorite_Jessberger","C:\\Essays\\Geo_Dating\\Neller\\Meteorite_Jessberger.pdf","B1","AA_Index.xlsm","Icarus, 1980, 42, Pages 380-405","Ar/Ar",7,1871,7460,5589,2.9871726349545695]
["The Fossil LL6 Chondrite","Geochimica et Cosmochimica Acta",74,2010,"Pages 1734-1747","C:\\Essays\\Geo_Dating\\Neller\\","Older_Than_Earth_3","C:\\Essays\\Geo_Dating\\Neller\\Older_Than_Earth_3.pdf","B2","AA_Index.xlsm","Geochimica et Cosmochimica Acta, 2010, 74, Pages 1734-1747","Ar/Ar",8,164,11250,11086,67.597560975609753]
["40Ar-39Ar Dating of Pseudo Tachylytes","Earth Planetary Science Letters",223,2004,"Pages 349-364","C:\\Essays\\Geo_Dating\\Neller\\","Older_Than_Earth_1","C:\\Essays\\Geo_Dating\\Neller\\Older_Than_Earth_1.pdf","B6","AA_Index.xlsm","Earth Planetary Science Letters, 2004, 223, Pages 349-364","Ar/Ar",9,42,7347,7305,173.92857142857142]
["Location of extraneous argon","Chemical Geology",80,1990,"Pages 201-204","C:\\Essays\\Geo_Dating\\Neller\\","Maluski","C:\\Essays\\Geo_Dating\\Neller\\Maluski.pdf","B7","AA_Index.xlsm","Chemical Geology, 1990, 80, Pages 201-204","Ar/Ar",10,1700,22090,20390,11.994117647058824]
["Excess Argon In Ultramafic Rocks","Earth Planetary Science Letters",22,1974,"Pages 145-156","C:\\Essays\\Geo_Dating\\Neller\\","Ages_012","C:\\Essays\\Geo_Dating\\Neller\\Ages_012.pdf","B8","AA_Index.xlsm","Earth Planetary Science Letters, 1974, 22, Pages 145-156","Ar/Ar",11,580,9840,9260,15.96551724137931]
["Analyses of the chondritic meteorite Orvinio","Meteoritics And Planetary Science",39,2004,"Pages 1475-1493","C:\\Essays\\Geo_Dating\\Neller\\","Meteorite_Grier","C:\\Essays\\Geo_Dating\\Neller\\Meteorite_Grier.pdf","C1","AA_Index.xlsm","Meteoritics And Planetary Science, 2004, 39, Pages 1475-1493","Ar/Ar",12,324,17178,16854,52.018518518518519]
["Shocked meteorites: Argon-40-argon-39","Meteoritics And Planetary Science",32,1997,"Pages 647-670","C:\\Essays\\Geo_Dating\\Neller\\","Meteorite_Kunz","C:\\Essays\\Geo_Dating\\Neller\\Meteorite_Kunz.pdf","C2","AA_Index.xlsm","Meteoritics And Planetary Science, 1997, 32, Pages 647-670","Ar/Ar",13,506,13348,12842,25.379446640316207]
["The Strangways impact structure","Earth Planetary Science Letters",172,1999,"Pages 199–211","C:\\Essays\\Geo_Dating\\Neller\\","Older_Than_Earth_4","C:\\Essays\\Geo_Dating\\Neller\\Older_Than_Earth_4.pdf","C3","AA_Index.xlsm","Earth Planetary Science Letters, 1999, 172, Pages 199–211","Ar/Ar",14,633,8569,7936,12.537124802527646]
["40Ar-39Ar Quartz Ages","Geochimica et Cosmochimica Acta",70,2006,"Pages 2573-2575","C:\\Essays\\Geo_Dating\\Neller\\","Older_Than_Earth_9","C:\\Essays\\Geo_Dating\\Neller\\Older_Than_Earth_9.pdf","C7","AA_Index.xlsm","Geochimica et Cosmochimica Acta, 2006, 70, Pages 2573-2575","Ar/Ar",15,1115,9969,8854,7.9408071748878921]
["The Peace River shocked M chondrite","Geochimica et Cosmochimica Acta",52,1988,"Pages 2487-2499","C:\\Essays\\Geo_Dating\\Neller\\","Meteorite_MCCONVILL","C:\\Essays\\Geo_Dating\\Neller\\Meteorite_MCCONVILL.pdf","D0","AA_Index.xlsm","Geochimica et Cosmochimica Acta, 1988, 52, Pages 2487-2499","Ar/Ar",16,510,7100,6590,12.921568627450981]
["History Of The Acapulco Meteorite","Geochimica et Cosmochimica Acta",61,1997,"Pages 3477-3501","C:\\Essays\\Geo_Dating\\Neller\\","Meteorite_Pellas","C:\\Essays\\Geo_Dating\\Neller\\Meteorite_Pellas.pdf","D1","AA_Index.xlsm","Geochimica et Cosmochimica Acta, 1997, 61, Pages 3477-3501","Ar/Ar",17,3841,11421,7580,1.9734444155167925]
["Pressure Metamorphism in Northeast Japan","Gondwana Research",8,2005,"Pages 617-621","C:\\Essays\\Geo_Dating\\Neller\\","Itaya","C:\\Essays\\Geo_Dating\\Neller\\Itaya.pdf","D7","AA_Index.xlsm","Gondwana Research, 2005, 8, Pages 617-621","Ar/Ar",18,7700,16300,8600,1.1168831168831168]
["40 Ar/39ar Dating Of The Long Range Dikes","Earth Planetary Science Letters",22,1974,"Pages 256-266","C:\\Essays\\Geo_Dating\\Neller\\","Ages_002","C:\\Essays\\Geo_Dating\\Neller\\Ages_002.pdf","D8","AA_Index.xlsm","Earth Planetary Science Letters, 1974, 22, Pages 256-266","Ar/Ar",19,651,18620,17969,27.602150537634408]
[null,null,null,null,null,null,null,null,null,null,null,"Total",null,{"$f":"MIN(N3:N21)","v":42},{"$f":"MAX(O3:O21)","v":22090},22048,524.95238095238096]
[null,null,null,null,null,null,null,null,null,null,null,"Method","Citation","Minimum","Maximum","Difference ","Ratio"]
["Potassium: Argon Dating of Iron Meteorites","Science",155,1967,"Pages 999-1000","C:\\Essays\\Geo_Dating\\Neller\\","Meteor_Rancitelli","C:\\Essays\\Geo_Dating\\Neller\\Meteor_Rancitelli.pdf","C6","AA_Index.xlsm","Science, 1967, 155, Pages 999-1000","K/Ar",20,4700,10400,5700,1.2127659574468086]
["Potassium-argon age of iron meteorites","Geochimica et Cosmochimica Acta",15,1958,"Pages 40-50","C:\\Essays\\Geo_Dating\\Neller\\","Meteorite_Stoenner","C:\\Essays\\Geo_Dating\\Neller\\Meteorite_Stoenner.pdf","D4","AA_Index.xlsm","Geochimica et Cosmochimica Acta, 1958, 15, Pages 40-50","K/Ar",21,5300,13000,7700,1.4528301886792452]
["Ar/Ar dating of inclusions from IAB iron meteorites","Geochimica et Cosmochimica Acta",43,1979,"Pages 1829-1840","C:\\Essays\\Geo_Dating\\Neller\\","Meteorite_NIEMEYER","C:\\Essays\\Geo_Dating\\Neller\\Meteorite_NIEMEYER.pdf","D6","AA_Index.xlsm","Geochimica et Cosmochimica Acta, 1979, 43, Pages 1829-1840","K/Ar",22,4460,9500,5040,1.1300448430493273]
["K/Ar Age Determinations of Iron Meteorites","Earth Planetary Science Letters",4,1968,"Pages 84-88","C:\\Essays\\Geo_Dating\\Neller\\","Meteorite_Kaiser","C:\\Essays\\Geo_Dating\\Neller\\Meteorite_Kaiser.pdf","D9","AA_Index.xlsm","Earth Planetary Science Letters, 1968, 4, Pages 84-88","K/Ar",23,4200,7400,3200,0.76190476190476186]
[null,null,null,null,null,null,null,null,null,null,null,"Total",null,{"$f":"MIN(N24:N27)","v":4200},{"$f":"MAX(O24:O27)","v":13000},{"$f":"O28-N28","v":8800},{"$f":"ABS(P28/N28)","v":2.0952380952380953}]
[null,null,null,null,null,null,null,null,null,null,null,"Method","Citation","Minimum","Maximum","Difference ","Ratio"]
["Upper Crust in North-East Australia","International Journal Earth Science",101,2012,"Pages 1091-1109","C:\\Essays\\Geo_Dating\\Neller\\","Older_Than_Earth_11","C:\\Essays\\Geo_Dating\\Neller\\Older_Than_Earth_11.pdf","O_6","AB_Index.xlsm","International Journal Earth Science, 2012, 101, Pages 1091-1109","Lu/Hf",27,-3220,3870,7090,2.201863354037267]
["Barren Miocene granitoids","Andean Geology",37,2010,"Pages 1-31","C:\\Essays\\Geo_Dating\\Neller\\","R1","C:\\Essays\\Geo_Dating\\Neller\\R1.pdf","R1","AB_Index.xlsm","Andean Geology, 2010, 37, Pages 1-31","Lu/Hf",68,-8800,-630,8170,0.92840909090909096]
["Mantle xenoliths from North Korea","Geology",38,2010,"Pages 799-802","C:\\Essays\\Geo_Dating\\Neller\\","R4","C:\\Essays\\Geo_Dating\\Neller\\R4.pdf","R4","AB_Index.xlsm","Geology, 2010, 38, Pages 799-802","Lu/Hf",71,-1649,8590,10239,6.2092177077016375]
["The Kaapvaal Cratonic Lithospheric Mantle","Journal Of Petrology",48,2007,"Pages 589-625","C:\\Essays\\Geo_Dating\\Neller\\","To_Old_01","C:\\Essays\\Geo_Dating\\Neller\\To_Old_01.pdf","T_1","AB_Index.xlsm","Journal Of Petrology, 2007, 48, Pages 589-625","Lu/Hf",86,-320,1730,2050,6.40625]
["Multi-stage origin of Roberts Victor eclogites","Lithos","142-143",2012,"Pages 161-181","C:\\Essays\\Geo_Dating\\Neller\\","Future_Ages_02","C:\\Essays\\Geo_Dating\\Neller\\Future_Ages_02.pdf","F02","AC_Index.xlsm","Lithos, 2012, 142-143, Pages 161-181","Lu/Hf",92,-12340,19870,32210,2.6102106969205834]
["Re–Os Evidence","Chemical Geology",236,2007,"Pages 323-338","C:\\Essays\\Geo_Dating\\Neller\\","Future_Ages_12","C:\\Essays\\Geo_Dating\\Neller\\Future_Ages_12.pdf","F12","AC_Index.xlsm","Chemical Geology, 2007, 236, Pages 323-338","Lu/Hf",101,-30,14650,14680,489.33333333333331]
["Central Asian Orogenic Belt","Lithos",126,2011,"Pages 233-247","C:\\Essays\\Geo_Dating\\Neller\\","Future_Ages_13","C:\\Essays\\Geo_Dating\\Neller\\Future_Ages_13.pdf","F13","AC_Index.xlsm","Lithos, 2011, 126, Pages 233-247","Lu/Hf",104,-9270,14650,23920,2.580366774541532]
[null,null,null,null,null,null,null,null,null,null,null,"Total",null,{"$f":"MIN(N30:N36)","v":-12340},{"$f":"MAX(O30:O36)","v":19870},{"$f":"O37-N37","v":32210},{"$f":"ABS(P37/N37)","v":2.6102106969205834}]
[null,null,null,null,null,null,null,null,null,null,null,"Method","Citation","Minimum","Maximum","Difference ","Ratio"]
["The Siberian Craton","Geochimica et Cosmochimica Acta",59,1995,"Pages 959-977","C:\\Essays\\Geo_Dating\\Neller\\","Older_Than_Earth_6","C:\\Essays\\Geo_Dating\\Neller\\Older_Than_Earth_6.pdf","A8","AA_Index.xlsm","Geochimica et Cosmochimica Acta, 1995, 59, Pages 959-977","Nd/Sm",38,-1,3200,3201,3201]
["African Peridotite Xenoliths","Geochimica et Cosmochimica Acta",53,1989,"Pages 1583-1595","C:\\Essays\\Geo_Dating\\Neller\\","Older_Than_Earth_5","C:\\Essays\\Geo_Dating\\Neller\\Older_Than_Earth_5.pdf","D2","AA_Index.xlsm","Geochimica et Cosmochimica Acta, 1989, 53, Pages 1583-1595","Nd/Sm",26,1070,12600,11530,10.77570093457944]
["Upper Crust in North-East Australia","International Journal Earth Science",101,2012,"Pages 1091-1109",{"$f":" \"C:\\Essays\\Geo_Dating\\Neller\\\"","v":"C:\\Essays\\Geo_Dating\\Neller\\"},"Older_Than_Earth_11",{"$f":" \"C:\\Essays\\Geo_Dating\\Neller\\\" & G41 & \".pdf\"","v":"C:\\Essays\\Geo_Dating\\Neller\\Older_Than_Earth_11.pdf"},"O_6","AB_Index.xlsm",{"$f":"B41 &  \", \" & D41 & \", \" & C41 & \", \" & E41","v":"International Journal Earth Science, 2012, 101, Pages 1091-1109"},"Nd/Sm",27,-800,9730,{"$f":"O41-N41","v":10530},{"$f":"ABS(P41/N41)","v":13.1625}]
["The Kaapvaal Cratonic Lithospheric Mantle","Journal Of Petrology",48,2007,"Pages 589-625","C:\\Essays\\Geo_Dating\\Neller\\","To_Old_01","C:\\Essays\\Geo_Dating\\Neller\\To_Old_01.pdf","T_1","AB_Index.xlsm","Journal Of Petrology, 2007, 48, Pages 589-625","Nd/Sm",86,-2247,96661,98908,44.017801513128617]
["Multi-stage origin of Roberts Victor eclogites","Lithos","142-143",2012,"Pages 161-181","C:\\Essays\\Geo_Dating\\Neller\\","Future_Ages_02","C:\\Essays\\Geo_Dating\\Neller\\Future_Ages_02.pdf","F02","AC_Index.xlsm","Lithos, 2012, 142-143, Pages 161-181","Nd/Sm",92,-22420,8100,30520,1.3612845673505798]
["Lu-Hf Geochronology","Chemical Geology",142,1997,"Pages 63-78","C:\\Essays\\Geo_Dating\\Neller\\","Future_Ages_08","C:\\Essays\\Geo_Dating\\Neller\\Future_Ages_08.pdf","F08","AC_Index.xlsm","Chemical Geology, 1997, 142, Pages 63-78","Nd/Sm",96,-659,1137,1796,2.725341426403642]
["Multiple Metasomatic Events","Lithos","112-S",2009,"Pages 896-912","C:\\Essays\\Geo_Dating\\Neller\\","Future_Ages_11","C:\\Essays\\Geo_Dating\\Neller\\Future_Ages_11.pdf","F11","AC_Index.xlsm","Lithos, 2009, 112-S, Pages 896-912","Nd/Sm",98,-2192,2013,4205,1.9183394160583942]
["Re–Os Evidence","Chemical Geology",236,2007,"Pages 323-338","C:\\Essays\\Geo_Dating\\Neller\\","Future_Ages_12","C:\\Essays\\Geo_Dating\\Neller\\Future_Ages_12.pdf","F12","AC_Index.xlsm","Chemical Geology, 2007, 236, Pages 323-338","Nd/Sm",101,820,5910,5090,6.2073170731707314]
["Central Asian Orogenic Belt","Lithos",126,2011,"Pages 233-247","C:\\Essays\\Geo_Dating\\Neller\\","Future_Ages_13","C:\\Essays\\Geo_Dating\\Neller\\Future_Ages_13.pdf","F13","AC_Index.xlsm","Lithos, 2011, 126, Pages 233-247","Nd/Sm",104,490,5910,5420,11.061224489795919]
[null,null,null,null,null,null,null,null,null,null,null,"Total",null,{"$f":"MIN(N39:N47)","v":-22420},{"$f":"MAX(O39:O47)","v":96661},{"$f":"O48-N48","v":119081},{"$f":"ABS(P48/N48)","v":5.3113737734165927}]
[null,null,null,null,null,null,null,null,null,null,null,"Method","Citation","Minimum","Maximum","Difference ","Ratio"]
["The Allende and Orgueil Chondrites ","Geochimica et Cosmochimica Acta",40,1976,"Pages 617-634","C:\\Essays\\Geo_Dating\\Neller\\","Meteorite_Tatsumoto","C:\\Essays\\Geo_Dating\\Neller\\Meteorite_Tatsumoto.pdf","C8","AA_Index.xlsm","Geochimica et Cosmochimica Acta, 1976, 40, Pages 617-634","Pb/Pb",62,4467,4569,102,2.2834116856950974E-2]
["Silica Mineral Formation","Geochimica et Cosmochimica Acta",67,2003,"Pages 1145-1176","C:\\Essays\\Geo_Dating\\Neller\\","Amelin_G","C:\\Essays\\Geo_Dating\\Neller\\Amelin_G.pdf","E5","AA_Index.xlsm","Geochimica et Cosmochimica Acta, 2003, 67, Pages 1145-1176","Pb/Pb",29,-3879,11,3890,1.0028357824181491]
[null,null,null,null,null,null,null,null,null,null,null,"Total",null,{"$f":"MIN(N50:N51)","v":-3879},{"$f":"MAX(O50:O51)","v":4569},{"$f":"O52-N52","v":8448},{"$f":"ABS(P52/N52)","v":2.1778808971384378}]
[null,null,null,null,null,null,null,null,null,null,null,"Method","Citation","Minimum","Maximum","Difference ","Ratio"]
["The Siberian Craton","Geochimica et Cosmochimica Acta",59,1995,"Pages 959-977","C:\\Essays\\Geo_Dating\\Neller\\","Older_Than_Earth_6","C:\\Essays\\Geo_Dating\\Neller\\Older_Than_Earth_6.pdf","A8","AA_Index.xlsm","Geochimica et Cosmochimica Acta, 1995, 59, Pages 959-977","Rb/Sr",38,5445,12716,7271,1.3353535353535353]
["Rb-Sr Ages Of Iron Meteorites","Earth Planetary Science Letters",2,1967,"Pages 397-408","C:\\Essays\\Geo_Dating\\Neller\\","Meteorite_Burnett","C:\\Essays\\Geo_Dating\\Neller\\Meteorite_Burnett.pdf","A9","AA_Index.xlsm","Earth Planetary Science Letters, 1967, 2, Pages 397-408","Rb/Sr",31,3700,9300,5600,1.5135135135135136]
["Isotopic discrepancies in Black Hills, South Dakota","Geochimica et Cosmochimica Acta",34,1970,"Pages 713-725","C:\\Essays\\Geo_Dating\\Neller\\","Riley","C:\\Essays\\Geo_Dating\\Neller\\Riley.pdf","B3","AA_Index.xlsm","Geochimica et Cosmochimica Acta, 1970, 34, Pages 713-725","Rb/Sr",32,1400,900000,898600,641.85714285714289]
["Rhenium-187-Osmium-187 in iron meteorites","Meteoritics And Planetary Science",33,1998,"Pages 647-653","C:\\Essays\\Geo_Dating\\Neller\\","Meteorite_Birck","C:\\Essays\\Geo_Dating\\Neller\\Meteorite_Birck.pdf","B9","AA_Index.xlsm","Meteoritics And Planetary Science, 1998, 33, Pages 647-653","Rb/Sr",33,1180,13700,12520,10.610169491525424]
["Antarctic LL-chondrites","Geochimica et Cosmochimica Acta",54,1990,"Pages 3509-3523","C:\\Essays\\Geo_Dating\\Neller\\","Meteorite_Okano","C:\\Essays\\Geo_Dating\\Neller\\Meteorite_Okano.pdf","C9","AA_Index.xlsm","Geochimica et Cosmochimica Acta, 1990, 54, Pages 3509-3523","Rb/Sr",34,3110,7330,4220,1.3569131832797428]
["North Western Wyoming Craton","Earth Planetary Science Letters",126,1994,"Pages 457-472","C:\\Essays\\Geo_Dating\\Neller\\","Older_Than_Earth_2","C:\\Essays\\Geo_Dating\\Neller\\Older_Than_Earth_2.pdf","D3","AA_Index.xlsm","Earth Planetary Science Letters, 1994, 126, Pages 457-472","Rb/Sr",35,-3440,15500,18940,5.5058139534883717]
["Age and Origin of Base and Precious Metal","Economic Geology",97,2002,"Pages 35-37","C:\\Essays\\Geo_Dating\\Neller\\","Ages_001","C:\\Essays\\Geo_Dating\\Neller\\Ages_001.pdf","D5","AA_Index.xlsm","Economic Geology, 2002, 97, Pages 35-37","Rb/Sr",36,79,23312,23233,294.08860759493672]
["Rb-Sr And Sm-Nd Studies","Chemical Geology",52,1985,"Pages 249-271","C:\\Essays\\Geo_Dating\\Neller\\","To_Old_06","C:\\Essays\\Geo_Dating\\Neller\\To_Old_06.pdf","T_3","AB_Index.xlsm","Chemical Geology, 1985, 52, Pages 249-271","Rb/Sr",88,267,20000,19733,73.906367041198507]
["Norwegian Caledonides: An isotopic investigation","Lithos",117,2010,"Pages 1-19","C:\\Essays\\Geo_Dating\\Neller\\","Future_Ages_01","C:\\Essays\\Geo_Dating\\Neller\\Future_Ages_01.pdf","F01","AC_Index.xlsm","Lithos, 2010, 117, Pages 1-19","Rb/Sr",89,-31071,76523,107594,3.4628431656528598]
["Multi-stage origin of Roberts Victor eclogites","Lithos","142-143",2012,"Pages 161-181","C:\\Essays\\Geo_Dating\\Neller\\","Future_Ages_02","C:\\Essays\\Geo_Dating\\Neller\\Future_Ages_02.pdf","F02","AC_Index.xlsm","Lithos, 2012, 142-143, Pages 161-181","Rb/Sr",92,32,6874,6842,213.8125]
["Isotopic Disequilibrium","Chemical Geology",162,2000,"Pages 169-191","C:\\Essays\\Geo_Dating\\Neller\\","Future_Ages_09","C:\\Essays\\Geo_Dating\\Neller\\Future_Ages_09.pdf","F09","AC_Index.xlsm","Chemical Geology, 2000, 162, Pages 169-191","Rb/Sr",97,-15,201,216,14.4]
[null,null,null,null,null,null,null,null,null,null,null,"Total",null,{"$f":"MIN(N54:N64)","v":-31071},{"$f":"MAX(O54:O64)","v":900000},{"$f":"O65-N65","v":931071},{"$f":"ABS(P65/N65)","v":29.96591677126581}]
[null,null,null,null,null,null,null,null,null,null,null,"Method",null,"Minimum","Maximum","Difference ","Ratio"]
["Canadian Cordillera lithosphere","Chemical Geology",166,2000,"Pages 85-101",{"$f":" \"C:\\Essays\\Geo_Dating\\Neller\\\"","v":"C:\\Essays\\Geo_Dating\\Neller\\"},"Older_Than_Earth_09",{"$f":" \"C:\\Essays\\Geo_Dating\\Neller\\\" & G67 & \".pdf\"","v":"C:\\Essays\\Geo_Dating\\Neller\\Older_Than_Earth_09.pdf"},"O_5","AB_Index.xlsm",{"$f":"B67 &  \", \" & D67 & \", \" & C67 & \", \" & E67","v":"Chemical Geology, 2000, 166, Pages 85-101"},"Re/Os",55,-1,748,{"$f":"O67-N67","v":749},{"$f":"ABS(P67/N67)","v":749}]
["The Mamonia complex, Cyprus","Chemical Geology",248,2008,"Pages 195-212","C:\\Essays\\Geo_Dating\\Neller\\","Future_Ages_14","C:\\Essays\\Geo_Dating\\Neller\\Future_Ages_14.pdf","F14","AC_Index.xlsm","Chemical Geology, 2008, 248, Pages 195-212","Re/Os",105,-1,1550,1551,1551]
["The western North China Craton","Lithos",149,2012,"Pages 100-114","C:\\Essays\\Geo_Dating\\Neller\\","RF","C:\\Essays\\Geo_Dating\\Neller\\RF.pdf","RF","AB_Index.xlsm","Lithos, 2012, 149, Pages 100-114","Re/Os",82,-1,2240,2241,2241]
["The Study of Molybdenites","Earth Planetary Science Letters",61,1982,"Pages 291-296","C:\\Essays\\Geo_Dating\\Neller\\","Older_Than_Earth_7","C:\\Essays\\Geo_Dating\\Neller\\Older_Than_Earth_7.pdf","C0","AA_Index.xlsm","Earth Planetary Science Letters, 1982, 61, Pages 291-296","Re/Os",39,2700,5800,3100,1.1481481481481481]
["Reliable Re-Os Ages","Geochimica et Cosmochimica Acta",57,1993,"Pages 1625-1628","C:\\Essays\\Geo_Dating\\Neller\\","Older_Than_Earth_8","C:\\Essays\\Geo_Dating\\Neller\\Older_Than_Earth_8.pdf","C4","AA_Index.xlsm","Geochimica et Cosmochimica Acta, 1993, 57, Pages 1625-1628","Re/Os",40,2655,6300,3645,1.3728813559322033]
["Re-Os systematics of mantle xenoliths","Geochimica et Cosmochimica Acta",63,1999,"Pages 1203-1217","C:\\Essays\\Geo_Dating\\Neller\\","Future_Ages_03","C:\\Essays\\Geo_Dating\\Neller\\Future_Ages_03.pdf","F03","AC_Index.xlsm","Geochimica et Cosmochimica Acta, 1999, 63, Pages 1203-1217","Re/Os",93,-1,4000,4001,4001]
["Northern Canadian Cordillera Xenoliths","Geochimica et Cosmochimica Acta",64,2000,"Pages 3061-3071","C:\\Essays\\Geo_Dating\\Neller\\","Future_Ages_17","C:\\Essays\\Geo_Dating\\Neller\\Future_Ages_17.pdf","F17","AC_Index.xlsm","Geochimica et Cosmochimica Acta, 2000, 64, Pages 3061-3071","Re/Os",107,-1,4500,4501,4501]
["Single abyssal peridotite sulfides","Earth Planetary Science Letters",359,2012,"Pages 279-293","C:\\Essays\\Geo_Dating\\Neller\\","RG","C:\\Essays\\Geo_Dating\\Neller\\RG.pdf","RG","AB_Index.xlsm","Earth Planetary Science Letters, 2012, 359, Pages 279-293","Re/Os",83,-2500,2800,5300,2.12]
["The Age of Continental Roots","Lithos",48,1999,"Pages 171-194","C:\\Essays\\Geo_Dating\\Neller\\","Greater_Than_Earth_05","C:\\Essays\\Geo_Dating\\Neller\\Greater_Than_Earth_05.pdf","G5","AB_Index.xlsm","Lithos, 1999, 48, Pages 171-194","Re/Os",51,2780,8380,5600,2.014388489208633]
["Re-Os systematics of peridotites","Journal of the Geological Society",168,2011,"Pages 1201-1214","C:\\Essays\\Geo_Dating\\Neller\\","RA","C:\\Essays\\Geo_Dating\\Neller\\RA.pdf","RA","AB_Index.xlsm","Journal of the Geological Society, 2011, 168, Pages 1201-1214","Re/Os",77,-2860,2820,5680,1.986013986013986]
["Lithospheric Mantle and Diamonds ","Lithos","112-S",2009,"Pages 1120-1132","C:\\Essays\\Geo_Dating\\Neller\\","Older_Than_Earth_12","C:\\Essays\\Geo_Dating\\Neller\\Older_Than_Earth_12.pdf","O_7","AB_Index.xlsm","Lithos, 2009, 112-S, Pages 1120-1132","Re/Os",56,1980,7850,5870,2.9646464646464645]
["Osmium Isotopes ","Chemical Geology",130,1996,"Pages 55-64","C:\\Essays\\Geo_Dating\\Neller\\","Greater_Than_Earth_01","C:\\Essays\\Geo_Dating\\Neller\\Greater_Than_Earth_01.pdf","G1","AB_Index.xlsm","Chemical Geology, 1996, 130, Pages 55-64","Re/Os",49,90,6900,6810,75.666666666666671]
["Principles of Re-Os Isotopic System","Journal Petrology Society Korea",15,2006,"Pages 106-117","C:\\Essays\\Geo_Dating\\Neller\\","RE","C:\\Essays\\Geo_Dating\\Neller\\RE.pdf","RE","AB_Index.xlsm","Journal Petrology Society Korea, 2006, 15, Pages 106-117","Re/Os",81,-770,6790,7560,9.8181818181818183]
["Isotopic signatures in Zealandia ","Geology",null,2012,"Pages 1-19","C:\\Essays\\Geo_Dating\\Neller\\","R3","C:\\Essays\\Geo_Dating\\Neller\\R3.pdf","R3","AB_Index.xlsm","Geology, 2012, , Pages 1-19","Re/Os",70,-6240,3510,9750,1.5625]
["The Scottish margin of the North Atlantic Craton","Precambrian Research",250,2014,"Pages 97-126","C:\\Essays\\Geo_Dating\\Neller\\","R8","C:\\Essays\\Geo_Dating\\Neller\\R8.pdf","R8","AB_Index.xlsm","Precambrian Research, 2014, 250, Pages 97-126","Re/Os",75,-7307,3505,10812,1.4796770220336664]
["Constraints on mantle processes and late ","University Berlin, Thesis",null,2014,"Pages 1-168","C:\\Essays\\Geo_Dating\\Neller\\","RB","C:\\Essays\\Geo_Dating\\Neller\\RB.pdf","RB","AB_Index.xlsm","University Berlin, Thesis, 2014, , Pages 1-168","Re/Os",78,-9260,1620,10880,1.1749460043196545]
["The Siberian Craton","Geochimica et Cosmochimica Acta",59,1995,"Pages 959-977","C:\\Essays\\Geo_Dating\\Neller\\","Older_Than_Earth_6","C:\\Essays\\Geo_Dating\\Neller\\Older_Than_Earth_6.pdf","A8","AA_Index.xlsm","Geochimica et Cosmochimica Acta, 1995, 59, Pages 959-977","Re/Os",38,-1,11000,11001,11001]
["Re–Os Isotopic Results","Chemical Geology",291,2012,"Pages 186–198","C:\\Essays\\Geo_Dating\\Neller\\","Future_Ages_006","C:\\Essays\\Geo_Dating\\Neller\\Future_Ages_006.pdf","F3","AA_Index.xlsm","Chemical Geology, 2012, 291, Pages 186–198","Re/Os",46,-675,10430,11105,16.451851851851853]
["Hebi, North China Craton","Chemical Geology",328,2012,"Pages 123–136","C:\\Essays\\Geo_Dating\\Neller\\","Future_Ages_005","C:\\Essays\\Geo_Dating\\Neller\\Future_Ages_005.pdf","F2","AA_Index.xlsm","Chemical Geology, 2012, 328, Pages 123–136","Re/Os",45,-3100,8400,11500,3.7096774193548385]
["Early Archean partial melting events","University Bonn, Thesis",null,2004,"Pages 1-132","C:\\Essays\\Geo_Dating\\Neller\\","R2","C:\\Essays\\Geo_Dating\\Neller\\R2.pdf","R2","AB_Index.xlsm","University Bonn, Thesis, 2004, , Pages 1-132","Re/Os",69,-8620,3220,11840,1.3735498839907192]
["Rocks From the Earth’s Mantle","University Berlin, Thesis",null,2013,"Pages 1-186","C:\\Essays\\Geo_Dating\\Neller\\","TRD_06","C:\\Essays\\Geo_Dating\\Neller\\TRD_06.pdf","E9","AA_Index.xlsm","University Berlin, Thesis, 2013, , Pages 1-186","Re/Os",44,-9260,3200,12460,1.3455723542116631]
["North Patagonian Mantle Xenoliths","Journal of Petrology",57,2016,"Pages 685-715","C:\\Essays\\Geo_Dating\\Neller\\","R6","C:\\Essays\\Geo_Dating\\Neller\\R6.pdf","R6","AB_Index.xlsm","Journal of Petrology, 2016, 57, Pages 685-715","Re/Os",73,-2400,10700,13100,5.458333333333333]
["A Paleozoic Convergent Plate","Chemical Geology",208,2004,"Pages 141-156","C:\\Essays\\Geo_Dating\\Neller\\","Future_Ages_16","C:\\Essays\\Geo_Dating\\Neller\\Future_Ages_16.pdf","F16","AC_Index.xlsm","Chemical Geology, 2004, 208, Pages 141-156","Re/Os",106,-4300,9100,13400,3.1162790697674421]
["Re–Os Evidence","Chemical Geology",236,2007,"Pages 323-338","C:\\Essays\\Geo_Dating\\Neller\\","Future_Ages_12","C:\\Essays\\Geo_Dating\\Neller\\Future_Ages_12.pdf","F12","AC_Index.xlsm","Chemical Geology, 2007, 236, Pages 323-338","Re/Os",101,-3830,10620,14450,3.7728459530026108]
["Central Asian Orogenic Belt","Lithos",126,2011,"Pages 233-247","C:\\Essays\\Geo_Dating\\Neller\\","Future_Ages_13","C:\\Essays\\Geo_Dating\\Neller\\Future_Ages_13.pdf","F13","AC_Index.xlsm","Lithos, 2011, 126, Pages 233-247","Re/Os",104,-3830,10620,14450,3.7728459530026108]
["In situ Measurement of Re-Os Isotopes","Geochimica et Cosmochimica Acta",66,2002,"Pages 1037-1050","C:\\Essays\\Geo_Dating\\Neller\\","Future_Ages_26","C:\\Essays\\Geo_Dating\\Neller\\Future_Ages_26.pdf","F26","AC_Index.xlsm","Geochimica et Cosmochimica Acta, 2002, 66, Pages 1037-1050","Re/Os",110,-7120,7690,14810,2.0800561797752808]
["The age of Lithospheric Mantle","Chemical Geology",196,2003,"Pages 107–129","C:\\Essays\\Geo_Dating\\Neller\\","Future_Ages_008","C:\\Essays\\Geo_Dating\\Neller\\Future_Ages_008.pdf","F5","AA_Index.xlsm","Chemical Geology, 2003, 196, Pages 107–129","Re/Os",48,150,15410,15260,101.73333333333333]
["Stabilisation of Archaean lithosphere","Earth Planetary Science Letters",134,1995,"Pages 341-357","C:\\Essays\\Geo_Dating\\Neller\\","Pearson","C:\\Essays\\Geo_Dating\\Neller\\Pearson.pdf","A7","AA_Index.xlsm","Earth Planetary Science Letters, 1995, 134, Pages 341-357","Re/Os",37,100,15600,15500,155]
["Xenoliths from Yangyuan and Fansi","Lithos",102,2008,"Pages 25-42","C:\\Essays\\Geo_Dating\\Neller\\","Future_Ages_19","C:\\Essays\\Geo_Dating\\Neller\\Future_Ages_19.pdf","F19","AC_Index.xlsm","Lithos, 2008, 102, Pages 25-42","Re/Os",108,-10800,9700,20500,1.8981481481481481]
["Formation of the North Atlantic Craton","Chemical Geology",276,2010,"Pages 166-187","C:\\Essays\\Geo_Dating\\Neller\\","Future_Ages_21","C:\\Essays\\Geo_Dating\\Neller\\Future_Ages_21.pdf","F21","AC_Index.xlsm","Chemical Geology, 2010, 276, Pages 166-187","Re/Os",109,-14258,6994,21252,1.4905316313648478]
["Age and geochemistry of lithospheric mantle","University Maryland, Thesis",null,2015,"Pages 1-17","C:\\Essays\\Geo_Dating\\Neller\\","R7","C:\\Essays\\Geo_Dating\\Neller\\R7.pdf","R7","AB_Index.xlsm","University Maryland, Thesis, 2015, , Pages 1-17","Re/Os",74,-2080,21500,23580,11.336538461538462]
["The Raobazhai peridotite massifs","Chemical Geology",268,2009,"Pages 1-14","C:\\Essays\\Geo_Dating\\Neller\\","Future_Ages_04","C:\\Essays\\Geo_Dating\\Neller\\Future_Ages_04.pdf","F04","AC_Index.xlsm","Chemical Geology, 2009, 268, Pages 1-14","Re/Os",94,-27744,3094,30838,1.1115196078431373]
["Lithospheric Mantle Evolution ","Lithos",125,2011,"Pages 405–422",{"$f":" \"C:\\Essays\\Geo_Dating\\Neller\\\"","v":"C:\\Essays\\Geo_Dating\\Neller\\"},"Older_Than_Earth_07","C:\\Essays\\Geo_Dating\\Neller\\Older_Than_Earth_07.pdf","F4","AA_Index.xlsm","Lithos, 2011, 125, Pages 405–422","Re/Os",47,-24710,8620,33330,1.348846620801295]
["The Kaapvaal Cratonic Lithospheric Mantle","Journal Of Petrology",48,2007,"Pages 589-625","C:\\Essays\\Geo_Dating\\Neller\\","To_Old_01","C:\\Essays\\Geo_Dating\\Neller\\To_Old_01.pdf","T_1","AB_Index.xlsm","Journal Of Petrology, 2007, 48, Pages 589-625","Re/Os",86,600,34600,34000,56.666666666666664]
["Rhenium/Osmium Geochronology of Oxide Minerals","University Alberta, Thesis",null,2010,"Pages 1-152","C:\\Essays\\Geo_Dating\\Neller\\","TRD_05","C:\\Essays\\Geo_Dating\\Neller\\TRD_05.pdf","E8","AA_Index.xlsm","University Alberta, Thesis, 2010, , Pages 1-152","Re/Os",43,-3700,38190,41890,11.321621621621622]
["Diamond Formation Episodes ","Contributions Mineral Petrology",157,2009,"Pages 525–540","C:\\Essays\\Geo_Dating\\Neller\\","Older_Than_Earth_03","C:\\Essays\\Geo_Dating\\Neller\\Older_Than_Earth_03.pdf","O_3","AB_Index.xlsm","Contributions Mineral Petrology, 2009, 157, Pages 525–540","Re/Os",53,-51000,10300,61300,1.2019607843137254]
["In Situ Analysis of Sulphides","Earth Planetary Science Letters",203,2002,"Pages 651-663","C:\\Essays\\Geo_Dating\\Neller\\","To_Old_03","C:\\Essays\\Geo_Dating\\Neller\\To_Old_03.pdf","T_2","AB_Index.xlsm","Earth Planetary Science Letters, 2002, 203, Pages 651-663","Re/Os",87,-32000,34000,66000,2.0625]
["Xenoliths from the Bohemian Massif","Chemical Geology",430,2016,"Pages 90-107","C:\\Essays\\Geo_Dating\\Neller\\","R9","C:\\Essays\\Geo_Dating\\Neller\\R9.pdf","R9","AB_Index.xlsm","Chemical Geology, 2016, 430, Pages 90-107","Re/Os",76,-1,68000,68001,68001]
["The North China Craton","University Maryland, Thesis",null,2011,"Pages 1-238","C:\\Essays\\Geo_Dating\\Neller\\","TRD_04","C:\\Essays\\Geo_Dating\\Neller\\TRD_04.pdf","E7","AA_Index.xlsm","University Maryland, Thesis, 2011, , Pages 1-238","Re/Os",42,-30000,40000,70000,2.3333333333333335]
["Archean Man Shield, West Africa","Precambrian Research",118,2002,"Pages 267-283","C:\\Essays\\Geo_Dating\\Neller\\","Older_Than_Earth_05","C:\\Essays\\Geo_Dating\\Neller\\Older_Than_Earth_05.pdf","O_2","AB_Index.xlsm","Precambrian Research, 2002, 118, Pages 267-283","Re/Os",52,1390,77160,75770,54.510791366906474]
["Evolution of the South China Block","Geochimica et Cosmochimica Acta",73,2009,"Pages 4531–4557","C:\\Essays\\Geo_Dating\\Neller\\","TRD_03","C:\\Essays\\Geo_Dating\\Neller\\TRD_03.pdf","E6","AA_Index.xlsm","Geochimica et Cosmochimica Acta, 2009, 73, Pages 4531–4557","Re/Os",41,-59500,25900,85400,1.4352941176470588]
["Re–Os isotope constraints","Earth and Planetary Science Letters",268,2008,"Pages 89-101","C:\\Essays\\Geo_Dating\\Neller\\","EPSL_268.89","C:\\Essays\\Geo_Dating\\Neller\\EPSL_268.89.pdf","F01","AD_Index.xlsm","Earth and Planetary Science Letters, 2008, 268, Pages 89-101","Re/Os",111,30,52250,{"$f":"O108-N108","v":52220},{"$f":"ABS(P108/N108)","v":1740.6666666666667}]
["Highly siderophile element fractionations","Earth and Planetary Science Letters",297,2010,"Pages 287–297","C:\\Essays\\Geo_Dating\\Neller\\","EPSL_297.287","C:\\Essays\\Geo_Dating\\Neller\\EPSL_297.287.pdf","F02","AD_Index.xlsm","Earth and Planetary Science Letters, 2010, 297, Pages 287–297","Re/Os",112,-8600,40000,48600,5.6511627906976747]
["Archean mantle residues","Earth and Planetary Science Letters",424,2015,"Pages 109-118","C:\\Essays\\Geo_Dating\\Neller\\","EPSL_424.109","C:\\Essays\\Geo_Dating\\Neller\\EPSL_424.109.pdf","F03","AD_Index.xlsm","Earth and Planetary Science Letters, 2015, 424, Pages 109-118","Re/Os",113,-11800,27500,39300,3.3305084745762712]
["Xenoliths from the Obnazhennaya kimberlite","Earth and Planetary Science Letters",428,2015,"Pages 108-119","C:\\Essays\\Geo_Dating\\Neller\\","EPSL_428.108","C:\\Essays\\Geo_Dating\\Neller\\EPSL_428.108.pdf","F04","AD_Index.xlsm","Earth and Planetary Science Letters, 2015, 428, Pages 108-119","Re/Os",114,-4040,8520,12560,3.108910891089109]
["Osmium mass balance in peridotite","Geochimica et Cosmochimica Acta",75,2011,"Pages 5574-5596","C:\\Essays\\Geo_Dating\\Neller\\","GCA_075.5574","C:\\Essays\\Geo_Dating\\Neller\\GCA_075.5574.pdf","F05","AD_Index.xlsm","Geochimica et Cosmochimica Acta, 2011, 75, Pages 5574-5596","Re/Os",115,-1,1640,1641,1641]
["Mantle keel beneath West Greenland","Geochimica et Cosmochimica Acta",203,2017,"Pages 37-53","C:\\Essays\\Geo_Dating\\Neller\\","GCA_203.37","C:\\Essays\\Geo_Dating\\Neller\\GCA_203.37.pdf","F06","AD_Index.xlsm","Geochimica et Cosmochimica Acta, 2017, 203, Pages 37-53","Re/Os",116,-11275,3426,14701,1.3038580931263859]
["Re/Os Isotopes of Sulfides ","Lithos",102,2008,"Pages 43-64","C:\\Essays\\Geo_Dating\\Neller\\","Older_Than_Earth_04","C:\\Essays\\Geo_Dating\\Neller\\Older_Than_Earth_04.pdf","O_4","AB_Index.xlsm","Lithos, 2008, 102, Pages 43-64","Re/Os",54,-47693,39229,86922,1.8225316084121359]
["Re-Os Geochronology of Oxide Minerals","University Alberta, Thesis",null,2010,"Pages 1-153","C:\\Essays\\Geo_Dating\\Neller\\","R5","C:\\Essays\\Geo_Dating\\Neller\\R5.pdf","R5","AB_Index.xlsm","University Alberta, Thesis, 2010, , Pages 1-153","Re/Os",72,{"$f":"MIN(N96:N114)","v":-59500},38190,97690,1.6418487394957983]
["The Taitao Ophiolite, Southern Chile","University Maryland, Thesis",null,2007,"Pages 1-117","C:\\Essays\\Geo_Dating\\Neller\\","RC","C:\\Essays\\Geo_Dating\\Neller\\RC.pdf","RC","AB_Index.xlsm","University Maryland, Thesis, 2007, , Pages 1-117","Re/Os",79,-111000,1500,112500,1.0135135135135136]
["In situ Re–Os evidence","Journal of Asian Earth Sciences",62,2013,"Pages 37-50","C:\\Essays\\Geo_Dating\\Neller\\","Future_Ages_07","C:\\Essays\\Geo_Dating\\Neller\\Future_Ages_07.pdf","F07","AC_Index.xlsm","Journal of Asian Earth Sciences, 2013, 62, Pages 37-50","Re/Os",95,-79140,144550,223690,2.8265099823098305]
["Evolution Beneath the Kaapvaal Craton","Chemical Geology",208,2004,"Pages 89-118",{"$f":" \"C:\\Essays\\Geo_Dating\\Neller\\\"","v":"C:\\Essays\\Geo_Dating\\Neller\\"},"Greater_Than_Earth_02","C:\\Essays\\Geo_Dating\\Neller\\Greater_Than_Earth_02.pdf","G2","AB_Index.xlsm","Chemical Geology, 2004, 208, Pages 89-118","Re/Os",50,-279000,79000,358000,1.2831541218637992]
["Samarium/Neodymium geochronology","University Boston, Thesis",null,2014,"Pages 1-207",{"$f":" \"C:\\Essays\\Geo_Dating\\Neller\\\"","v":"C:\\Essays\\Geo_Dating\\Neller\\"},"RD","C:\\Essays\\Geo_Dating\\Neller\\RD.pdf","RD","AB_Index.xlsm","University Boston, Thesis, 2014, , Pages 1-207","Re/Os",80,-15000001,14999999,30000000,1.9999998666666756]
[null,null,null,null,null,null,null,null,null,null,null,"Total",null,{"$f":"MIN(N67:N119)","v":-15000001},{"$f":"MAX(O67:O119)","v":14999999},30000000,1.9999998666666756]
[null,null,null,null,null,null,null,null,null,null,null,"Method",null,"Minimum","Maximum","Difference ","Ratio"]
["Three Apollo 14 Basalts","Earth Planetary Science Letters",14,1972,"Pages 281-304.",{"$f":" \"C:\\Essays\\Geo_Dating\\Neller\\\"","v":"C:\\Essays\\Geo_Dating\\Neller\\"},"Wasserburg",{"$f":" \"C:\\Essays\\Geo_Dating\\Neller\\\" & G122 & \".pdf\"","v":"C:\\Essays\\Geo_Dating\\Neller\\Wasserburg.pdf"},"B4","AA_Index.xlsm",{"$f":"B122 &  \", \" & D122 & \", \" & C122 & \", \" & E122","v":"Earth Planetary Science Letters, 1972, 14, Pages 281-304."},"Th/Pb",57,4010,28140,{"$f":"O122-N122","v":24130},{"$f":"ABS(P122/N122)","v":6.0174563591022441}]
["The Allende and Orgueil Chondrites ","Geochimica et Cosmochimica Acta",40,1976,"Pages 617-634","C:\\Essays\\Geo_Dating\\Neller\\","Meteorite_Tatsumoto","C:\\Essays\\Geo_Dating\\Neller\\Meteorite_Tatsumoto.pdf","C8","AA_Index.xlsm","Geochimica et Cosmochimica Acta, 1976, 40, Pages 617-634","Th/Pb",62,4810,16490,11680,2.4282744282744284]
["Natural Radionuclide Mobility","Geochimica et Cosmochimica Acta",72,2008,"Pages 2067-2089","C:\\Essays\\Geo_Dating\\Neller\\","Amelin_F","C:\\Essays\\Geo_Dating\\Neller\\Amelin_F.pdf","E2","AA_Index.xlsm","Geochimica et Cosmochimica Acta, 2008, 72, Pages 2067-2089","Th/Pb",59,4,82030,82026,20506.5]
["Natural Radionuclide Mobility","Geochimica et Cosmochimica Acta",72,2008,"Pages 2067-2089","C:\\Essays\\Geo_Dating\\Neller\\","Amelin_F","C:\\Essays\\Geo_Dating\\Neller\\Amelin_F.pdf","E2","AA_Index.xlsm",{"$f":"B125 &  \", \" & D125 & \", \" & C125 & \", \" & E125","v":"Geochimica et Cosmochimica Acta, 2008, 72, Pages 2067-2089"},"Th/Pb",59,-98470,262350,{"$f":"O125-N125","v":360820},{"$f":"ABS(P125/N125)","v":3.6642632273788971}]
[null,null,null,null,null,null,null,null,null,null,null,"Total",null,{"$f":"MIN(N122:N125)","v":-98470},{"$f":"MAX(O122:O125)","v":262350},{"$f":"O126-N126","v":360820},{"$f":"ABS(P126/N126)","v":3.6642632273788971}]
[null,null,null,null,null,null,null,null,null,null,null,"Method",null,"Minimum","Maximum","Difference ","Ratio"]
["Isotopic Lead Ages Of Meteorites","Earth Planetary Science Letters",19,1973,"Pages 321-329","C:\\Essays\\Geo_Dating\\Neller\\","Pb-206_14","C:\\Essays\\Geo_Dating\\Neller\\Pb-206_14.pdf","B5","AA_Index.xlsm","Earth Planetary Science Letters, 1973, 19, Pages 321-329","U/Pb",60,4126,8615,4489,1.0879786718371305]
["The Allende and Orgueil Chondrites ","Geochimica et Cosmochimica Acta",40,1976,"Pages 617-634","C:\\Essays\\Geo_Dating\\Neller\\","Meteorite_Tatsumoto","C:\\Essays\\Geo_Dating\\Neller\\Meteorite_Tatsumoto.pdf","C8","AA_Index.xlsm","Geochimica et Cosmochimica Acta, 1976, 40, Pages 617-634","U/Pb",62,4920,9860,4940,1.0040650406504066]
["The Allende and Orgueil Chondrites ","Geochimica et Cosmochimica Acta",40,1976,"Pages 617-634","C:\\Essays\\Geo_Dating\\Neller\\","Meteorite_Tatsumoto","C:\\Essays\\Geo_Dating\\Neller\\Meteorite_Tatsumoto.pdf","C8","AA_Index.xlsm","Geochimica et Cosmochimica Acta, 1976, 40, Pages 617-634","U/Pb",62,4700,5780,1080,0.22978723404255319]
["U-Pb ages of angrites","Geochimica et Cosmochimica Acta",72,2008,"Pages 221-232","C:\\Essays\\Geo_Dating\\Neller\\","Amelin_D","C:\\Essays\\Geo_Dating\\Neller\\Amelin_D.pdf","E0","AA_Index.xlsm","Geochimica et Cosmochimica Acta, 2008, 72, Pages 221-232","U/Pb",63,3727.8,6625,2897.2,0.77718761736144637]
["Pb isotopic age of the Allende chondrules","Meteoritics And Planetary Science",42,2007,"Pages 1321-1335","C:\\Essays\\Geo_Dating\\Neller\\","Amelin_C","C:\\Essays\\Geo_Dating\\Neller\\Amelin_C.pdf","E3","AA_Index.xlsm","Meteoritics And Planetary Science, 2007, 42, Pages 1321-1335","U/Pb",64,1799,10066,8267,4.5953307392996106]
["Precise U-Pb dating","Geochimica et Cosmochimica Acta",69,2005,"Pages 505-518","C:\\Essays\\Geo_Dating\\Neller\\","Amelin_A","C:\\Essays\\Geo_Dating\\Neller\\Amelin_A.pdf","E4","AA_Index.xlsm","Geochimica et Cosmochimica Acta, 2005, 69, Pages 505-518","U/Pb",65,4249,6473,2224,0.52341727465285948]
[null,null,null,null,null,null,null,null,null,null,null,"Total",null,{"$f":"MIN(N128:N133)","v":1799},{"$f":"MAX(O128:O133)","v":10066},{"$f":"O134-N134","v":8267},{"$f":"ABS(P134/N134)","v":4.5953307392996106}]
[null,null,null,null,null,null,null,null,null,null,null,"Method",null,"Minimum","Maximum","Difference ","Ratio"]
["Single grain (U-Th)/He ages, Acapulco meteorite","Earth Planetary Science Letters",209,2003,"Pages 323-336","C:\\Essays\\Geo_Dating\\Neller\\","Meteorite_Kyoungwon","C:\\Essays\\Geo_Dating\\Neller\\Meteorite_Kyoungwon.pdf","C5","AA_Index.xlsm","Earth Planetary Science Letters, 2003, 209, Pages 323-336","U/Th",66,1452,4909,3457,2.3808539944903582]
["Totals","Totals",null,null,null,"C:\\Essays\\Geo_Dating\\Neller\\","Origin","C:\\Essays\\Geo_Dating\\Neller\\Origin.pdf"]
[null,null,null,null,null,null,null,null,null,null,null,"Method","Citation","Minimum","Maximum","Difference ","Ratio"]
[null,null,null,null,null,null,null,null,null,null,null,"Pb/Pb",62,4467,4569,{"$f":"O139-N139","v":102},{"$f":"ABS(P139/N139)","v":2.2834116856950974E-2}]
[null,null,null,null,null,null,null,null,null,null,null,"Pb/Pb",29,-3879,11,3890,1.0028357824181491]

{"sheet":"Searches","index":7,"n_rows":140,"n_cols":11,"rows_kept":140,"cut":false,"hidden":false,"merged":[]}
["Page","Google Advanced Search",null,null,null,null,null,null,null,"ID","Supplementary Data Files"]
[0,"Lutetium Hafnium \"TRD\" filetype:pdf",null,null,null,null,null,null,null,"A","GCA 53 (1989) 1583–1595"]
[null,"Google Advanced Search",null,null,null,null,null,null,null,"B","GCA 72 (2008) 221–232"]
[0,"Lutetium Hafnium \"TDM\" filetype:pdf",null,null,null,null,null,null,null,"C","GCA 72 (2008) 2067–2089"]
[null,"Google Advanced Search",null,null,null,null,null,null,null,"D","GCA 73 (2009) 5212–5223"]
[0,"Lutetium Hafnium \"TMA\" filetype:pdf",null,null,null,null,null,null,null,"E","GCA 73 (2009) 5793–5819"]
[null,"Google Advanced Search",null,null,null,null,null,null,null,"F","GCA 74 (2010) 1734–1747"]
[0,"Lutetium Hafnium \"CHUR\" filetype:pdf",null,null,null,null,null,null,null,"G","GCA 74 (2010) 5368–5381"]
[null,null,null,null,null,null,null,null,null,"H","GCA 75 (2011) 4456–4475"]
[null,null,null,null,null,null,null,null,null,"J","Lithos 112S (2009) 1120–1132"]
["Page","Google Advanced Search",null,null,"TRD","Rhenium depletion ages ",null,null,null,"K","Lithos 126 (2011) 233–247"]
[5,"Rhenium Osmium \"TRD\" filetype:pdf",null,null,"TDM","Depleted model age",null,null,null,"L","Lithos 149 (2012) 100–114"]
[null,"Google Advanced Search",null,null,"TMA","Mantle extraction ages",null,null,null,"M","Chemical Geology 276 (2010) 166–187"]
[13.6,"Rhenium Osmium \"TDM\" filetype:pdf",null,null,"CHUR","Chondritic Uniform Reservoir",null,null,null,"N","Chemical Geology 430 (2016) 90–107"]
[null,"Google Advanced Search",null,null,null,null,null,null,null,"P","EPSL 223 (2004) 349–364"]
[3.5,"Rhenium Osmium \"TMA\" filetype:pdf",null,null,null,null,null,null,null,"Q","EPSL 22 (1974) 145-156"]
[null,"Google Advanced Search",null,null,null,null,null,null,null,"R","Int J Earth Sci (Geol Rundsch) (2012) 101:1091–1109"]
[12,"Rhenium Osmium \"CHUR\" filetype:pdf",null,null,null,null,null,null,null,"S","Geology, 2010, 38[9]:799–802"]
[null,"Google Advanced Search",null,null,null,null,null,null,null,"T","Norsk Geologisk Tidsskrift, 1964, 44:183-196"]
[1,"Rhenium \"negative age\" filetype:pdf",null,null,null,null,null,null,null,"U","Journal Geophysical Research, 1962, 67:2998-2999"]
[null,"Google Advanced Search",null,null,null,null,null,null,null,"V","TRD"]
[0,"Rhenium \"future age\" filetype:pdf",null,null,null,null,null,null,null,"W","TDM"]
[null,null,null,null,null,null,null,null,null,"X","TRD"]
[null,null,null,null,null,null,null,null,null,"Y","CHUR"]
["Page","Google Advanced Search"]
[0,"Rubidium Strontium \"TRD\" filetype:pdf"]
["`","Google Advanced Search"]
[0,"Rubidium Strontium \"TDM\" filetype:pdf"]
[null,"Google Advanced Search"]
[0,"Rubidium Strontium \"TMA\" filetype:pdf"]
[null,"Google Advanced Search",null,null,null,null,null,null,null,null,"Andean Geology, 2010, 37, Pages 1-31"]
[0,"Rubidium Strontium \"CHUR\" filetype:pdf",null,null,null,null,null,null,null,null,"Chemical Geology, 1985, 52, Pages 249-271"]
[null,null,null,null,null,null,null,null,null,null,"Chemical Geology, 1990, 80, Pages 201-204"]
[null,null,null,null,null,null,null,null,null,null,"Chemical Geology, 1996, 130, Pages 55-64"]
["Page","Google Advanced Search",null,null,null,null,null,null,null,null,"Chemical Geology, 1997, 142, Pages 63-78"]
[0,"Neodymium Samarium \"TRD\" filetype:pdf",null,null,null,null,null,null,null,null,"Chemical Geology, 2000, 162, Pages 169-191"]
[null,"Google Advanced Search",null,null,null,null,null,null,null,null,"Chemical Geology, 2000, 166, Pages 85-101"]
[4,"Neodymium Samarium \"TDM\" filetype:pdf",null,null,null,null,null,null,null,null,"Chemical Geology, 2003, 196, Pages 107–129"]
[null,"Google Advanced Search",null,null,null,null,null,null,null,null,"Chemical Geology, 2004, 208, Pages 141-156"]
[0,"Neodymium Samarium \"TMA\" filetype:pdf",null,null,null,null,null,null,null,null,"Chemical Geology, 2004, 208, Pages 89-118"]
[null,"Google Advanced Search",null,null,null,null,null,null,null,null,"Chemical Geology, 2007, 236, Pages 323-338"]
[0,"Neodymium Samarium \"CHUR\" filetype:pdf",null,null,null,null,null,null,null,null,"Chemical Geology, 2007, 236, Pages 323-338"]
[null,null,null,null,null,null,null,null,null,null,"Chemical Geology, 2007, 236, Pages 323-338"]
[null,null,null,null,null,null,null,null,null,null,"Chemical Geology, 2008, 248, Pages 195-212"]
[null,null,null,null,null,null,null,null,null,null,"Chemical Geology, 2009, 268, Pages 1-14"]
[null,null,null,null,null,null,null,null,null,null,"Chemical Geology, 2010, 276, Pages 166-187"]
[null,null,null,null,null,null,null,null,null,null,"Chemical Geology, 2012, 291, Pages 186–198"]
[null,null,null,null,null,null,null,null,null,null,"Chemical Geology, 2012, 328, Pages 123–136"]
[null,null,null,null,null,null,null,null,null,null,"Chemical Geology, 2016, 430, Pages 90-107"]
[null,null,null,null,null,null,null,null,null,null,"Contributions Mineral Petrology, 2009, 157, Pages 525–540"]
[null,null,null,null,null,null,null,null,null,null,"Earth Planetary Science Letters, 1967, 2, Pages 397-408"]
[null,null,null,null,null,null,null,null,null,null,"Earth Planetary Science Letters, 1968, 4, Pages 84-88"]
[null,null,null,null,null,null,null,null,null,null,"Earth Planetary Science Letters, 1972, 14, Pages 281-304."]
[null,null,null,null,null,null,null,null,null,null,"Earth Planetary Science Letters, 1973, 19, Pages 321-329"]
[null,null,null,null,null,null,null,null,null,null,"Earth Planetary Science Letters, 1974, 22, Pages 145-156"]
[null,null,null,null,null,null,null,null,null,null,"Earth Planetary Science Letters, 1974, 22, Pages 256-266"]
[null,null,null,null,null,null,null,null,null,null,"Earth Planetary Science Letters, 1982, 61, Pages 291-296"]
[null,null,null,null,null,null,null,null,null,null,"Earth Planetary Science Letters, 1983, 62, Pages 132-146"]
[null,null,null,null,null,null,null,null,null,null,"Earth Planetary Science Letters, 1994, 126, Pages 457-472"]
[null,null,null,null,null,null,null,null,null,null,"Earth Planetary Science Letters, 1995, 134, Pages 341-357"]
[null,null,null,null,null,null,null,null,null,null,"Earth Planetary Science Letters, 1999, 172, Pages 199–211"]
[null,null,null,null,null,null,null,null,null,null,"Earth Planetary Science Letters, 2002, 203, Pages 651-663"]
[null,null,null,null,null,null,null,null,null,null,"Earth Planetary Science Letters, 2003, 209, Pages 323-336"]
[null,null,null,null,null,null,null,null,null,null,"Earth Planetary Science Letters, 2004, 223, Pages 349-364"]
[null,null,null,null,null,null,null,null,null,null,"Earth Planetary Science Letters, 2012, 359, Pages 279-293"]
[null,null,null,null,null,null,null,null,null,null,"Economic Geology, 2002, 97, Pages 35-37"]
[null,null,null,null,null,null,null,null,null,null,"Geochimica et Cosmochimica Acta, 1958, 15, Pages 40-50"]
[null,null,null,null,null,null,null,null,null,null,"Geochimica et Cosmochimica Acta, 1970, 34, Pages 713-725"]
[null,null,null,null,null,null,null,null,null,null,"Geochimica et Cosmochimica Acta, 1976, 40, Pages 617-634"]
[null,null,null,null,null,null,null,null,null,null,"Geochimica et Cosmochimica Acta, 1976, 40, Pages 617-634"]
[null,null,null,null,null,null,null,null,null,null,"Geochimica et Cosmochimica Acta, 1976, 40, Pages 617-634"]
[null,null,null,null,null,null,null,null,null,null,"Geochimica et Cosmochimica Acta, 1976, 40, Pages 617-634"]
[null,null,null,null,null,null,null,null,null,null,"Geochimica et Cosmochimica Acta, 1979, 43, Pages 1829-1840"]
[null,null,null,null,null,null,null,null,null,null,"Geochimica et Cosmochimica Acta, 1980, 44, Pages 1667-1682"]
[null,null,null,null,null,null,null,null,null,null,"Geochimica et Cosmochimica Acta, 1988, 52, Pages 2487-2499"]
[null,null,null,null,null,null,null,null,null,null,"Geochimica et Cosmochimica Acta, 1989, 53, Pages 1583-1595"]
[null,null,null,null,null,null,null,null,null,null,"Geochimica et Cosmochimica Acta, 1990, 54, Pages 2549-2564"]
[null,null,null,null,null,null,null,null,null,null,"Geochimica et Cosmochimica Acta, 1990, 54, Pages 3509-3523"]
[null,null,null,null,null,null,null,null,null,null,"Geochimica et Cosmochimica Acta, 1993, 57, Pages 1625-1628"]
[null,null,null,null,null,null,null,null,null,null,"Geochimica et Cosmochimica Acta, 1995, 59, Pages 959-977"]
[null,null,null,null,null,null,null,null,null,null,"Geochimica et Cosmochimica Acta, 1995, 59, Pages 959-977"]
[null,null,null,null,null,null,null,null,null,null,"Geochimica et Cosmochimica Acta, 1995, 59, Pages 959-977"]
[null,null,null,null,null,null,null,null,null,null,"Geochimica et Cosmochimica Acta, 1997, 61, Pages 3477-3501"]
[null,null,null,null,null,null,null,null,null,null,"Geochimica et Cosmochimica Acta, 1999, 63, Pages 1203-1217"]
[null,null,null,null,null,null,null,null,null,null,"Geochimica et Cosmochimica Acta, 2000, 64, Pages 2913-2928"]
[null,null,null,null,null,null,null,null,null,null,"Geochimica et Cosmochimica Acta, 2000, 64, Pages 3061-3071"]
[null,null,null,null,null,null,null,null,null,null,"Geochimica et Cosmochimica Acta, 2002, 66, Pages 1037-1050"]
[null,null,null,null,null,null,null,null,null,null,"Geochimica et Cosmochimica Acta, 2003, 67, Pages 1145-1176"]
[null,null,null,null,null,null,null,null,null,null,"Geochimica et Cosmochimica Acta, 2005, 69, Pages 505-518"]
[null,null,null,null,null,null,null,null,null,null,"Geochimica et Cosmochimica Acta, 2006, 70, Pages 2573-2575"]
[null,null,null,null,null,null,null,null,null,null,"Geochimica et Cosmochimica Acta, 2008, 72, Pages 2067-2089"]
[null,null,null,null,null,null,null,null,null,null,"Geochimica et Cosmochimica Acta, 2008, 72, Pages 221-232"]
[null,null,null,null,null,null,null,null,null,null,"Geochimica et Cosmochimica Acta, 2009, 73, Pages 4531–4557"]
[null,null,null,null,null,null,null,null,null,null,"Geochimica et Cosmochimica Acta, 2010, 74, Pages 1734-1747"]
[null,null,null,null,null,null,null,null,null,null,"Geology, 2010, 38, Pages 799-802"]
[null,null,null,null,null,null,null,null,null,null,"Geology, 2012, , Pages 1-19"]
[null,null,null,null,null,null,null,null,null,null,"Gondwana Research, 2005, 8, Pages 617-621"]
[null,null,null,null,null,null,null,null,null,null,"Icarus, 1980, 42, Pages 380-405"]
[null,null,null,null,null,null,null,null,null,null,"International Journal Earth Science, 2012, 101, Pages 1091-1109"]
[null,null,null,null,null,null,null,null,null,null,"International Journal Earth Science, 2012, 101, Pages 1091-1109"]
[null,null,null,null,null,null,null,null,null,null,"Journal of Asian Earth Sciences, 2013, 62, Pages 37-50"]
[null,null,null,null,null,null,null,null,null,null,"Journal Of Petrology, 2007, 48, Pages 589-625"]
[null,null,null,null,null,null,null,null,null,null,"Journal Of Petrology, 2007, 48, Pages 589-625"]
[null,null,null,null,null,null,null,null,null,null,"Journal Of Petrology, 2007, 48, Pages 589-625"]
[null,null,null,null,null,null,null,null,null,null,"Journal of Petrology, 2016, 57, Pages 685-715"]
[null,null,null,null,null,null,null,null,null,null,"Journal of the Geological Society, 2011, 168, Pages 1201-1214"]
[null,null,null,null,null,null,null,null,null,null,"Journal Petrology Society Korea, 2006, 15, Pages 106-117"]
[null,null,null,null,null,null,null,null,null,null,"Lithos, 1999, 48, Pages 171-194"]
[null,null,null,null,null,null,null,null,null,null,"Lithos, 2008, 102, Pages 25-42"]
[null,null,null,null,null,null,null,null,null,null,"Lithos, 2008, 102, Pages 43-64"]
[null,null,null,null,null,null,null,null,null,null,"Lithos, 2009, 112-S, Pages 1120-1132"]
[null,null,null,null,null,null,null,null,null,null,"Lithos, 2009, 112-S, Pages 896-912"]
[null,null,null,null,null,null,null,null,null,null,"Lithos, 2010, 117, Pages 1-19"]
[null,null,null,null,null,null,null,null,null,null,"Lithos, 2011, 125, Pages 405–422"]
[null,null,null,null,null,null,null,null,null,null,"Lithos, 2011, 126, Pages 233-247"]
[null,null,null,null,null,null,null,null,null,null,"Lithos, 2011, 126, Pages 233-247"]
[null,null,null,null,null,null,null,null,null,null,"Lithos, 2011, 126, Pages 233-247"]
[null,null,null,null,null,null,null,null,null,null,"Lithos, 2012, 142-143, Pages 161-181"]
[null,null,null,null,null,null,null,null,null,null,"Lithos, 2012, 142-143, Pages 161-181"]
[null,null,null,null,null,null,null,null,null,null,"Lithos, 2012, 142-143, Pages 161-181"]
[null,null,null,null,null,null,null,null,null,null,"Lithos, 2012, 149, Pages 100-114"]
[null,null,null,null,null,null,null,null,null,null,"Meteoritics And Planetary Science, 1997, 32, Pages 647-670"]
[null,null,null,null,null,null,null,null,null,null,"Meteoritics And Planetary Science, 1998, 33, Pages 647-653"]
[null,null,null,null,null,null,null,null,null,null,"Meteoritics And Planetary Science, 2001, 36, Pages 107-122"]
[null,null,null,null,null,null,null,null,null,null,"Meteoritics And Planetary Science, 2003, 38, Pages 669–710"]
[null,null,null,null,null,null,null,null,null,null,"Meteoritics And Planetary Science, 2004, 39, Pages 1475-1493"]
[null,null,null,null,null,null,null,null,null,null,"Meteoritics And Planetary Science, 2007, 42, Pages 1321-1335"]
[null,null,null,null,null,null,null,null,null,null,"Meteoritics And Planetary Science, 2009, 44, Pages 293-321"]
[null,null,null,null,null,null,null,null,null,null,"Precambrian Research, 2002, 118, Pages 267-283"]
[null,null,null,null,null,null,null,null,null,null,"Precambrian Research, 2014, 250, Pages 97-126"]
[null,null,null,null,null,null,null,null,null,null,"Science, 1967, 155, Pages 999-1000"]
[null,null,null,null,null,null,null,null,null,null,"University Alberta, Thesis, 2010, , Pages 1-152"]
[null,null,null,null,null,null,null,null,null,null,"University Alberta, Thesis, 2010, , Pages 1-153"]
[null,null,null,null,null,null,null,null,null,null,"University Berlin, Thesis, 2013, , Pages 1-186"]
[null,null,null,null,null,null,null,null,null,null,"University Berlin, Thesis, 2014, , Pages 1-168"]
[null,null,null,null,null,null,null,null,null,null,"University Bonn, Thesis, 2004, , Pages 1-132"]
[null,null,null,null,null,null,null,null,null,null,"University Boston, Thesis, 2014, , Pages 1-207"]
[null,null,null,null,null,null,null,null,null,null,"University Maryland, Thesis, 2007, , Pages 1-117"]
[null,null,null,null,null,null,null,null,null,null,"University Maryland, Thesis, 2011, , Pages 1-238"]
[null,null,null,null,null,null,null,null,null,null,"University Maryland, Thesis, 2015, , Pages 1-17"]

{"sheet":"ALL","index":8,"n_rows":118,"n_cols":17,"rows_kept":118,"cut":false,"hidden":false,"merged":[]}
["Essay's Title","Magazine","Volume","Year","Pages","Folder","File Name","Pauls Computer","Sheet","Excel File","Citation","Method","Citation","Min Age (Ma)","Max Age (Ma)","Difference (Ma)","Age Ratio"]
["Ar-39/Ar-40 Dating of Mesosiderites","Geochimica et Cosmochimica Acta",54,1990,"Pages 2549-2564",{"$f":" \"C:\\Essays\\Geo_Dating\\Neller\\\"","v":"C:\\Essays\\Geo_Dating\\Neller\\"},"BOGARD_A",{"$f":" \"C:\\Essays\\Geo_Dating\\Neller\\\" & G2 & \".pdf\"","v":"C:\\Essays\\Geo_Dating\\Neller\\BOGARD_A.pdf"},"A1","AA_Index.xlsm",{"$f":"B2 &  \", \" & D2 & \", \" & C2 & \", \" & E2","v":"Geochimica et Cosmochimica Acta, 1990, 54, Pages 2549-2564"},"Ar/Ar",1,1770,13960,{"$f":"O2-N2","v":12190},{"$f":"ABS(P2/N2)","v":6.8870056497175138}]
["39Ar-40Ar Ages of Eucrites","Meteoritics And Planetary Science",38,2003,"Pages 669–710","C:\\Essays\\Geo_Dating\\Neller\\","BOGARD_E","C:\\Essays\\Geo_Dating\\Neller\\BOGARD_E.pdf","A2","AA_Index.xlsm","Meteoritics And Planetary Science, 2003, 38, Pages 669–710","Ar/Ar",2,162,9669,9507,58.685185185185183]
["Ar diffusion properties, Meteorites","Geochimica et Cosmochimica Acta",44,1980,"Pages 1667-1682","C:\\Essays\\Geo_Dating\\Neller\\","BOGARD_B","C:\\Essays\\Geo_Dating\\Neller\\BOGARD_B.pdf","A3","AA_Index.xlsm","Geochimica et Cosmochimica Acta, 1980, 44, Pages 1667-1682","Ar/Ar",3,120,9710,9590,79.916666666666671]
["Argon-39/Argon-40 Ages","Meteoritics And Planetary Science",36,2001,"Pages 107-122","C:\\Essays\\Geo_Dating\\Neller\\","BOGARD_F","C:\\Essays\\Geo_Dating\\Neller\\BOGARD_F.pdf","A4","AA_Index.xlsm","Meteoritics And Planetary Science, 2001, 36, Pages 107-122","Ar/Ar",4,1102,8058,6956,6.3121597096188751]
["U-Th-Pb dating of Abee E4 Meteorite","Earth Planetary Science Letters",62,1983,"Pages 132-146","C:\\Essays\\Geo_Dating\\Neller\\","BOGARD_C","C:\\Essays\\Geo_Dating\\Neller\\BOGARD_C.pdf","A5","AA_Index.xlsm","Earth Planetary Science Letters, 1983, 62, Pages 132-146","Ar/Ar",5,3560,8900,5340,1.5]
["40Ar-39Ar Chronology","Meteoritics And Planetary Science",44,2009,"Pages 293-321","C:\\Essays\\Geo_Dating\\Neller\\","Meteorite_Korochantseva","C:\\Essays\\Geo_Dating\\Neller\\Meteorite_Korochantseva.pdf","B0","AA_Index.xlsm","Meteoritics And Planetary Science, 2009, 44, Pages 293-321","Ar/Ar",6,94,14917,14823,157.69148936170214]
["40-Ar / 39-Ar Ages of Allende","Icarus",42,1980,"Pages 380-405","C:\\Essays\\Geo_Dating\\Neller\\","Meteorite_Jessberger","C:\\Essays\\Geo_Dating\\Neller\\Meteorite_Jessberger.pdf","B1","AA_Index.xlsm","Icarus, 1980, 42, Pages 380-405","Ar/Ar",7,1871,7460,5589,2.9871726349545695]
["The Fossil LL6 Chondrite","Geochimica et Cosmochimica Acta",74,2010,"Pages 1734-1747","C:\\Essays\\Geo_Dating\\Neller\\","Older_Than_Earth_3","C:\\Essays\\Geo_Dating\\Neller\\Older_Than_Earth_3.pdf","B2","AA_Index.xlsm","Geochimica et Cosmochimica Acta, 2010, 74, Pages 1734-1747","Ar/Ar",8,164,11250,11086,67.597560975609753]
["40Ar-39Ar Dating of Pseudo Tachylytes","Earth Planetary Science Letters",223,2004,"Pages 349-364","C:\\Essays\\Geo_Dating\\Neller\\","Older_Than_Earth_1","C:\\Essays\\Geo_Dating\\Neller\\Older_Than_Earth_1.pdf","B6","AA_Index.xlsm","Earth Planetary Science Letters, 2004, 223, Pages 349-364","Ar/Ar",9,42,7347,7305,173.92857142857142]
["Location of extraneous argon","Chemical Geology",80,1990,"Pages 201-204","C:\\Essays\\Geo_Dating\\Neller\\","Maluski","C:\\Essays\\Geo_Dating\\Neller\\Maluski.pdf","B7","AA_Index.xlsm","Chemical Geology, 1990, 80, Pages 201-204","Ar/Ar",10,1700,22090,20390,11.994117647058824]
["Excess Argon In Ultramafic Rocks","Earth Planetary Science Letters",22,1974,"Pages 145-156","C:\\Essays\\Geo_Dating\\Neller\\","Ages_012","C:\\Essays\\Geo_Dating\\Neller\\Ages_012.pdf","B8","AA_Index.xlsm","Earth Planetary Science Letters, 1974, 22, Pages 145-156","Ar/Ar",11,580,9840,9260,15.96551724137931]
["Analyses of the chondritic meteorite Orvinio","Meteoritics And Planetary Science",39,2004,"Pages 1475-1493","C:\\Essays\\Geo_Dating\\Neller\\","Meteorite_Grier","C:\\Essays\\Geo_Dating\\Neller\\Meteorite_Grier.pdf","C1","AA_Index.xlsm","Meteoritics And Planetary Science, 2004, 39, Pages 1475-1493","Ar/Ar",12,324,17178,16854,52.018518518518519]
["Shocked meteorites: Argon-40-argon-39","Meteoritics And Planetary Science",32,1997,"Pages 647-670","C:\\Essays\\Geo_Dating\\Neller\\","Meteorite_Kunz","C:\\Essays\\Geo_Dating\\Neller\\Meteorite_Kunz.pdf","C2","AA_Index.xlsm","Meteoritics And Planetary Science, 1997, 32, Pages 647-670","Ar/Ar",13,506,13348,12842,25.379446640316207]
["The Strangways impact structure","Earth Planetary Science Letters",172,1999,"Pages 199–211","C:\\Essays\\Geo_Dating\\Neller\\","Older_Than_Earth_4","C:\\Essays\\Geo_Dating\\Neller\\Older_Than_Earth_4.pdf","C3","AA_Index.xlsm","Earth Planetary Science Letters, 1999, 172, Pages 199–211","Ar/Ar",14,633,8569,7936,12.537124802527646]
["40Ar-39Ar Quartz Ages","Geochimica et Cosmochimica Acta",70,2006,"Pages 2573-2575","C:\\Essays\\Geo_Dating\\Neller\\","Older_Than_Earth_9","C:\\Essays\\Geo_Dating\\Neller\\Older_Than_Earth_9.pdf","C7","AA_Index.xlsm","Geochimica et Cosmochimica Acta, 2006, 70, Pages 2573-2575","Ar/Ar",15,1115,9969,8854,7.9408071748878921]
["The Peace River shocked M chondrite","Geochimica et Cosmochimica Acta",52,1988,"Pages 2487-2499","C:\\Essays\\Geo_Dating\\Neller\\","Meteorite_MCCONVILL","C:\\Essays\\Geo_Dating\\Neller\\Meteorite_MCCONVILL.pdf","D0","AA_Index.xlsm","Geochimica et Cosmochimica Acta, 1988, 52, Pages 2487-2499","Ar/Ar",16,510,7100,6590,12.921568627450981]
["History Of The Acapulco Meteorite","Geochimica et Cosmochimica Acta",61,1997,"Pages 3477-3501","C:\\Essays\\Geo_Dating\\Neller\\","Meteorite_Pellas","C:\\Essays\\Geo_Dating\\Neller\\Meteorite_Pellas.pdf","D1","AA_Index.xlsm","Geochimica et Cosmochimica Acta, 1997, 61, Pages 3477-3501","Ar/Ar",17,3841,11421,7580,1.9734444155167925]
["Pressure Metamorphism in Northeast Japan","Gondwana Research",8,2005,"Pages 617-621","C:\\Essays\\Geo_Dating\\Neller\\","Itaya","C:\\Essays\\Geo_Dating\\Neller\\Itaya.pdf","D7","AA_Index.xlsm","Gondwana Research, 2005, 8, Pages 617-621","Ar/Ar",18,7700,16300,8600,1.1168831168831168]
["40 Ar/39ar Dating Of The Long Range Dikes","Earth Planetary Science Letters",22,1974,"Pages 256-266","C:\\Essays\\Geo_Dating\\Neller\\","Ages_002","C:\\Essays\\Geo_Dating\\Neller\\Ages_002.pdf","D8","AA_Index.xlsm","Earth Planetary Science Letters, 1974, 22, Pages 256-266","Ar/Ar",19,651,18620,17969,27.602150537634408]
["Potassium: Argon Dating of Iron Meteorites","Science",155,1967,"Pages 999-1000","C:\\Essays\\Geo_Dating\\Neller\\","Meteor_Rancitelli","C:\\Essays\\Geo_Dating\\Neller\\Meteor_Rancitelli.pdf","C6","AA_Index.xlsm","Science, 1967, 155, Pages 999-1000","K/Ar",20,4700,10400,5700,1.2127659574468086]
["Potassium-argon age of iron meteorites","Geochimica et Cosmochimica Acta",15,1958,"Pages 40-50","C:\\Essays\\Geo_Dating\\Neller\\","Meteorite_Stoenner","C:\\Essays\\Geo_Dating\\Neller\\Meteorite_Stoenner.pdf","D4","AA_Index.xlsm","Geochimica et Cosmochimica Acta, 1958, 15, Pages 40-50","K/Ar",21,5300,13000,7700,1.4528301886792452]
["Ar/Ar dating of inclusions from IAB iron meteorites","Geochimica et Cosmochimica Acta",43,1979,"Pages 1829-1840","C:\\Essays\\Geo_Dating\\Neller\\","Meteorite_NIEMEYER","C:\\Essays\\Geo_Dating\\Neller\\Meteorite_NIEMEYER.pdf","D6","AA_Index.xlsm","Geochimica et Cosmochimica Acta, 1979, 43, Pages 1829-1840","K/Ar",22,4460,9500,5040,1.1300448430493273]
["K/Ar Age Determinations of Iron Meteorites","Earth Planetary Science Letters",4,1968,"Pages 84-88","C:\\Essays\\Geo_Dating\\Neller\\","Meteorite_Kaiser","C:\\Essays\\Geo_Dating\\Neller\\Meteorite_Kaiser.pdf","D9","AA_Index.xlsm","Earth Planetary Science Letters, 1968, 4, Pages 84-88","K/Ar",23,4200,7400,3200,0.76190476190476186]
["Upper Crust in North-East Australia","International Journal Earth Science",101,2012,"Pages 1091-1109","C:\\Essays\\Geo_Dating\\Neller\\","Older_Than_Earth_11","C:\\Essays\\Geo_Dating\\Neller\\Older_Than_Earth_11.pdf","O_6","AB_Index.xlsm","International Journal Earth Science, 2012, 101, Pages 1091-1109","Lu/Hf",27,-3220,3870,7090,2.201863354037267]
["The Siberian Craton","Geochimica et Cosmochimica Acta",59,1995,"Pages 959-977","C:\\Essays\\Geo_Dating\\Neller\\","Older_Than_Earth_6","C:\\Essays\\Geo_Dating\\Neller\\Older_Than_Earth_6.pdf","A8","AA_Index.xlsm","Geochimica et Cosmochimica Acta, 1995, 59, Pages 959-977","Nd/Sm",38,-1,3200,3201,3201]
["African Peridotite Xenoliths","Geochimica et Cosmochimica Acta",53,1989,"Pages 1583-1595","C:\\Essays\\Geo_Dating\\Neller\\","Older_Than_Earth_5","C:\\Essays\\Geo_Dating\\Neller\\Older_Than_Earth_5.pdf","D2","AA_Index.xlsm","Geochimica et Cosmochimica Acta, 1989, 53, Pages 1583-1595","Nd/Sm",26,1070,12600,11530,10.77570093457944]
["Upper Crust in North-East Australia","International Journal Earth Science",101,2012,"Pages 1091-1109","C:\\Essays\\Geo_Dating\\Neller\\","Older_Than_Earth_11","C:\\Essays\\Geo_Dating\\Neller\\Older_Than_Earth_11.pdf","O_6","AB_Index.xlsm","International Journal Earth Science, 2012, 101, Pages 1091-1109","Nd/Sm",27,-800,9730,10530,13.1625]
["The Allende and Orgueil Chondrites ","Geochimica et Cosmochimica Acta",40,1976,"Pages 617-634","C:\\Essays\\Geo_Dating\\Neller\\","Meteorite_Tatsumoto","C:\\Essays\\Geo_Dating\\Neller\\Meteorite_Tatsumoto.pdf","C8","AA_Index.xlsm","Geochimica et Cosmochimica Acta, 1976, 40, Pages 617-634","Pb/Pb",62,4467,4569,102,2.2834116856950974E-2]
["Silica Mineral Formation","Geochimica et Cosmochimica Acta",67,2003,"Pages 1145-1176","C:\\Essays\\Geo_Dating\\Neller\\","Amelin_G","C:\\Essays\\Geo_Dating\\Neller\\Amelin_G.pdf","E5","AA_Index.xlsm","Geochimica et Cosmochimica Acta, 2003, 67, Pages 1145-1176","Pb/Pb",29,-3879,11,3890,1.0028357824181491]
["The Siberian Craton","Geochimica et Cosmochimica Acta",59,1995,"Pages 959-977","C:\\Essays\\Geo_Dating\\Neller\\","Older_Than_Earth_6","C:\\Essays\\Geo_Dating\\Neller\\Older_Than_Earth_6.pdf","A8","AA_Index.xlsm","Geochimica et Cosmochimica Acta, 1995, 59, Pages 959-977","Rb/Sr",38,5445,12716,7271,1.3353535353535353]
["Rb-Sr Ages Of Iron Meteorites","Earth Planetary Science Letters",2,1967,"Pages 397-408","C:\\Essays\\Geo_Dating\\Neller\\","Meteorite_Burnett","C:\\Essays\\Geo_Dating\\Neller\\Meteorite_Burnett.pdf","A9","AA_Index.xlsm","Earth Planetary Science Letters, 1967, 2, Pages 397-408","Rb/Sr",31,3700,9300,5600,1.5135135135135136]
["Isotopic discrepancies in Black Hills, South Dakota","Geochimica et Cosmochimica Acta",34,1970,"Pages 713-725","C:\\Essays\\Geo_Dating\\Neller\\","Riley","C:\\Essays\\Geo_Dating\\Neller\\Riley.pdf","B3","AA_Index.xlsm","Geochimica et Cosmochimica Acta, 1970, 34, Pages 713-725","Rb/Sr",32,1400,900000,898600,641.85714285714289]
["Rhenium-187-Osmium-187 in iron meteorites","Meteoritics And Planetary Science",33,1998,"Pages 647-653","C:\\Essays\\Geo_Dating\\Neller\\","Meteorite_Birck","C:\\Essays\\Geo_Dating\\Neller\\Meteorite_Birck.pdf","B9","AA_Index.xlsm","Meteoritics And Planetary Science, 1998, 33, Pages 647-653","Rb/Sr",33,1180,13700,12520,10.610169491525424]
["Antarctic LL-chondrites","Geochimica et Cosmochimica Acta",54,1990,"Pages 3509-3523","C:\\Essays\\Geo_Dating\\Neller\\","Meteorite_Okano","C:\\Essays\\Geo_Dating\\Neller\\Meteorite_Okano.pdf","C9","AA_Index.xlsm","Geochimica et Cosmochimica Acta, 1990, 54, Pages 3509-3523","Rb/Sr",34,3110,7330,4220,1.3569131832797428]
["North Western Wyoming Craton","Earth Planetary Science Letters",126,1994,"Pages 457-472","C:\\Essays\\Geo_Dating\\Neller\\","Older_Than_Earth_2","C:\\Essays\\Geo_Dating\\Neller\\Older_Than_Earth_2.pdf","D3","AA_Index.xlsm","Earth Planetary Science Letters, 1994, 126, Pages 457-472","Rb/Sr",35,-3440,15500,18940,5.5058139534883717]
["Age and Origin of Base and Precious Metal","Economic Geology",97,2002,"Pages 35-37","C:\\Essays\\Geo_Dating\\Neller\\","Ages_001","C:\\Essays\\Geo_Dating\\Neller\\Ages_001.pdf","D5","AA_Index.xlsm","Economic Geology, 2002, 97, Pages 35-37","Rb/Sr",36,79,23312,23233,294.08860759493672]
["Stabilisation of Archaean lithosphere","Earth Planetary Science Letters",134,1995,"Pages 341-357","C:\\Essays\\Geo_Dating\\Neller\\","Pearson","C:\\Essays\\Geo_Dating\\Neller\\Pearson.pdf","A7","AA_Index.xlsm","Earth Planetary Science Letters, 1995, 134, Pages 341-357","Re/Os",37,100,15600,15500,155]
["The Siberian Craton","Geochimica et Cosmochimica Acta",59,1995,"Pages 959-977","C:\\Essays\\Geo_Dating\\Neller\\","Older_Than_Earth_6","C:\\Essays\\Geo_Dating\\Neller\\Older_Than_Earth_6.pdf","A8","AA_Index.xlsm","Geochimica et Cosmochimica Acta, 1995, 59, Pages 959-977","Re/Os",38,-1,11000,11001,11001]
["The Study of Molybdenites","Earth Planetary Science Letters",61,1982,"Pages 291-296","C:\\Essays\\Geo_Dating\\Neller\\","Older_Than_Earth_7","C:\\Essays\\Geo_Dating\\Neller\\Older_Than_Earth_7.pdf","C0","AA_Index.xlsm","Earth Planetary Science Letters, 1982, 61, Pages 291-296","Re/Os",39,2700,5800,3100,1.1481481481481481]
["Reliable Re-Os Ages","Geochimica et Cosmochimica Acta",57,1993,"Pages 1625-1628","C:\\Essays\\Geo_Dating\\Neller\\","Older_Than_Earth_8","C:\\Essays\\Geo_Dating\\Neller\\Older_Than_Earth_8.pdf","C4","AA_Index.xlsm","Geochimica et Cosmochimica Acta, 1993, 57, Pages 1625-1628","Re/Os",40,2655,6300,3645,1.3728813559322033]
["Evolution of the South China Block","Geochimica et Cosmochimica Acta",73,2009,"Pages 4531–4557","C:\\Essays\\Geo_Dating\\Neller\\","TRD_03","C:\\Essays\\Geo_Dating\\Neller\\TRD_03.pdf","E6","AA_Index.xlsm","Geochimica et Cosmochimica Acta, 2009, 73, Pages 4531–4557","Re/Os",41,-59500,25900,85400,1.4352941176470588]
["The North China Craton","University Maryland, Thesis",null,2011,"Pages 1-238","C:\\Essays\\Geo_Dating\\Neller\\","TRD_04","C:\\Essays\\Geo_Dating\\Neller\\TRD_04.pdf","E7","AA_Index.xlsm","University Maryland, Thesis, 2011, , Pages 1-238","Re/Os",42,-30000,40000,70000,2.3333333333333335]
["Rhenium/Osmium Geochronology of Oxide Minerals","University Alberta, Thesis",null,2010,"Pages 1-152","C:\\Essays\\Geo_Dating\\Neller\\","TRD_05","C:\\Essays\\Geo_Dating\\Neller\\TRD_05.pdf","E8","AA_Index.xlsm","University Alberta, Thesis, 2010, , Pages 1-152","Re/Os",43,-3700,38190,41890,11.321621621621622]
["Rocks From the Earth’s Mantle","University Berlin, Thesis",null,2013,"Pages 1-186","C:\\Essays\\Geo_Dating\\Neller\\","TRD_06","C:\\Essays\\Geo_Dating\\Neller\\TRD_06.pdf","E9","AA_Index.xlsm","University Berlin, Thesis, 2013, , Pages 1-186","Re/Os",44,-9260,3200,12460,1.3455723542116631]
["Hebi, North China Craton","Chemical Geology",328,2012,"Pages 123–136","C:\\Essays\\Geo_Dating\\Neller\\","Future_Ages_005","C:\\Essays\\Geo_Dating\\Neller\\Future_Ages_005.pdf","F2","AA_Index.xlsm","Chemical Geology, 2012, 328, Pages 123–136","Re/Os",45,-3100,8400,11500,3.7096774193548385]
["Re–Os Isotopic Results","Chemical Geology",291,2012,"Pages 186–198","C:\\Essays\\Geo_Dating\\Neller\\","Future_Ages_006","C:\\Essays\\Geo_Dating\\Neller\\Future_Ages_006.pdf","F3","AA_Index.xlsm","Chemical Geology, 2012, 291, Pages 186–198","Re/Os",46,-675,10430,11105,16.451851851851853]
["Lithospheric Mantle Evolution ","Lithos",125,2011,"Pages 405–422","C:\\Essays\\Geo_Dating\\Neller\\","Older_Than_Earth_07","C:\\Essays\\Geo_Dating\\Neller\\Older_Than_Earth_07.pdf","F4","AA_Index.xlsm","Lithos, 2011, 125, Pages 405–422","Re/Os",47,-24710,8620,33330,1.348846620801295]
["The age of Lithospheric Mantle","Chemical Geology",196,2003,"Pages 107–129","C:\\Essays\\Geo_Dating\\Neller\\","Future_Ages_008","C:\\Essays\\Geo_Dating\\Neller\\Future_Ages_008.pdf","F5","AA_Index.xlsm","Chemical Geology, 2003, 196, Pages 107–129","Re/Os",48,150,15410,15260,101.73333333333333]
["Osmium Isotopes ","Chemical Geology",130,1996,"Pages 55-64","C:\\Essays\\Geo_Dating\\Neller\\","Greater_Than_Earth_01","C:\\Essays\\Geo_Dating\\Neller\\Greater_Than_Earth_01.pdf","G1","AB_Index.xlsm","Chemical Geology, 1996, 130, Pages 55-64","Re/Os",49,90,6900,6810,75.666666666666671]
["Evolution Beneath the Kaapvaal Craton","Chemical Geology",208,2004,"Pages 89-118","C:\\Essays\\Geo_Dating\\Neller\\","Greater_Than_Earth_02","C:\\Essays\\Geo_Dating\\Neller\\Greater_Than_Earth_02.pdf","G2","AB_Index.xlsm","Chemical Geology, 2004, 208, Pages 89-118","Re/Os",50,-279000,79000,358000,1.2831541218637992]
["The Age of Continental Roots","Lithos",48,1999,"Pages 171-194","C:\\Essays\\Geo_Dating\\Neller\\","Greater_Than_Earth_05","C:\\Essays\\Geo_Dating\\Neller\\Greater_Than_Earth_05.pdf","G5","AB_Index.xlsm","Lithos, 1999, 48, Pages 171-194","Re/Os",51,2780,8380,5600,2.014388489208633]
["Archean Man Shield, West Africa","Precambrian Research",118,2002,"Pages 267-283","C:\\Essays\\Geo_Dating\\Neller\\","Older_Than_Earth_05","C:\\Essays\\Geo_Dating\\Neller\\Older_Than_Earth_05.pdf","O_2","AB_Index.xlsm","Precambrian Research, 2002, 118, Pages 267-283","Re/Os",52,1390,77160,75770,54.510791366906474]
["Diamond Formation Episodes ","Contributions Mineral Petrology",157,2009,"Pages 525–540","C:\\Essays\\Geo_Dating\\Neller\\","Older_Than_Earth_03","C:\\Essays\\Geo_Dating\\Neller\\Older_Than_Earth_03.pdf","O_3","AB_Index.xlsm","Contributions Mineral Petrology, 2009, 157, Pages 525–540","Re/Os",53,-51000,10300,61300,1.2019607843137254]
["Re/Os Isotopes of Sulfides ","Lithos",102,2008,"Pages 43-64","C:\\Essays\\Geo_Dating\\Neller\\","Older_Than_Earth_04","C:\\Essays\\Geo_Dating\\Neller\\Older_Than_Earth_04.pdf","O_4","AB_Index.xlsm","Lithos, 2008, 102, Pages 43-64","Re/Os",54,-47693,39229,86922,1.8225316084121359]
["Canadian Cordillera lithosphere","Chemical Geology",166,2000,"Pages 85-101","C:\\Essays\\Geo_Dating\\Neller\\","Older_Than_Earth_09","C:\\Essays\\Geo_Dating\\Neller\\Older_Than_Earth_09.pdf","O_5","AB_Index.xlsm","Chemical Geology, 2000, 166, Pages 85-101","Re/Os",55,-1,748,749,749]
["Lithospheric Mantle and Diamonds ","Lithos","112-S",2009,"Pages 1120-1132","C:\\Essays\\Geo_Dating\\Neller\\","Older_Than_Earth_12","C:\\Essays\\Geo_Dating\\Neller\\Older_Than_Earth_12.pdf","O_7","AB_Index.xlsm","Lithos, 2009, 112-S, Pages 1120-1132","Re/Os",56,1980,7850,5870,2.9646464646464645]
["Three Apollo 14 Basalts","Earth Planetary Science Letters",14,1972,"Pages 281-304.","C:\\Essays\\Geo_Dating\\Neller\\","Wasserburg","C:\\Essays\\Geo_Dating\\Neller\\Wasserburg.pdf","B4","AA_Index.xlsm","Earth Planetary Science Letters, 1972, 14, Pages 281-304.","Th/Pb",57,4010,28140,24130,6.0174563591022441]
["The Allende and Orgueil Chondrites ","Geochimica et Cosmochimica Acta",40,1976,"Pages 617-634","C:\\Essays\\Geo_Dating\\Neller\\","Meteorite_Tatsumoto","C:\\Essays\\Geo_Dating\\Neller\\Meteorite_Tatsumoto.pdf","C8","AA_Index.xlsm","Geochimica et Cosmochimica Acta, 1976, 40, Pages 617-634","Th/Pb",62,4810,16490,11680,2.4282744282744284]
["Natural Radionuclide Mobility","Geochimica et Cosmochimica Acta",72,2008,"Pages 2067-2089","C:\\Essays\\Geo_Dating\\Neller\\","Amelin_F","C:\\Essays\\Geo_Dating\\Neller\\Amelin_F.pdf","E2","AA_Index.xlsm","Geochimica et Cosmochimica Acta, 2008, 72, Pages 2067-2089","Th/Pb",59,4,82030,82026,20506.5]
["Isotopic Lead Ages Of Meteorites","Earth Planetary Science Letters",19,1973,"Pages 321-329","C:\\Essays\\Geo_Dating\\Neller\\","Pb-206_14","C:\\Essays\\Geo_Dating\\Neller\\Pb-206_14.pdf","B5","AA_Index.xlsm","Earth Planetary Science Letters, 1973, 19, Pages 321-329","U/Pb",60,4126,8615,4489,1.0879786718371305]
["The Allende and Orgueil Chondrites ","Geochimica et Cosmochimica Acta",40,1976,"Pages 617-634","C:\\Essays\\Geo_Dating\\Neller\\","Meteorite_Tatsumoto","C:\\Essays\\Geo_Dating\\Neller\\Meteorite_Tatsumoto.pdf","C8","AA_Index.xlsm","Geochimica et Cosmochimica Acta, 1976, 40, Pages 617-634","U/Pb",62,4920,9860,4940,1.0040650406504066]
["The Allende and Orgueil Chondrites ","Geochimica et Cosmochimica Acta",40,1976,"Pages 617-634","C:\\Essays\\Geo_Dating\\Neller\\","Meteorite_Tatsumoto","C:\\Essays\\Geo_Dating\\Neller\\Meteorite_Tatsumoto.pdf","C8","AA_Index.xlsm","Geochimica et Cosmochimica Acta, 1976, 40, Pages 617-634","U/Pb",62,4700,5780,1080,0.22978723404255319]
["U-Pb ages of angrites","Geochimica et Cosmochimica Acta",72,2008,"Pages 221-232","C:\\Essays\\Geo_Dating\\Neller\\","Amelin_D","C:\\Essays\\Geo_Dating\\Neller\\Amelin_D.pdf","E0","AA_Index.xlsm","Geochimica et Cosmochimica Acta, 2008, 72, Pages 221-232","U/Pb",63,3727.8,6625,2897.2,0.77718761736144637]
["Pb isotopic age of the Allende chondrules","Meteoritics And Planetary Science",42,2007,"Pages 1321-1335","C:\\Essays\\Geo_Dating\\Neller\\","Amelin_C","C:\\Essays\\Geo_Dating\\Neller\\Amelin_C.pdf","E3","AA_Index.xlsm","Meteoritics And Planetary Science, 2007, 42, Pages 1321-1335","U/Pb",64,1799,10066,8267,4.5953307392996106]
["Precise U-Pb dating","Geochimica et Cosmochimica Acta",69,2005,"Pages 505-518",{"$f":" \"C:\\Essays\\Geo_Dating\\Neller\\\"","v":"C:\\Essays\\Geo_Dating\\Neller\\"},"Amelin_A",{"$f":" \"C:\\Essays\\Geo_Dating\\Neller\\\" & G66 & \".pdf\"","v":"C:\\Essays\\Geo_Dating\\Neller\\Amelin_A.pdf"},"E4","AA_Index.xlsm",{"$f":"B66 &  \", \" & D66 & \", \" & C66 & \", \" & E66","v":"Geochimica et Cosmochimica Acta, 2005, 69, Pages 505-518"},"U/Pb",65,4249,6473,{"$f":"O66-N66","v":2224},{"$f":"ABS(P66/N66)","v":0.52341727465285948}]
["Single grain (U-Th)/He ages, Acapulco meteorite","Earth Planetary Science Letters",209,2003,"Pages 323-336","C:\\Essays\\Geo_Dating\\Neller\\","Meteorite_Kyoungwon","C:\\Essays\\Geo_Dating\\Neller\\Meteorite_Kyoungwon.pdf","C5","AA_Index.xlsm","Earth Planetary Science Letters, 2003, 209, Pages 323-336","U/Th",66,1452,4909,{"$f":"O67-N67","v":3457},2.3808539944903582]
["Geochronology of Quaternary Opal","Geochimica et Cosmochimica Acta",64,2000,"Pages 2913-2928","C:\\Essays\\Geo_Dating\\Neller\\","Amelin_E","C:\\Essays\\Geo_Dating\\Neller\\Amelin_E.pdf","E1","AA_Index.xlsm","Geochimica et Cosmochimica Acta, 2000, 64, Pages 2913-2928",null,105]
["Barren Miocene granitoids","Andean Geology",37,2010,"Pages 1-31","C:\\Essays\\Geo_Dating\\Neller\\","R1","C:\\Essays\\Geo_Dating\\Neller\\R1.pdf","R1","AB_Index.xlsm","Andean Geology, 2010, 37, Pages 1-31","Lu/Hf",68,-8800,-630,{"$f":"O69-N69","v":8170},0.92840909090909096]
["Early Archean partial melting events","University Bonn, Thesis",null,2004,"Pages 1-132","C:\\Essays\\Geo_Dating\\Neller\\","R2","C:\\Essays\\Geo_Dating\\Neller\\R2.pdf","R2","AB_Index.xlsm","University Bonn, Thesis, 2004, , Pages 1-132","Re/Os",69,-8620,3220,11840,1.3735498839907192]
["Isotopic signatures in Zealandia ","Geology",null,2012,"Pages 1-19","C:\\Essays\\Geo_Dating\\Neller\\","R3","C:\\Essays\\Geo_Dating\\Neller\\R3.pdf","R3","AB_Index.xlsm","Geology, 2012, , Pages 1-19","Re/Os",70,-6240,3510,9750,1.5625]
["Mantle xenoliths from North Korea","Geology",38,2010,"Pages 799-802","C:\\Essays\\Geo_Dating\\Neller\\","R4","C:\\Essays\\Geo_Dating\\Neller\\R4.pdf","R4","AB_Index.xlsm","Geology, 2010, 38, Pages 799-802","Lu/Hf",71,-1649,8590,10239,6.2092177077016375]
["Re-Os Geochronology of Oxide Minerals","University Alberta, Thesis",null,2010,"Pages 1-153","C:\\Essays\\Geo_Dating\\Neller\\","R5","C:\\Essays\\Geo_Dating\\Neller\\R5.pdf","R5","AB_Index.xlsm","University Alberta, Thesis, 2010, , Pages 1-153","Re/Os",72,{"$f":"MIN(N60:N72)","v":-8800},38190,46990,5.3397727272727273]
["North Patagonian Mantle Xenoliths","Journal of Petrology",57,2016,"Pages 685-715","C:\\Essays\\Geo_Dating\\Neller\\","R6","C:\\Essays\\Geo_Dating\\Neller\\R6.pdf","R6","AB_Index.xlsm","Journal of Petrology, 2016, 57, Pages 685-715","Re/Os",73,-2400,10700,13100,5.458333333333333]
["Age and geochemistry of lithospheric mantle","University Maryland, Thesis",null,2015,"Pages 1-17","C:\\Essays\\Geo_Dating\\Neller\\","R7","C:\\Essays\\Geo_Dating\\Neller\\R7.pdf","R7","AB_Index.xlsm","University Maryland, Thesis, 2015, , Pages 1-17","Re/Os",74,-2080,21500,23580,11.336538461538462]
["The Scottish margin of the North Atlantic Craton","Precambrian Research",250,2014,"Pages 97-126","C:\\Essays\\Geo_Dating\\Neller\\","R8","C:\\Essays\\Geo_Dating\\Neller\\R8.pdf","R8","AB_Index.xlsm","Precambrian Research, 2014, 250, Pages 97-126","Re/Os",75,-7307,3505,10812,1.4796770220336664]
["Xenoliths from the Bohemian Massif","Chemical Geology",430,2016,"Pages 90-107","C:\\Essays\\Geo_Dating\\Neller\\","R9","C:\\Essays\\Geo_Dating\\Neller\\R9.pdf","R9","AB_Index.xlsm","Chemical Geology, 2016, 430, Pages 90-107","Re/Os",76,-1,68000,68001,{"$f":"ABS(P77/N77)","v":68001}]
["Re-Os systematics of peridotites","Journal of the Geological Society",168,2011,"Pages 1201-1214","C:\\Essays\\Geo_Dating\\Neller\\","RA","C:\\Essays\\Geo_Dating\\Neller\\RA.pdf","RA","AB_Index.xlsm","Journal of the Geological Society, 2011, 168, Pages 1201-1214","Re/Os",77,-2860,2820,5680,{"$f":"ABS(P78/N78)","v":1.986013986013986}]
["Constraints on mantle processes and late ","University Berlin, Thesis",null,2014,"Pages 1-168","C:\\Essays\\Geo_Dating\\Neller\\","RB","C:\\Essays\\Geo_Dating\\Neller\\RB.pdf","RB","AB_Index.xlsm","University Berlin, Thesis, 2014, , Pages 1-168","Re/Os",78,-9260,1620,10880,1.1749460043196545]
["The Taitao Ophiolite, Southern Chile","University Maryland, Thesis",null,2007,"Pages 1-117","C:\\Essays\\Geo_Dating\\Neller\\","RC","C:\\Essays\\Geo_Dating\\Neller\\RC.pdf","RC","AB_Index.xlsm","University Maryland, Thesis, 2007, , Pages 1-117","Re/Os",79,-111000,1500,112500,1.0135135135135136]
["Samarium/Neodymium geochronology","University Boston, Thesis",null,2014,"Pages 1-207","C:\\Essays\\Geo_Dating\\Neller\\","RD","C:\\Essays\\Geo_Dating\\Neller\\RD.pdf","RD","AB_Index.xlsm","University Boston, Thesis, 2014, , Pages 1-207","Re/Os",80,-15000001,14999999,30000000,1.9999998666666756]
["Principles of Re-Os Isotopic System","Journal Petrology Society Korea",15,2006,"Pages 106-117","C:\\Essays\\Geo_Dating\\Neller\\","RE","C:\\Essays\\Geo_Dating\\Neller\\RE.pdf","RE","AB_Index.xlsm","Journal Petrology Society Korea, 2006, 15, Pages 106-117","Re/Os",81,-770,6790,7560,9.8181818181818183]
["The western North China Craton","Lithos",149,2012,"Pages 100-114","C:\\Essays\\Geo_Dating\\Neller\\","RF","C:\\Essays\\Geo_Dating\\Neller\\RF.pdf","RF","AB_Index.xlsm","Lithos, 2012, 149, Pages 100-114","Re/Os",82,-1,2240,2241,2241]
["Single abyssal peridotite sulfides","Earth Planetary Science Letters",359,2012,"Pages 279-293","C:\\Essays\\Geo_Dating\\Neller\\","RG","C:\\Essays\\Geo_Dating\\Neller\\RG.pdf","RG","AB_Index.xlsm","Earth Planetary Science Letters, 2012, 359, Pages 279-293","Re/Os",83,-2500,2800,5300,2.12]
["The Kaapvaal Cratonic Lithospheric Mantle","Journal Of Petrology",48,2007,"Pages 589-625","C:\\Essays\\Geo_Dating\\Neller\\","To_Old_01","C:\\Essays\\Geo_Dating\\Neller\\To_Old_01.pdf","T_1","AB_Index.xlsm","Journal Of Petrology, 2007, 48, Pages 589-625","Nd/Sm",86,-2247,96661,98908,44.017801513128617]
["The Kaapvaal Cratonic Lithospheric Mantle","Journal Of Petrology",48,2007,"Pages 589-625","C:\\Essays\\Geo_Dating\\Neller\\","To_Old_01",{"$f":" \"C:\\Essays\\Geo_Dating\\Neller\\\" & G86 & \".pdf\"","v":"C:\\Essays\\Geo_Dating\\Neller\\To_Old_01.pdf"},"T_1","AB_Index.xlsm",{"$f":"B86 &  \", \" & D86 & \", \" & C86 & \", \" & E86","v":"Journal Of Petrology, 2007, 48, Pages 589-625"},"Re/Os",86,600,34600,{"$f":"O86-N86","v":34000},{"$f":"ABS(P86/N86)","v":56.666666666666664}]
["The Kaapvaal Cratonic Lithospheric Mantle","Journal Of Petrology",48,2007,"Pages 589-625","C:\\Essays\\Geo_Dating\\Neller\\","To_Old_01",{"$f":" \"C:\\Essays\\Geo_Dating\\Neller\\\" & G87 & \".pdf\"","v":"C:\\Essays\\Geo_Dating\\Neller\\To_Old_01.pdf"},"T_1","AB_Index.xlsm",{"$f":"B87 &  \", \" & D87 & \", \" & C87 & \", \" & E87","v":"Journal Of Petrology, 2007, 48, Pages 589-625"},"Lu/Hf",86,-320,1730,{"$f":"O87-N87","v":2050},{"$f":"ABS(P87/N87)","v":6.40625}]
["In Situ Analysis of Sulphides","Earth Planetary Science Letters",203,2002,"Pages 651-663","C:\\Essays\\Geo_Dating\\Neller\\","To_Old_03","C:\\Essays\\Geo_Dating\\Neller\\To_Old_03.pdf","T_2","AB_Index.xlsm","Earth Planetary Science Letters, 2002, 203, Pages 651-663","Re/Os",87,-32000,34000,66000,2.0625]
["Rb-Sr And Sm-Nd Studies","Chemical Geology",52,1985,"Pages 249-271","C:\\Essays\\Geo_Dating\\Neller\\","To_Old_06",{"$f":" \"C:\\Essays\\Geo_Dating\\Neller\\\" & G89 & \".pdf\"","v":"C:\\Essays\\Geo_Dating\\Neller\\To_Old_06.pdf"},"T_3","AB_Index.xlsm",{"$f":"B89 &  \", \" & D89 & \", \" & C89 & \", \" & E89","v":"Chemical Geology, 1985, 52, Pages 249-271"},"Rb/Sr",88,267,20000,{"$f":"O89-N89","v":19733},{"$f":"ABS(P89/N89)","v":73.906367041198507}]
["Norwegian Caledonides: An isotopic investigation","Lithos",117,2010,"Pages 1-19","C:\\Essays\\Geo_Dating\\Neller\\","Future_Ages_01","C:\\Essays\\Geo_Dating\\Neller\\Future_Ages_01.pdf","F01","AC_Index.xlsm","Lithos, 2010, 117, Pages 1-19","Rb/Sr",89,-31071,76523,107594,3.4628431656528598]
["Multi-stage origin of Roberts Victor eclogites","Lithos","142-143",2012,"Pages 161-181","C:\\Essays\\Geo_Dating\\Neller\\","Future_Ages_02","C:\\Essays\\Geo_Dating\\Neller\\Future_Ages_02.pdf","F02","AC_Index.xlsm","Lithos, 2012, 142-143, Pages 161-181","Rb/Sr",92,32,6874,6842,213.8125]
["Multi-stage origin of Roberts Victor eclogites","Lithos","142-143",2012,"Pages 161-181","C:\\Essays\\Geo_Dating\\Neller\\","Future_Ages_02",{"$f":" \"C:\\Essays\\Geo_Dating\\Neller\\\" & G92 & \".pdf\"","v":"C:\\Essays\\Geo_Dating\\Neller\\Future_Ages_02.pdf"},"F02","AC_Index.xlsm",{"$f":"B92 &  \", \" & D92 & \", \" & C92 & \", \" & E92","v":"Lithos, 2012, 142-143, Pages 161-181"},"Lu/Hf",92,-12340,19870,{"$f":"O92-N92","v":32210},{"$f":"ABS(P92/N92)","v":2.6102106969205834}]
["Multi-stage origin of Roberts Victor eclogites","Lithos","142-143",2012,"Pages 161-181","C:\\Essays\\Geo_Dating\\Neller\\","Future_Ages_02","C:\\Essays\\Geo_Dating\\Neller\\Future_Ages_02.pdf","F02","AC_Index.xlsm","Lithos, 2012, 142-143, Pages 161-181","Nd/Sm",92,-22420,8100,30520,1.3612845673505798]
["Re-Os systematics of mantle xenoliths","Geochimica et Cosmochimica Acta",63,1999,"Pages 1203-1217","C:\\Essays\\Geo_Dating\\Neller\\","Future_Ages_03","C:\\Essays\\Geo_Dating\\Neller\\Future_Ages_03.pdf","F03","AC_Index.xlsm","Geochimica et Cosmochimica Acta, 1999, 63, Pages 1203-1217","Re/Os",93,-1,4000,4001,4001]
["The Raobazhai peridotite massifs","Chemical Geology",268,2009,"Pages 1-14","C:\\Essays\\Geo_Dating\\Neller\\","Future_Ages_04","C:\\Essays\\Geo_Dating\\Neller\\Future_Ages_04.pdf","F04","AC_Index.xlsm","Chemical Geology, 2009, 268, Pages 1-14","Re/Os",94,-27744,3094,30838,1.1115196078431373]
["In situ Re–Os evidence","Journal of Asian Earth Sciences",62,2013,"Pages 37-50","C:\\Essays\\Geo_Dating\\Neller\\","Future_Ages_07","C:\\Essays\\Geo_Dating\\Neller\\Future_Ages_07.pdf","F07","AC_Index.xlsm","Journal of Asian Earth Sciences, 2013, 62, Pages 37-50","Re/Os",95,-79140,144550,223690,2.8265099823098305]
["Lu-Hf Geochronology","Chemical Geology",142,1997,"Pages 63-78",{"$f":" \"C:\\Essays\\Geo_Dating\\Neller\\\"","v":"C:\\Essays\\Geo_Dating\\Neller\\"},"Future_Ages_08","C:\\Essays\\Geo_Dating\\Neller\\Future_Ages_08.pdf","F08","AC_Index.xlsm","Chemical Geology, 1997, 142, Pages 63-78","Nd/Sm",96,-659,1137,1796,2.725341426403642]
["Isotopic Disequilibrium","Chemical Geology",162,2000,"Pages 169-191","C:\\Essays\\Geo_Dating\\Neller\\","Future_Ages_09","C:\\Essays\\Geo_Dating\\Neller\\Future_Ages_09.pdf","F09","AC_Index.xlsm","Chemical Geology, 2000, 162, Pages 169-191","Rb/Sr",97,-15,201,216,14.4]
["Multiple Metasomatic Events","Lithos","112-S",2009,"Pages 896-912","C:\\Essays\\Geo_Dating\\Neller\\","Future_Ages_11","C:\\Essays\\Geo_Dating\\Neller\\Future_Ages_11.pdf","F11","AC_Index.xlsm","Lithos, 2009, 112-S, Pages 896-912","Nd/Sm",98,-2192,2013,4205,1.9183394160583942]
["Re–Os Evidence","Chemical Geology",236,2007,"Pages 323-338","C:\\Essays\\Geo_Dating\\Neller\\","Future_Ages_12","C:\\Essays\\Geo_Dating\\Neller\\Future_Ages_12.pdf","F12","AC_Index.xlsm","Chemical Geology, 2007, 236, Pages 323-338","Re/Os",101,-3830,10620,14450,3.7728459530026108]
["Re–Os Evidence","Chemical Geology",236,2007,"Pages 323-338","C:\\Essays\\Geo_Dating\\Neller\\","Future_Ages_12",{"$f":" \"C:\\Essays\\Geo_Dating\\Neller\\\" & G101 & \".pdf\"","v":"C:\\Essays\\Geo_Dating\\Neller\\Future_Ages_12.pdf"},"F12","AC_Index.xlsm",{"$f":"B101 &  \", \" & D101 & \", \" & C101 & \", \" & E101","v":"Chemical Geology, 2007, 236, Pages 323-338"},"Lu/Hf",101,-30,14650,{"$f":"O101-N101","v":14680},{"$f":"ABS(P101/N101)","v":489.33333333333331}]
["Re–Os Evidence","Chemical Geology",236,2007,"Pages 323-338","C:\\Essays\\Geo_Dating\\Neller\\","Future_Ages_12","C:\\Essays\\Geo_Dating\\Neller\\Future_Ages_12.pdf","F12","AC_Index.xlsm","Chemical Geology, 2007, 236, Pages 323-338","Nd/Sm",101,820,5910,5090,6.2073170731707314]
["Central Asian Orogenic Belt","Lithos",126,2011,"Pages 233-247","C:\\Essays\\Geo_Dating\\Neller\\","Future_Ages_13","C:\\Essays\\Geo_Dating\\Neller\\Future_Ages_13.pdf","F13","AC_Index.xlsm","Lithos, 2011, 126, Pages 233-247","Nd/Sm",104,490,5910,5420,11.061224489795919]
["Central Asian Orogenic Belt","Lithos",126,2011,"Pages 233-247","C:\\Essays\\Geo_Dating\\Neller\\","Future_Ages_13",{"$f":" \"C:\\Essays\\Geo_Dating\\Neller\\\" & G104 & \".pdf\"","v":"C:\\Essays\\Geo_Dating\\Neller\\Future_Ages_13.pdf"},"F13","AC_Index.xlsm",{"$f":"B104 &  \", \" & D104 & \", \" & C104 & \", \" & E104","v":"Lithos, 2011, 126, Pages 233-247"},"Lu/Hf",104,-9270,14650,23920,2.580366774541532]
["Central Asian Orogenic Belt","Lithos",126,2011,"Pages 233-247","C:\\Essays\\Geo_Dating\\Neller\\","Future_Ages_13","C:\\Essays\\Geo_Dating\\Neller\\Future_Ages_13.pdf","F13","AC_Index.xlsm","Lithos, 2011, 126, Pages 233-247","Re/Os",104,-3830,10620,14450,3.7728459530026108]
["The Mamonia complex, Cyprus","Chemical Geology",248,2008,"Pages 195-212","C:\\Essays\\Geo_Dating\\Neller\\","Future_Ages_14","C:\\Essays\\Geo_Dating\\Neller\\Future_Ages_14.pdf","F14","AC_Index.xlsm","Chemical Geology, 2008, 248, Pages 195-212","Re/Os",105,-1,1550,1551,1551]
["A Paleozoic Convergent Plate","Chemical Geology",208,2004,"Pages 141-156","C:\\Essays\\Geo_Dating\\Neller\\","Future_Ages_16","C:\\Essays\\Geo_Dating\\Neller\\Future_Ages_16.pdf","F16","AC_Index.xlsm","Chemical Geology, 2004, 208, Pages 141-156","Re/Os",106,-4300,9100,13400,3.1162790697674421]
["Northern Canadian Cordillera Xenoliths","Geochimica et Cosmochimica Acta",64,2000,"Pages 3061-3071","C:\\Essays\\Geo_Dating\\Neller\\","Future_Ages_17","C:\\Essays\\Geo_Dating\\Neller\\Future_Ages_17.pdf","F17","AC_Index.xlsm","Geochimica et Cosmochimica Acta, 2000, 64, Pages 3061-3071","Re/Os",107,-1,4500,4501,4501]
["Xenoliths from Yangyuan and Fansi","Lithos",102,2008,"Pages 25-42","C:\\Essays\\Geo_Dating\\Neller\\","Future_Ages_19","C:\\Essays\\Geo_Dating\\Neller\\Future_Ages_19.pdf","F19","AC_Index.xlsm","Lithos, 2008, 102, Pages 25-42","Re/Os",108,-10800,9700,20500,1.8981481481481481]
["Formation of the North Atlantic Craton","Chemical Geology",276,2010,"Pages 166-187","C:\\Essays\\Geo_Dating\\Neller\\","Future_Ages_21","C:\\Essays\\Geo_Dating\\Neller\\Future_Ages_21.pdf","F21","AC_Index.xlsm","Chemical Geology, 2010, 276, Pages 166-187","Re/Os",109,-14258,6994,21252,1.4905316313648478]
["In situ Measurement of Re-Os Isotopes","Geochimica et Cosmochimica Acta",66,2002,"Pages 1037-1050","C:\\Essays\\Geo_Dating\\Neller\\","Future_Ages_26","C:\\Essays\\Geo_Dating\\Neller\\Future_Ages_26.pdf","F26","AC_Index.xlsm","Geochimica et Cosmochimica Acta, 2002, 66, Pages 1037-1050","Re/Os",110,-7120,7690,14810,2.0800561797752808]
["Re–Os isotope constraints","Earth and Planetary Science Letters",268,2008,"Pages 89-101","C:\\Essays\\Geo_Dating\\Neller\\","EPSL_268.89","C:\\Essays\\Geo_Dating\\Neller\\EPSL_268.89.pdf","F01","AD_Index.xlsm","Earth and Planetary Science Letters, 2008, 268, Pages 89-101","Re/Os",111,30,52250,{"$f":"O112-N112","v":52220},{"$f":"ABS(P112/N112)","v":1740.6666666666667}]
["Highly siderophile element fractionations","Earth and Planetary Science Letters",297,2010,"Pages 287–297","C:\\Essays\\Geo_Dating\\Neller\\","EPSL_297.287","C:\\Essays\\Geo_Dating\\Neller\\EPSL_297.287.pdf","F02","AD_Index.xlsm","Earth and Planetary Science Letters, 2010, 297, Pages 287–297","Re/Os",112,-8600,40000,48600,5.6511627906976747]
["Archean mantle residues","Earth and Planetary Science Letters",424,2015,"Pages 109-118","C:\\Essays\\Geo_Dating\\Neller\\","EPSL_424.109","C:\\Essays\\Geo_Dating\\Neller\\EPSL_424.109.pdf","F03","AD_Index.xlsm","Earth and Planetary Science Letters, 2015, 424, Pages 109-118","Re/Os",113,-11800,27500,39300,3.3305084745762712]
["Xenoliths from the Obnazhennaya kimberlite","Earth and Planetary Science Letters",428,2015,"Pages 108-119","C:\\Essays\\Geo_Dating\\Neller\\","EPSL_428.108","C:\\Essays\\Geo_Dating\\Neller\\EPSL_428.108.pdf","F04","AD_Index.xlsm","Earth and Planetary Science Letters, 2015, 428, Pages 108-119","Re/Os",114,-4040,8520,12560,3.108910891089109]
["Osmium mass balance in peridotite","Geochimica et Cosmochimica Acta",75,2011,"Pages 5574-5596","C:\\Essays\\Geo_Dating\\Neller\\","GCA_075.5574","C:\\Essays\\Geo_Dating\\Neller\\GCA_075.5574.pdf","F05","AD_Index.xlsm","Geochimica et Cosmochimica Acta, 2011, 75, Pages 5574-5596","Re/Os",115,-1,1640,1641,1641]
["Mantle keel beneath West Greenland","Geochimica et Cosmochimica Acta",203,2017,"Pages 37-53","C:\\Essays\\Geo_Dating\\Neller\\","GCA_203.37","C:\\Essays\\Geo_Dating\\Neller\\GCA_203.37.pdf","F06","AD_Index.xlsm","Geochimica et Cosmochimica Acta, 2017, 203, Pages 37-53","Re/Os",116,-11275,3426,14701,1.3038580931263859]
[null,null,null,null,null,null,null,null,null,null,null,null,null,"Min Age (Ma)","Max Age (Ma)","Difference (Ma)","Age Ratio"]